Workbook

Sheet Costs by Fee Before Footnote
A3: Row Labels | B3: Sum of Sum of Cost Amount | C3: Sum of Cost in FY2020 Dollars
A4: #N/A | B4: 4755.4 | C4: 5406.41
A5: BURN Open Burn Application Fee | B5: 76215.42 | C5: 83211.95
A6: BURN Time & Materials (adjudacatory hearing) | B6: 939.65 | C6: 1047.76
A7: Excess Emissions - EE/PD Individual Fee | B7: 44813.17 | C7: 50264.63
A8: Fee Appeal | B8: 1020.99 | C8: 1165.19
A9: Fee Appeal permit administration fee | B9: 3978.53 | C9: 4241.7
A10: FOIA | B10: 12693.37 | C10: 14404.36
A11: GP3 Routine Compliance | B11: 204167.53 | C11: 229260.83
A12: GP3 Time & Materials | B12: 20921.13 | C12: 23561.29
A13: GP4 Permit Administration (Development) | B13: 60.14 | C13: 70.61
A14: GP4 Routine Compliance | B14: 5829.11 | C14: 6672.77
A15: GP4 Time & Materials | B15: 1510.26 | C15: 1764.34
A16: GP9 Routine Compliance | B16: 54 | C16: 64.26
A17: GPA Routine Compliance | B17: 106602.6 | C17: 118513.77
A18: GPA Time & Materials | B18: 10001.41 | C18: 11254.74
A19: INTEREST | B19: 0 | C19: 0
A20: MG1 Routine Compliance | B20: 6857.77 | C20: 7419.59
A21: MG1 Time & Materials | B21: 6783.9 | C21: 7731.9
A22: MG2 Permit Administration (Development) | B22: 55379.82 | C22: 57708.64
A23: MG2 Routine Compliance | B23: 2526.4 | C23: 2576.94
A24: MG2 Time & Materials | B24: 6095.88 | C24: 6232.48
A25: MG3 Routine Compliance | B25: 436425.76 | C25: 478563.72
A26: MG3 Time & Materials | B26: 117396.2 | C26: 130432.6
A27: MG9 Routine Compliance | B27: 315878.3 | C27: 345197.34
A28: MG9 Time & Materials | B28: 44077.7 | C28: 48072.67
A29: MSS Routine Compliance | B29: 503622.05 | C29: 545668.89
A30: MSS Time & Materials | B30: 1115916.99 | C30: 1231841.81
A31: ORL ORL Time & Materials | B31: 21229.37 | C31: 23814.24
A32: ORL Permit Administration | B32: 196180.53 | C32: 216246.07
A33: ORL Routine Compliance | B33: 189367.16 | C33: 206554.23
A34: ORL Time & Materials | B34: 35096.83 | C34: 38986.37
A35: PAEL Application Fee | B35: 16672.36 | C35: 17888.93
A36: PAEL Routine Compliance | B36: 171775.95 | C36: 187923.06
A37: PAEL Time & Materials | B37: 30318.16 | C37: 34148.85
A38: RSA | B38: 747230.25 | C38: 769229.29
A39: shouldn't be here, should be timetrack | B39: 232.67 | C39: 270.06
A40: Shouldn't be here….should have been timetrack. | B40: 241.2 | C40: 282.2
A41: Smoke Incursion Time & Materials | B41: 41.86 | C41: 48.98
A42: Timetrack | B42: 23036837.22 | C42: 25206584.75
A43: TITE Time & Materials | B43: 503446.86 | C43: 554341.95
A44: TV1R Permit Administration | B44: 1178274.36 | C44: 1319580.76
A45: TV1R Routine Compliance | B45: 1796450.12 | C45: 1989953.75
A46: TV1R Time & Materials | B46: 1145584.44 | C46: 1273461.75
A47: TV2R Permit Administration | B47: 316300.43 | C47: 349943.72
A48: TV2R Routine Compliance | B48: 682246.71 | C48: 746837.16
A49: TV2R Time & Materials | B49: 688855.29 | C49: 772712.99
A50: TV3R Permit Administration | B50: 315477.35 | C50: 346560.52
A51: TV3R Routine Compliance | B51: 348498.72 | C51: 383189.45
A52: TV3R Time & Materials | B52: 403801.57 | C52: 447562.66
A53: TV4R Permit Administration | B53: 264235.56 | C53: 292457.76
A54: TV4R Routine Compliance | B54: 398026.74 | C54: 437111.25
A55: TV4R Time & Materials | B55: 348743.74 | C55: 385597.93
A56: TV5R Permit Administration | B56: 191150.88 | C56: 211386.65
A57: TV5R Routine Compliance | B57: 391897.59 | C57: 435331.33
A58: TV5R Time & Materials | B58: 582552.84 | C58: 647196.34
A59: TV6R Permit Administration | B59: 412852.72 | C59: 454892.29
A60: TV6R Routine Compliance | B60: 608000.4 | C60: 668289.43
A61: TV6R Time & Materials | B61: 502256.5 | C61: 559926.27
A62: TV9R Permit Administration | B62: 262922.85 | C62: 290812.67
A63: TV9R Routine Compliance | B63: 560016.14 | C63: 611201.75
A64: TV9R Time & Materials | B64: 397295.81 | C64: 439900.46
A65: TVCPRA Routine Compliance | B65: 329.18 | C65: 358.28
A66: TVCPRA Time & Materials | B66: 1400170.85 | C66: 1552535.16
A67: TVTE Time & Materials | B67: 4143.22 | C67: 4464.74
A68: Unclear Time & Materials | B68: 19298.49 | C68: 21562.97
A69: MG3 Permit Administration (Development) | B69: 11377.48 | C69: 12062.14
A70: MG9 Permit Administration (Development) | B70: 11264.89 | C70: 11940.78
A71: GPA Permit Administration (Development) | B71: 9027.83 | C71: 9920.41
A72: (blank)
A73: Grand Total | B73: 41304246.6 | C73: 45345421.54

Sheet TV1R PA Cost Adj for Footnote
A1: Expired Under Shield | B1: (All)
A3: Sum of Cost in FY2020 Dollars | B3: Column Labels
A4: Row Labels | B4: FY2010 | C4: FY2011 | D4: FY2012 | E4: FY2013 | F4: FY2014 | G4: Grand Total
A5: TV1R Permit Administration | B5: 283620.37 | C5: 98075.99 | D5: 127911.35 | E5: 169484.04 | F5: 196977.62 | G5: 876069.37
A6: Grand Total | B6: 283620.37 | C6: 98075.99 | D6: 127911.35 | E6: 169484.04 | F6: 196977.62 | G6: 876069.37
A9: Expired Under Shield
A11: Sum of Cost in FY2020 Dollars | B11: Column Labels
A12: Row Labels | B12: FY2015 | C12: FY2016 | D12: FY2017 | E12: FY2018 | F12: FY2019 | G12: Grand Total
A13: TV1R Permit Administration | B13: 100915.19 | C13: 130734.06 | D13: 34382.8 | E13: 80505.92 | F13: 37943.19 | G13: 384481.16
A14: Grand Total | B14: 100915.19 | C14: 130734.06 | D14: 34382.8 | E14: 80505.92 | F14: 37943.19 | G14: 384481.16
F17: Total | G17: =SUM(G6+G14) -> 1260550.53

Sheet Personal Services
A4: Sum of Sum of Cost Amount | D4: FY
A5: CC | B5: Current Activity Code | C5: Current Activity Code Description | D5: FY2010 | E5: FY2011 | F5: FY2012 | G5: FY2013 | H5: FY2014 | I5: FY2015 | J5: FY2016 | K5: FY2017 | L5: FY2018 | M5: FY2019 | N5: Grand Total
A6: 18335555 | B6: 21:01 | C6: 21:01 General - Tasks for general work not specific to a permitting project | D6: 1058.66 | E6: 548.97 | F6: 689.68 | G6: 28.22 | H6: 781.45 | I6: 1139.76 | J6: 318.92 | K6: 93.5 | N6: 4659.16
B7: 21:02 | C7: 21:02 Training - Training Received | E7: 794.19 | F7: 4302.65 | G7: 2030.28 | H7: 200.39 | I7: 237.77 | J7: 2.842170943e-14 | N7: 7565.28
B8: 22:01 | C8: 22:01 Permitting - TV Renewal and/or Amendment | D8: 194689.49 | E8: 194807.9 | F8: 116136.89 | G8: 199716.2 | H8: 280451.85 | I8: 190782.27 | J8: 355087.31 | K8: 294214.43 | L8: 198615.77 | M8: 260511.56 | N8: 2285013.67
B9: 22:02 | C9: 22:02 Billable Permitting - Tasks associated with 18 AAC 50.400(h) | D9: 22826.35 | E9: 17793.99 | F9: 42444.95 | G9: 44554.4 | H9: 53305.76 | I9: 40864.62 | J9: 35055.43 | K9: 84083.82 | L9: 47338.39 | M9: 32146.22 | N9: 420413.93
B10: 22:03 | C10: 22:03 Permitting - ORL development 18 AAC 50.225, OBA, PAELs | D10: 18181.12 | E10: 15373.3 | F10: 38482.16 | G10: 9499.19 | H10: 6416.54 | I10: 15989.02 | J10: 23595.81 | K10: 14718.57 | L10: 7383.83 | M10: 24664.36 | N10: 174303.9
B11: 22:04 | C11: 22:04 Billable Permitting - Pre-application assistance | D11: 17693.99 | E11: 531.01 | F11: 155.75 | G11: 603.18 | H11: 139.47 | I11: 310.22 | J11: 432.41 | K11: 0 | L11: 1098.54 | M11: 306.71 | N11: 21271.28
B12: 22:05 | C12: 22:05 Billable Permitting - Minor modification to a Title V Permit | D12: 639.12 | E12: 2762.87 | F12: 2341.4 | G12: 15197.18 | H12: 11533.95 | I12: 16404.14 | J12: 8889 | K12: 10074.2 | L12: 10913.03 | M12: 4921.6 | N12: 83676.49
B13: 22:06 | C13: 22:06 Billable Permitting - Significant modification to a Title V Permit | D13: 18415.27 | E13: 27298.41 | F13: 17874.5 | G13: 5322.12 | H13: 17570.67 | I13: 31071.72 | J13: 32699.51 | K13: 34405.97 | L13: 33446.14 | M13: 12282.96 | N13: 230387.27
B14: 22:07 | C14: 22:07 Billable Technical Assistance - Data Reviews, Site Requests & QAPP | D14: 5586.91 | E14: 50.31 | F14: 63.99 | G14: 343.78 | H14: 1672.05 | J14: 773.87 | K14: 121.7 | L14: 65.56 | M14: 540.24 | N14: 9218.41
B15: 22:09 | C15: 22:09 Permitting - Development or application work for MG/GP | D15: 399.72 | E15: 312.48 | F15: 886.02 | G15: 719.65 | H15: 1929.37 | I15: 1498.35 | J15: 732.54 | K15: 53.4 | M15: 945.98 | N15: 7477.51
B16: 23:01 | C16: 23:01 Compliance - Routine Compliance, STP, STR activities | D16: 416499.76 | E16: 403175.61 | F16: 516787.1 | G16: 430484.01 | H16: 521328.81 | I16: 502513.94 | J16: 580103.99 | K16: 566054.21 | L16: 577693.8 | M16: 666423.45 | N16: 5181064.68
B17: 23:02 | C17: 23:02 Billable Compliance - Non-routine compliance activities | D17: 86459.25 | E17: 96960.1 | F17: 43599.78 | G17: 66682.05 | H17: 67968.49 | I17: 85347.98 | J17: 101813.66 | K17: 65368.36 | L17: 103603.35 | M17: 65519.6 | N17: 783322.62
B18: 23:03 | C18: 23:03 Compliance - EE/PD Intake Only | D18: 2816.06 | E18: 7456.85 | F18: 7480.66 | G18: 4658.57 | H18: 5620.31 | I18: 1835.19 | J18: 2392.36 | K18: 1947.98 | L18: 2058.18 | M18: 2092.18 | N18: 38358.34
B19: 23:04 | C19: 23:04 Billable Compliance - Source Test Observation | D19: 4109.41 | E19: 8260.73 | F19: 2051.47 | G19: 19615.76 | H19: 12255.22 | I19: 13691.92 | J19: 9396.8 | K19: 7372.52 | L19: 4509.63 | M19: 8685.75 | N19: 89949.21
B20: 23:05 | C20: 23:05 Compliance - Non-permit related investigations/complaint response | D20: 1536.81 | E20: 2498.11 | F20: 1517.36 | G20: 332.3 | H20: 293.5 | I20: 334.07 | J20: 1181.48 | K20: 5926.12 | N20: 13619.75
B21: 24:01 | C21: 24:01 Public Assistance - General questions from the public or FOIA | D21: 321.83 | E21: 121.52 | F21: 2027.08 | G21: 347.36 | H21: 231.68 | I21: 803.41 | J21: 0 | K21: 0 | N21: 3852.88
B22: 24:02 | C22: 24:02 Other/Specialty - Formal or informal appeal by 3rd party | D22: 1544.76 | H22: 1136.67 | I22: 16.96 | N22: 2698.39
B23: 24:03 | C23: 24:03 Other/Specialty - Formal or informal adjudicatory appeal | D23: 4611.25 | F23: 71.25 | G23: 2880.66 | H23: 1897.73 | I23: 1178.25 | K23: 2352.28 | N23: 12991.42
B24: 24:06 | C24: 24:06 Other/Specialty - Small Business Technical Assistance | D24: 61.94 | H24: 0 | N24: 61.94
B25: 24:07 | C25: 24:07 Other/Specialty - Formal fee appeal review as requested by permittee | D25: 41.04 | E25: 562.59 | F25: 274.97 | G25: 336.17 | J25: 5044.19 | K25: 18.69 | L25: 234.06 | M25: 1119.62 | N25: 7631.33
A26: Grand Total | D26: 797492.74 | E26: 779308.94 | F26: 797187.66 | G26: 803351.08 | H26: 984733.91 | I26: 904019.59 | J26: 1157517.28 | K26: 1086805.75 | L26: 986960.28 | M26: 1080160.23 | N26: 9377537.46
C28: Baseline | D28: =D26/1.49 -> 535230.0268 | E28: =E26/1.49 -> 523026.1342 | F28: 535025.2752 | G28: 539161.7987 | H28: 660895.2416 | I28: 606724.557 | J28: 776857.2349 | K28: 729399.8322 | L28: 662389.4497 | M28: 724939.7517 | N28: =SUM(D28:M28) -> 6293649.302
C30: AKSAS/IRIS Wages | D30: 557597.16 | E30: 506101.88 | F30: 530248.48 | G30: 543024.6 | H30: 651933.34 | I30: 610451.42 | J30: =SUM(760805.47+745.1) -> 761550.57 | K30: =SUM(791002.55+186.72) -> 791189.27 | L30: =643249.04+445.87 -> 643694.91 | M30: =716465.78+514.44 -> 716980.22 | N30: =SUM(D30:M30) -> 6312771.85
C31: Add Personal Services Transfer portion | D31: =-4076.62*0.54 -> -2201.3748 | E31: =-2134.05*0.54 -> -1152.387 | F31: =191.08*0.54 -> 103.1832 | G31: =-475.04*0.54 -> -256.5216 | H31: 16511.97 | I31: 2205.66 | J31: 250.81 | K31: -411.49 | L31: 1441.94 | M31: 11923.42 | N31: =SUM(D31:M31) -> 28415.2098
C32: Total Accounting System Wages | D32: =SUM(D30+D31) -> 555395.7852 | E32: 504949.493 | F32: 530351.6632 | G32: 542768.0784 | H32: =SUM(H30+H31) -> 668445.31 | I32: 612657.08 | J32: =SUM(J30+J31) -> 761801.38 | K32: =SUM(K30+K31) -> 790777.78 | L32: 645136.85 | M32: 728903.64 | N32: =SUM(D32:M32) -> 6341187.06
C34: Difference | D34: =D28-D32 -> -20165.75835 | E34: 18076.64123 | F34: 4673.611968 | G34: -3606.279742 | H34: =H28-H32 -> -7550.068389 | I34: -5932.522953 | J34: =J28-J32 -> 15055.8549 | K34: =K28-K32 -> -61377.94779 | L34: 17252.59966 | M34: -3963.888322 | N34: =SUM(D34:M34) -> -47537.75779
A41: Sum of Sum of Cost Amount | D41: FY
A42: CC | B42: Current Activity Code | C42: Current Activity Code Description | D42: FY2010 | E42: FY2011 | F42: FY2012 | G42: FY2013 | H42: FY2014 | I42: FY2015 | J42: FY2016 | K42: FY2017 | L42: FY2018 | M42: FY2019 | N42: Grand Total
A43: 18335666 | B43: 21:01 | C43: 21:01 General - Tasks for general work not specific to a permitting project | D43: 877.72 | E43: 347.88 | F43: 389 | G43: 0 | H43: 99.43 | I43: 251.06 | J43: 70.72 | K43: 442.42 | L43: 2327.77 | M43: 1532.24 | N43: 6338.24
B44: 21:02 | C44: 21:02 Training - Training Received | D44: 1817.71 | E44: 102.33 | F44: 4463.13 | G44: 2775.72 | H44: 499.71 | I44: 185.98 | L44: 332.87 | M44: 1004.47 | N44: 11181.92
B45: 22:01 | C45: 22:01 Permitting - TV Renewal and/or Amendment | D45: 7231.89 | E45: 951.59 | F45: 12.75 | H45: 0 | I45: 0 | J45: 0 | K45: 0 | M45: 6.46 | N45: 8202.69
B46: 22:02 | C46: 22:02 Billable Permitting - Tasks associated with 18 AAC 50.400(h) | D46: 291553.14 | E46: 345372.69 | F46: 266629.95 | G46: 313210.16 | H46: 305177.39 | I46: 279441.91 | J46: 241198.96 | K46: 243657.28 | L46: 218572.08 | M46: 264749.58 | N46: 2769563.14
B47: 22:03 | C47: 22:03 Permitting - ORL development 18 AAC 50.225, OBA, PAELs | D47: 64743.13 | E47: 14021.66 | F47: 8286.87 | G47: 19184.52 | H47: 22889.91 | I47: 23355.43 | J47: 6961.65 | K47: 4792.54 | L47: 5469.26 | M47: 2377.99 | N47: 172082.96
B48: 22:04 | C48: 22:04 Billable Permitting - Pre-application assistance | D48: 44639.32 | E48: 22068.85 | F48: 33531.74 | G48: 35513.05 | H48: 27002.32 | I48: 22982.93 | J48: 75862.55 | K48: 38823.16 | L48: 36074.22 | M48: 28451.73 | N48: 364949.87
B49: 22:05 | C49: 22:05 Billable Permitting - Minor modification to a Title V Permit | H49: 0 | I49: 0 | M49: 48.32 | N49: 48.32
B50: 22:06 | C50: 22:06 Billable Permitting - Significant modification to a Title V Permit | D50: 1183.98 | G50: 77.9 | H50: 0 | I50: 0 | J50: 0 | K50: 0 | N50: 1261.88
B51: 22:07 | C51: 22:07 Billable Technical Assistance - Data Reviews, Site Requests & QAPP | D51: 25464.25 | E51: 45677.49 | F51: 23593.23 | G51: 23233.76 | H51: 19354.92 | I51: 31525.74 | J51: 25275.22 | K51: 21231.16 | L51: 23382.89 | M51: 4550.2 | N51: 243288.86
B52: 22:08 | C52: 22:08 Billable Permitting - Open Burn w/Smoke Incursion Issuance | E52: 41.86 | I52: 0 | K52: 0 | M52: 1.421085472e-14 | N52: 41.86
B53: 22:09 | C53: 22:09 Permitting - Development or application work for MG/GP | D53: 1554.87 | E53: 2094.63 | F53: 3035.15 | G53: 2795.26 | H53: 3377.7 | I53: 5564.93 | J53: 3374.42 | K53: 9659.14 | L53: 40760.75 | M53: 13979.35 | N53: 86196.2
B54: 23:01 | C54: 23:01 Compliance - Routine Compliance, STP, STR activities | D54: 69569.25 | E54: 91062.17 | F54: 96615.25 | G54: 112060.31 | H54: 124990.29 | I54: 135895.62 | J54: 148394.71 | K54: 136672.78 | L54: 162617.46 | M54: 149497.41 | N54: 1227375.25
B55: 23:02 | C55: 23:02 Billable Compliance - Non-routine compliance activities | D55: 16497.89 | E55: 23104.54 | F55: 20676.44 | G55: 26961.07 | H55: 22294.58 | I55: 10347.43 | J55: 23811.79 | K55: 19442.18 | L55: 19345.08 | M55: 18599.67 | N55: 201080.67
B56: 23:03 | C56: 23:03 Compliance - EE/PD Intake Only | D56: 2029.58 | E56: 600.34 | F56: 582.82 | G56: 619.18 | H56: 678.17 | I56: 327.72 | J56: 708.58 | K56: 393.54 | L56: 185.76 | M56: 425.76 | N56: 6551.45
B57: 23:04 | C57: 23:04 Billable Compliance - Source Test Observation | D57: 317.18 | E57: 243.54 | F57: 1879.39 | G57: 1890.9 | H57: 3308.79 | I57: 5029.78 | J57: 3506.22 | K57: 1881.86 | L57: 1229.22 | M57: 1139.12 | N57: 20426
B58: 23:05 | C58: 23:05 Compliance - Non-permit related investigations/complaint response | D58: 870.09 | E58: 194.88 | F58: 1612.73 | G58: 2700.01 | H58: 7268 | I58: 262.2 | J58: 0 | K58: 0 | N58: 12907.91
B59: 24:01 | C59: 24:01 Public Assistance - General questions from the public or FOIA | D59: 82.08 | E59: 534 | F59: 991.18 | G59: 648.78 | H59: 285.75 | I59: 55.88 | J59: 0 | K59: 27.57 | N59: 2625.24
B60: 24:02 | C60: 24:02 Other/Specialty - Formal or informal appeal by 3rd party | D60: 1359.11 | H60: 1431.27 | I60: 13883.81 | J60: 6373.41 | M60: 13.41 | N60: 23061.01
B61: 24:03 | C61: 24:03 Other/Specialty - Formal or informal adjudicatory appeal | D61: 13195.85 | E61: 1846.22 | F61: 380.12 | G61: 5270.09 | H61: 5502.96 | I61: 2102.17 | J61: 1012.44 | M61: 5667.18 | N61: 34977.03
B62: 24:04 | C62: 24:04 Other/Specialty - Non-permit related adjudicatory hearing | E62: 437.18 | G62: 19.73 | H62: 0 | I62: 16.96 | N62: 473.87
B63: 24:06 | C63: 24:06 Other/Specialty - Small Business Technical Assistance | I63: 0 | N63: 0
B64: 24:07 | C64: 24:07 Other/Specialty - Formal fee appeal review as requested by permittee | H64: 198.04 | I64: 1141.95 | K64: 52.01 | M64: 522.79 | N64: 1914.79
A65: Grand Total | D65: 542987.04 | E65: 548701.85 | F65: 462679.75 | G65: 546960.44 | H65: 544359.23 | I65: 532371.5 | J65: 536550.67 | K65: 477075.64 | L65: 510297.36 | M65: 492565.68 | N65: 5194549.16
C67: Baseline | D67: =D65/1.49 -> 364420.8322 | E67: =E65/1.49 -> 368256.2752 | F67: 310523.3221 | G67: 367087.5436 | H67: 365341.7651 | I67: 357296.3087 | J67: 360101.1208 | K67: 320184.9933 | L67: 342481.4497 | M67: 330580.9933 | N67: =SUM(D67:M67) -> 3486274.604
C69: AKSAS/IRIS Wages | D69: 367291.79 | E69: 391221.07 | F69: 326235.7 | G69: 372518.08 | H69: 364145.54 | I69: 363728.37 | J69: 342860.97 | K69: 345115.19 | L69: 333287.9 | M69: 324022.64 | N69: =SUM(D69:M69) -> 3530427.25
C70: Add Personal Services Transfer portion | D70: =2002.75*0.54 -> 1081.485 | E70: =5421.63*0.54 -> 2927.6802 | F70: =-4713.1*0.54 -> -2545.074 | G70: =-654.59*0.54 -> -353.4786 | H70: 6050.541437 | I70: -406.8408829 | J70: 3999.198805 | K70: 3.809003158 | L70: 6201.30389 | M70: 2739.017637 | N70: =SUM(D70:M70) -> 19697.64249
C71: Total Accounting System Wages | D71: =SUM(D69+D70) -> 368373.275 | E71: 394148.7502 | F71: 323690.626 | G71: 372164.6014 | H71: =SUM(H69+H70) -> 370196.0814 | I71: =SUM(I69+I70) -> 363321.5291 | J71: =SUM(J69+J70) -> 346860.1688 | K71: =SUM(K69+K70) -> 345118.999 | L71: =SUM(L69+L70) -> 339489.2039 | M71: =SUM(M69+M70) -> 326761.6576 | N71: =SUM(D71:M71) -> 3550124.892
C73: Difference | D73: =D67-D71 -> -3952.442785 | E73: -25892.47503 | F73: -13167.30385 | G73: -5077.057776 | H73: =H67-H71 -> -4854.316336 | I73: -6025.220392 | J73: =J67-J71 -> 13240.952 | K73: =K67-K71 -> -24934.00571 | L73: 2992.245775 | M73: 3819.335652 | N73: =SUM(D73:M73) -> -63850.28846

Sheet Travel
A3: Travel
A4: Sum of Sum of Cost Amount | D4: FY
A5: CC | B5: Current Activity Code | C5: Current Activity Code Description | D5: FY2010 | E5: FY2011 | F5: FY2012 | G5: FY2013 | H5: FY2014 | I5: FY2015 | J5: FY2016 | K5: FY2017 | L5: FY2018 | M5: FY2019 | N5: Grand Total
A6: 18335555 | B6: 2000:02 | C6: 2000:02 TRAVEL - TRANSPORTATION (NON-SPECIFIC) | F6: 45.18 | I6: 7621.31 | J6: 4648.16 | N6: 12314.65
B7: 2000:03 | C7: 2000:03 TRAVEL - TRANSPORTATION (ROUTINE COMPLIANCE) | D7: 27180.24 | E7: 10136.54 | F7: 25113.63 | G7: 27495.74 | I7: 5739.12 | J7: 8848.77 | K7: 19486.21 | L7: 10981.88 | M7: 4213.35 | N7: 139195.48
B8: 2000:04 | C8: 2000:04 TRAVEL - TRANSPORTATION (FLAT FEE PERMITTING) | D8: 4691.88 | E8: 10232.52 | F8: 1798.91 | H8: 29549.74 | I8: 11129.4 | K8: 45 | N8: 57447.45
B9: 2000:05 | C9: 2000:05 TRAVEL - TRANSPORTATION (TIME & MATERIAL) | D9: 3525.46 | E9: 4142.94 | F9: 1103.94 | G9: 5067.02 | J9: 2655.46 | K9: 1258.04 | L9: 1389.25 | M9: 3838.32 | N9: 22980.43
B10: 3069:00 | C10: 3069:00 CONTRACTUAL SERVICES - STO FEES | I10: 1454.95 | J10: 4 | K10: 92.88 | L10: 65.88 | M10: 67 | N10: 1684.71
B11: 4000:00 | C11: 4000:00 SUPPLIES | H11: 4.69 | N11: 4.69
A12: Grand Total | D12: 35397.58 | E12: 24512 | F12: 28061.66 | G12: 32562.76 | H12: 29554.43 | I12: 25944.78 | J12: 16156.39 | K12: 20882.13 | L12: 12437.01 | M12: 8118.67 | N12: 233627.41
C14: AKSAS/IRIS | D14: 35458.91 | E14: 23995.71 | F14: 26439.68 | G14: 32130.59 | H14: 29558.86 | I14: 25262.79 | J14: =14617.25+1146.5 -> 15763.75 | K14: 20965 | L14: 13030.64 | M14: 17138.75
C15: Difference | D15: =D12-D14 -> -61.33 | E15: =E12-E14 -> 516.29 | F15: 1621.98 | G15: 432.17 | H15: -4.43 | I15: 681.99 | J15: 392.64 | K15: -82.87 | L15: -593.63 | M15: =M12-M14 -> -9020.08 | N15: =SUM(H15:M15) -> -8626.38 | O15: =SUM(N15/SUM(H12:M12)) -> -0.07627659295
A24: Sum of Sum of Cost Amount | D24: FY
A25: CC | B25: Current Activity Code | C25: Current Activity Code Description | D25: FY2010 | E25: FY2011 | F25: FY2012 | G25: FY2013 | H25: FY2014 | I25: FY2015 | J25: FY2016 | K25: FY2017 | L25: FY2018 | M25: FY2019 | N25: Grand Total
A26: 18335666 | B26: 2000:01 | C26: 2000:01 TRAVEL - TRANSPORTATION (AIRFARE/CAR RENTAL) | L26: 161.78 | N26: 161.78
B27: 2000:02 | C27: 2000:02 TRAVEL - TRANSPORTATION (NON-SPECIFIC) | I27: 212.37 | J27: 2368.03 | N27: 2580.4
B28: 2000:03 | C28: 2000:03 TRAVEL - TRANSPORTATION (ROUTINE COMPLIANCE) | D28: 2319.48 | F28: 2887.18 | G28: 4682.93 | I28: 926.77 | J28: 1049.57 | K28: 5976.15 | L28: 3316.62 | M28: 724.19 | N28: 21882.89
B29: 2000:04 | C29: 2000:04 TRAVEL - TRANSPORTATION (FLAT FEE PERMITTING) | D29: 206.75 | E29: 108.54 | F29: 258.75 | G29: 437.99 | H29: 3078.41 | I29: 3433.75 | K29: 79.5 | N29: 7603.69
B30: 2000:05 | C30: 2000:05 TRAVEL - TRANSPORTATION (TIME & MATERIAL) | D30: 494.61 | E30: 417.49 | F30: 493.95 | G30: 1028.09 | J30: 1238.26 | K30: 1004.69 | M30: 2662.04 | N30: 7339.13
B31: 3069:00 | C31: 3069:00 CONTRACTUAL SERVICES - STO FEES | I31: 9.04 | K31: 25.98 | L31: 44.72 | M31: 8.5 | N31: 88.24
A32: Grand Total | D32: 3020.84 | E32: 526.03 | F32: 3639.88 | G32: 6149.01 | H32: 3078.41 | I32: 4581.93 | J32: 4655.86 | K32: 7086.32 | L32: 3523.12 | M32: 3394.73 | N32: 39656.13
C34: AKSAS/IRIS | D34: 2752.64 | E34: 413.83 | F34: 6124.62 | G34: 5985.97 | H34: 4836.87 | I34: 2849.37 | J34: 4748.26 | K34: 7448.82 | L34: 3166.12 | M34: 4131.21
C35: Difference | D35: =D32-D34 -> 268.2 | E35: =E32-E34 -> 112.2 | F35: -2484.74 | G35: 163.04 | H35: -1758.46 | I35: 1732.56 | J35: -92.4 | K35: -362.5 | L35: 357 | M35: -736.48

Sheet General Contractual
A3: General Contractual and Ad Order
A4: Sum of Sum of Cost Amount | D4: FY
A5: CC | B5: Current Activity Code | C5: Current Activity Code Description | D5: FY2010 | E5: FY2011 | F5: FY2012 | G5: FY2013 | H5: FY2014 | I5: FY2015 | J5: FY2016 | K5: FY2017 | L5: FY2018 | M5: FY2019 | N5: Grand Total
A6: 18335555 | B6: 3046:02 | C6: 3046:02 AD ORDER (FLAT FEE PERMITTING) | D6: 18757.13 | E6: 6623.57 | F6: 15661.8 | G6: 11993.38 | H6: 10780.37 | I6: 27305.41 | J6: 31076.22 | K6: 11476.52 | L6: 5465.04 | M6: 2395.72 | N6: 141535.16
B7: 3046:03 | C7: 3046:03 AD ORDER (TIME & MATERIAL) | D7: 1945.22 | E7: 1811 | F7: 4330.48 | G7: 5250.43 | H7: 7351.46 | I7: 1206.74 | J7: 7272.32 | K7: 7234.27 | L7: 2210.7 | M7: 928.06 | N7: 39540.68
B8: 3061:01 | C8: 3061:01 CONTRACTUAL (ROUTINE COMPLIANCE) | D8: 117269.91 | E8: 185849.38 | F8: 55981.52 | G8: 4835.34 | H8: 2169.6 | J8: 21.68 | N8: 366127.43
B9: 3061:02 | C9: 3061:02 CONTRACTUAL (FLAT FEE PERMITTING) | D9: 296152.22 | E9: 119648.23 | F9: 122402.47 | G9: 119035.85 | H9: 52186.89 | I9: 56.33 | J9: 5273.84 | N9: 714755.83
B10: 3061:03 | C10: 3061:03 (TIME & MATERIAL) | D10: 100258.77 | E10: 18762.82 | F10: 40368.51 | G10: 23732.88 | H10: 67588.55 | I10: 15463.46 | J10: 61.04 | N10: 266236.03
A11: Grand Total | D11: 534383.25 | E11: 332695 | F11: 238744.78 | G11: 164847.88 | H11: 140076.87 | I11: 44031.94 | J11: 43705.1 | K11: 18710.79 | L11: 7675.74 | M11: 3323.78 | N11: 1528195.13
C14: AKSAS/IRIS | D14: 534784.3 | E14: 332695 | F14: 238745.53 | G14: 164847.88 | H14: 137251.54 | I14: =SUM(28215.65+16703.64) -> 44919.29 | J14: =SUM(36705.14+5247.34+1643.4) -> 43595.88 | K14: =SUM(19048.04+0) -> 19048.04 | L14: =SUM(7854.99) -> 7854.99 | M14: =2807.28+600+185 -> 3592.28
C15: Difference | D15: =D11-D14 -> -401.05 | E15: =E11-E14 -> 0 | F15: -0.7499999999 | G15: 0 | H15: =H11-H14 -> 2825.33 | I15: =I11-I14 -> -887.35 | J15: =J11-J14 -> 109.22 | K15: -337.25 | L15: -179.25 | M15: -268.5 | N15: =SUM(H15:M15) -> 1262.2 | O15: =SUM(N15/SUM(H11:M11)) -> 0.004901286566
A27: Sum of Sum of Cost Amount | D27: FY
A28: CC | B28: Current Activity Code | C28: Current Activity Code Description | D28: FY2010 | E28: FY2011 | F28: FY2012 | G28: FY2013 | H28: FY2014 | I28: FY2015 | J28: FY2016 | K28: FY2017 | L28: FY2018 | M28: FY2019 | N28: Grand Total
A29: 18335666 | B29: 3046:02 | C29: 3046:02 AD ORDER (FLAT FEE PERMITTING) | D29: 1200.76 | E29: 4842.18 | G29: 720.44 | H29: 1640.8 | I29: 1983.84 | J29: 388.38 | N29: 10776.4
B30: 3046:03 | C30: 3046:03 AD ORDER (TIME & MATERIAL) | D30: 1022.56 | E30: 5689.5 | F30: 7303.07 | G30: 9783.14 | H30: 1035.84 | I30: 827 | J30: 619.38 | K30: 359 | L30: 1611.16 | M30: 542.84 | N30: 28793.49
B31: 3061:01 | C31: 3061:01 CONTRACTUAL (ROUTINE COMPLIANCE) | D31: 10279.43 | E31: 30481.62 | F31: 370.06 | G31: 2169.6 | H31: 2169.6 | N31: 45470.31
B32: 3061:02 | C32: 3061:02 CONTRACTUAL (FLAT FEE PERMITTING) | D32: 8516.72 | E32: 103234.8 | F32: 5052.72 | G32: 2378.31 | I32: 2.71 | N32: 119185.26
B33: 3061:03 | C33: 3061:03 (TIME & MATERIAL) | D33: 141434.62 | E33: 103188.78 | F33: 66932.35 | G33: 86150.69 | H33: 75408.31 | I33: 8030.45 | J33: 36378.75 | K33: 57.6 | N33: 517581.55
A34: Grand Total | D34: 162454.09 | E34: 247436.88 | F34: 79658.2 | G34: 101202.18 | H34: 80254.55 | I34: 10844 | J34: 37386.51 | K34: 416.6 | L34: 1611.16 | M34: 542.84 | N34: 721807.01
C37: AKSAS/IRIS | D37: 162938.17 | E37: 247436.88 | F37: 79658.2 | G37: 101253.14 | H37: 78935.21 | I37: =3107.34+8002.73 -> 11110.07 | J37: =1877.5+1366.76+16736.15+17672.7 -> 37653.11 | K37: =2295.4 -> 2295.4 | L37: =1611.16 -> 1611.16 | M37: =687.5+542.84 -> 1230.34
C38: Difference | D38: =D34-D37 -> -484.08 | E38: =E34-E37 -> 0 | F38: =F34-F37 -> 0 | G38: =G34-G37 -> -50.96 | H38: =H34-H37 -> 1319.34 | I38: -266.07 | J38: -266.6 | K38: -1878.8 | L38: 0 | M38: -687.5 | N38: =SUM(H38:M38) -> -1779.63 | O38: =SUM(N38/SUM(H34:M34)) -> -0.01357919223

Sheet Legal
A3: Legal
A4: Sum of Sum of Cost Amount | D4: FY
A5: CC | B5: Current Activity Code | C5: Current Activity Code Description | D5: FY2010 | E5: FY2011 | F5: FY2012 | G5: FY2013 | H5: FY2014 | I5: FY2015 | J5: FY2016 | K5: FY2017 | L5: FY2018 | M5: FY2019 | N5: Grand Total
A6: 18335555 | B6: 3088:00 | C6: 3088:00 STATE OF ALASKA DEPT OF LAW | H6: 36765.25 | I6: 39696.47 | J6: 43052.29 | K6: 63059.07 | L6: 32022.56 | M6: 35479.01 | N6: 250074.65
B7: 74112:00 | C7: 3088:00 STATE OF ALASKA DEPT OF LAW | D7: 24923.56 | E7: 31569.2 | F7: 44736.66 | G7: 51899.25 | N7: 153128.67
A8: Grand Total | D8: 24923.56 | E8: 31569.2 | F8: 44736.66 | G8: 51899.25 | H8: 36765.25 | I8: 39696.47 | J8: 43052.29 | K8: 63059.07 | L8: 32022.56 | M8: 35479.01 | N8: 403203.32
C10: AKSAS/IRIS | D10: 24923.56 | E10: 31572.2 | F10: 44736.48 | G10: 51899.25 | H10: 36695.08 | I10: 39696.47 | J10: =25528.08+17524.21 -> 43052.29 | K10: 63153.6 | L10: 31990.38 | M10: 35479.01
C11: Difference | D11: =D8-D10 -> 0 | E11: =E8-E10 -> -3 | F11: 0.18 | G11: 0 | H11: =H8-H10 -> 70.17 | I11: =I8-I10 -> 0 | J11: =J8-J10 -> 0 | K11: -94.53 | L11: 32.18 | M11: 0
A24: Sum of Sum of Cost Amount | D24: FY
A25: CC | B25: Current Activity Code | C25: Current Activity Code Description | D25: FY2010 | E25: FY2011 | F25: FY2012 | G25: FY2013 | H25: FY2014 | I25: FY2015 | J25: FY2016 | K25: FY2017 | L25: FY2018 | M25: FY2019 | N25: Grand Total
A26: 18335666 | B26: 3088:00 | C26: 3088:00 STATE OF ALASKA DEPT OF LAW | H26: 66172.26 | I26: 23810.11 | J26: 30471.56 | K26: 16005.91 | L26: 5286.13 | M26: 8267.75 | N26: 150013.72
B27: 74112:00 | C27: 3088:00 STATE OF ALASKA DEPT OF LAW | D27: 6130.91 | E27: 7152.93 | F27: 7355.13 | G27: 42964.95 | N27: 63603.92
A28: Grand Total | D28: 6130.91 | E28: 7152.93 | F28: 7355.13 | G28: 42964.95 | H28: 66172.26 | I28: 23810.11 | J28: 30471.56 | K28: 16005.91 | L28: 5286.13 | M28: 8267.75 | N28: 213617.64
C30: AKSAS/IRIS | D30: 6130.91 | E30: 7152.93 | F30: 7355.13 | G30: 42964.95 | H30: 66172.26 | I30: 23810.11 | J30: =31827.14+3921 -> 35748.14 | K30: 10729.33 | L30: 5286.13 | M30: 7613.39
C31: Difference | D31: =D28-D30 -> 0 | E31: 0 | F31: 0 | G31: 0 | H31: =H28-H30 -> 0 | I31: =I28-I30 -> 0 | J31: =J28-J30 -> -5276.58 | K31: 5276.58 | L31: 0 | M31: 654.36

Sheet Fee Costs in Permit Admin CCs
A1: CC | B1: (Multiple Items)
A2: Current Activity Code | B2: (Multiple Items)
B4: Column Labels
B5: FY2010 | C5: FY2011 | D5: FY2012 | E5: FY2013 | F5: FY2014 | G5: FY2015 | H5: FY2016 | I5: FY2017 | J5: FY2018 | K5: FY2019 | L5: Grand Total
A6: Sum of Cost in FY2020 Dollars | B6: 1599237.39 | C6: 1556632.82 | D6: 1440499.94 | E6: 1512935.53 | F6: 1682303.95 | G6: 1584374.19 | H6: 1879075.44 | I6: 1657714.21 | J6: 1557148.18 | K6: 1604180.63 | L6: 16074102.28
A12: CC | B12: (Multiple Items)
A13: Current Activity Code | B13: (Multiple Items)
B15: Column Labels
B16: FY2010 | C16: FY2011 | D16: FY2012 | E16: FY2013 | F16: FY2014 | G16: FY2015 | H16: FY2016 | I16: FY2017 | J16: FY2018 | K16: FY2019 | L16: Grand Total
A17: Sum of Cost in FY2020 Dollars | B17: 911909.27 | C17: 753353.66 | D17: 458503.93 | E17: 447581.13 | F17: 391492.04 | G17: 163800.13 | H17: 191216.16 | I17: 133730.5 | J17: 65058 | K17: 60309.35 | L17: 3576954.17

Sheet COBC
A3: Row Labels | B3: Sum of Sum of Cost Amount | C3: COBC Amount
A4: 35 | B4: 521662.87 | C4: =SUM(1300000+2000+1500+3000+38750+3000+28250+30250) -> 1406750
A5: Excess Emissions - EE/PD Individual Fee | B5: 5102.83
A6: TVCPRA Time & Materials | B6: 516560.04
A7: 71 | B7: 200667.43 | C7: 95000
A8: Excess Emissions - EE/PD Individual Fee | B8: 3936.52
A9: MSS Routine Compliance | B9: 71120.32
A10: MSS Time & Materials | B10: 124499.25
A11: TITE Time & Materials | B11: 1111.34
A12: 210 | B12: 100170.02 | C12: 74000
A13: Excess Emissions - EE/PD Individual Fee | B13: 80.82
A14: TV4R Permit Administration | B14: 14952.55
A15: TV4R Routine Compliance | B15: 34884.47
A16: TV4R Time & Materials | B16: 50252.18
A17: 1282 | B17: 50502.59 | C17: =SUM(14500+47767) -> 62267
A18: Excess Emissions - EE/PD Individual Fee | B18: 23.32
A19: MSS Time & Materials | B19: 9949.38
A20: ORL ORL Time & Materials | B20: 21229.37
A21: ORL Permit Administration | B21: 7291.18
A22: ORL Routine Compliance | B22: 3300.6
A23: ORL Time & Materials | B23: 8708.74
A24: Grand Total | B24: 873002.91

Sheet Title I vs Title V
A1: Fee | B1: (Multiple Items) | C1: All Except Timetrack | E1: Add RSA Change | G1: Proportions
A3: Reconciled Source Category | B3: Sum of Sum of Cost Amount | C3: Overall Proportions
A4: Title I | B4: 3813096.07 | C4: =B4/B$6 -> 0.2200199842 | G4: =SUM(B4/SUM(B4+B5+E5)) -> 0.2179120907
A5: Title V | B5: 13517584.52 | C5: =B5/B$6 -> 0.7799800158 | E5: 167642.05 | G5: =SUM(B5+E5)/SUM(B4+B5+E5) -> 0.7820879093
A6: Grand Total | B6: 17330680.59
A9: Fee | B9: (Multiple Items) | C9: All Except Timetrack
A10: Current Activity Code | B10: (Multiple Items) | C10: Personal Services Only
A12: Reconciled Source Category | B12: Sum of Sum of Cost Amount | C12: Personal Services Proportions
A13: Title I | B13: 3197447.14 | C13: =B13/B$15 -> 0.2207650713
A14: Title V | B14: 11286035.78 | C14: =B14/B$15 -> 0.7792349287
A15: Grand Total | B15: 14483482.92

Sheet RSA Change
A3: Row Labels | B3: Sum of Sum of Cost Amount | C3: Sum of Cost in FY2020 Dollars
A4: Title V | B4: 167642.05 | C4: 172527.32
A5: AQAKLNGDATAREVIEWRSA:AQRSA | B5: 164483.03 | C5: 169241.93
A6: AQHILCORPLIBERTYNIKAICHUQRSA:AQRSA | B6: 3159.02 | C6: 3285.39
A7: #N/A | B7: 41136604.55 | C7: 45172894.22
A8: 318TVP01:HOURLY | B8: 1473.39 | C8: 1753.33
A9: ALASKATANKERCO:AQFOIA | B9: 149.07 | C9: 169.94
A10: AMAIRTOOLS:TIMETRACK | B10: 266450.17 | C10: 306332.51
A11: AMAIRTOOLSGFPR:TIMETRACK | B11: 324779.87 | C11: 356633.72
A12: AMAIRTOOLST5:TIMETRACK | B12: 356757.77 | C12: 391752.19
A13: AMATCROMER:TIMETRACK | B13: 1669.8 | C13: 1896.02
A14: AMCATS:TIMETRACK | B14: 8588.56 | C14: 9450.44
A15: AMEISAIRTOOLS:TIMETRACK | B15: 121617.6 | C15: 140994.18
A16: AQ0001PL201P:PAEL1 | B16: 118.97 | C16: 129.68
A17: AQ0001PL201P:PL21 | B17: 66.25 | C17: 77.07
A18: AQ0001PL201P:PL22 | B18: 887.6 | C18: 993.62
A19: AQ0002PL201P:PAEL | B19: 411.13 | C19: 420.65
A20: AQ0002PL201P:PAEL1 | B20: 435.01 | C20: 461.88
A21: AQ0002PL201P:PL21 | B21: 1375.06 | C21: 1575.18
A22: AQ0003PL201P:PL22 | B22: 14.03 | C22: 16.7
A23: AQ0003PL203P:PAEL | B23: 1662.19 | C23: 1698.77
A24: AQ0003PL203P:PAEL1 | B24: 91.45 | C24: 97.18
A25: AQ0003PL203P:PL21 | B25: 531.14 | C25: 596.27
A26: AQ0005PL201P:PAEL | B26: 286.49 | C26: 294.79
A27: AQ0005PL201P:PAEL1 | B27: 169.14 | C27: 180.79
A28: AQ0005PL201P:PL21 | B28: 31.64 | C28: 37.65
A29: AQ0005PL201P:PL22 | B29: 589.56 | C29: 659.76
A30: AQ0006PL201P:PL22 | B30: 395.81 | C30: 453.21
A31: AQ0007PL201P:PL21 | B31: 373.17 | C31: 423.64
A32: AQ0007PL202P:PAEL | B32: 425.43 | C32: 438.81
A33: AQ0007PL202P:PAEL1 | B33: 162.66 | C33: 172.42
A34: AQ0007PL202P:PL21 | B34: 414.68 | C34: 462.92
A35: AQ0008PL101P:PL11 | B35: 472.65 | C35: 542.84
A36: AQ0008PL102P:PL12 | B36: 292.25 | C36: 331.31
A37: AQ0009MSS01P:RTC1 | B37: 46.65 | C37: 54.58
A38: AQ0009MSS02P:ADS1 | B38: 128.57 | C38: 150.94
A39: AQ0009MSS02P:MSS1 | B39: 171.76 | C39: 189.06
A40: AQ0009MSS02P:MSSTI | B40: 113.48 | C40: 115.75
A41: AQ0009MSS03P:MSS1 | B41: 7011.91 | C41: 7853.34
A42: AQ0009MSS04P:MSS1 | B42: 4255.49 | C42: 4681.04
A43: AQ0009MSS05A:MSS1 | B43: 2663.08 | C43: 2921.74
A44: AQ0009MSS05A:MSSTI | B44: 176.87 | C44: 183.94
A45: AQ0009MSS05A:MSSTI1 | B45: 303.09 | C45: 330.37
A46: AQ0009MSS06P:MSSTI | B46: 14292.38 | C46: 14664.81
A47: AQ0009MSS07P:MSSTI | B47: 1577.32 | C47: 1608.87
A48: AQ0009PAA01A:PRE1 | B48: 2344.45 | C48: 2789.9
A49: AQ0009PAA02P:PRE2 | B49: 1550.99 | C49: 1737.23
A50: AQ0009PAA02P:TITE1 | B50: 0 | C50: 0
A51: AQ0009TVP01P:AFR1 | B51: 823.98 | C51: 978.62
A52: AQ0009TVP02P:AFR1 | B52: 21231.74 | C52: 24824.93
A53: AQ0009TVP02P:AFR2 | B53: 25527.37 | C53: 28431.8
A54: AQ0009TVP03A:AFR1 | B54: 22.02 | C54: 24.66
A55: AQ0009TVP03P:AFR1 | B55: 10021.34 | C55: 11020.45
A56: AQ0009TVP03P:TV1R | B56: 40168.73 | C56: 41295.7
A57: AQ0009TVP03P:TV1R1 | B57: 7542.66 | C57: 8043.88
A58: AQ0009TVP04A:TV1R | B58: 2523.95 | C58: 2574.43
A59: AQ0010PL201P:PAEL | B59: 732.82 | C59: 749.97
A60: AQ0010PL201P:PAEL1 | B60: 89.56 | C60: 96.13
A61: AQ0010PL201P:PL22 | B61: 3633.02 | C61: 4149.35
A62: AQ0014MSS01P:DOR1 | B62: 6697.51 | C62: 7622.18
A63: AQ0014MSS02P:MSS1 | B63: 6397.31 | C63: 7061.4
A64: AQ0014MSS03P:MSSTI | B64: 1724.65 | C64: 1765.48
A65: AQ0014ORL01P:ORL1 | B65: 2487.4 | C65: 2941.7
A66: AQ0014PAA01A:PRE1 | B66: 10188.8 | C66: 11984.01
A67: AQ0014PL201P:PL21 | B67: 22.02 | C67: 26.2
A68: AQ0014TVP01P:ALR1 | B68: 17088.84 | C68: 18912.98
A69: AQ0014TVP01P:TV9R1 | B69: 4937.81 | C69: 5258.59
A70: AQ0014TVP02P:TV9R | B70: 7858.17 | C70: 8057.86
A71: AQ0015ORL01P:ORL1 | B71: 2213.68 | C71: 2605.88
A72: AQ0015ORL02P:ORL1 | B72: 3760.73 | C72: 4264.87
A73: AQ0015ORL02P:ORLTV | B73: 1143.66 | C73: 1167
A74: AQ0015ORL02P:ORLTV1 | B74: 259.18 | C74: 277.87
A75: AQ0018ORL01P:ORL1 | B75: 2075.37 | C75: 2393.05
A76: AQ0018ORL02P:ORL1 | B76: 3419.66 | C76: 3895.55
A77: AQ0018ORL03P:ORL1 | B77: 2451.68 | C77: 2736.43
A78: AQ0018ORL04P:ORL1 | B78: 2864.17 | C78: 3150.38
A79: AQ0018ORL05A:ORL1 | B79: 765.28 | C79: 834.16
A80: AQ0018ORL05P:ORLTV | B80: 114.37 | C80: 117.63
A81: AQ0018ORL05P:ORLTV1 | B81: 1282.42 | C81: 1379.77
A82: AQ0018PAA01P:PRE1 | B82: 248.9 | C82: 274.5
A83: AQ0019PL201P:PAEL | B83: 871.06 | C83: 888.95
A84: AQ0019PL201P:PAEL1 | B84: 92.17 | C84: 98.91
A85: AQ0019PL201P:PL21 | B85: 301.62 | C85: 334.4
A86: AQ0021MSS01A:MSS1 | B86: 6339.13 | C86: 7416.78
A87: AQ0021MSS02P:MSS1 | B87: 5253.21 | C87: 5988.66
A88: AQ0021MSS02P:MSSTI | B88: 56.92 | C88: 59.2
A89: AQ0021PAA01P:PRE1 | B89: 2002.03 | C89: 2373.36
A90: AQ0021PAA01P:TITE1 | B90: 0 | C90: 0
A91: AQ0021TVP02P:AJR1 | B91: 1187.16 | C91: 1409.35
A92: AQ0021TVP03P:AJR1 | B92: 9825.61 | C92: 11200.39
A93: AQ0021TVP03P:TV6R1 | B93: 2511.98 | C93: 2676.57
A94: AQ0021TVP04A:AJR1 | B94: 3640.57 | C94: 4004.63
A95: AQ0021TVP04A:TV6R1 | B95: 4550.87 | C95: 4960.45
A96: AQ0021TVP04P:TV6R | B96: 3803.86 | C96: 3946.52
A97: AQ0021TVP04P:TV6R1 | B97: 4371.83 | C97: 4634.14
A98: AQ0023ORL01P:ORL1 | B98: 1599.43 | C98: 1831.89
A99: AQ0023ORL02P:ORL2 | B99: 798.13 | C99: 900.97
A100: AQ0023ORL03P:ORL1 | B100: 3901.49 | C100: 4291.16
A101: AQ0023ORL03P:ORLTV | B101: 129.7 | C101: 132.44
A102: AQ0023ORL03P:ORLTV1 | B102: 525.54 | C102: 561.28
A103: AQ0023PAA01P:PRE1 | B103: 409.72 | C103: 450.69
A104: AQ0024ORL01P:ORL1 | B104: 857.49 | C104: 990.03
A105: AQ0024ORL02P:ORL1 | B105: 5667.41 | C105: 6454.2
A106: AQ0024ORL03P:ORL1 | B106: 3241 | C106: 3565.1
A107: AQ0024ORL03P:ORLTV1 | B107: 208.31 | C107: 227.06
A108: AQ0024ORL04P:ORLTV | B108: 115.93 | C108: 119.22
A109: AQ0024ORL04P:ORLTV1 | B109: 2636.18 | C109: 2845.96
A110: AQ0024PAA01P:PRE1 | B110: 95.38 | C110: 107.25
A111: AQ0024PAA01P:TITE1 | B111: 120.56 | C111: 131.41
A112: AQ0025ORL01P:ORL1 | B112: 68.47 | C112: 81.48
A113: AQ0026ORL01P:ORL1 | B113: 1067.45 | C113: 1202.89
A114: AQ0026ORL01P:ORLTV | B114: 1017.52 | C114: 1054.36
A115: AQ0026ORL01P:ORLTV1 | B115: 195.15 | C115: 207.82
A116: AQ0027PL201P:PAEL | B116: 141.45 | C116: 146.06
A117: AQ0027PL201P:PAEL1 | B117: 449.52 | C117: 479.84
A118: AQ0027PL201P:PL21 | B118: 666.13 | C118: 756.74
A119: AQ0028ORL01P:ORL2 | B119: 46.69 | C119: 55.56
A120: AQ0028ORL02P:ORL1 | B120: 476.41 | C120: 551.64
A121: AQ0029PL201P:PAEL | B121: 756.71 | C121: 775.23
A122: AQ0029PL201P:PAEL1 | B122: 60.21 | C122: 65
A123: AQ0029PL201P:PL21 | B123: 603.88 | C123: 677.19
A124: AQ0033CPT01P:CPT1 | B124: 276.69 | C124: 304.36
A125: AQ0033CPT01P:TITE1 | B125: 0 | C125: 0
A126: AQ0033MSS01A:MSSTI1 | B126: 50.83 | C126: 53.88
A127: AQ0033TVP01P:CPR1 | B127: 2525.43 | C127: 2980.73
A128: AQ0033TVP02P:CPR1 | B128: 23466.03 | C128: 27032.24
A129: AQ0033TVP02P:CPRA1 | B129: 2636.14 | C129: 2872.64
A130: AQ0033TVP03A:CPR1 | B130: 2808.45 | C130: 3087.08
A131: AQ0033TVP03P:CPRA | B131: 7885.68 | C131: 8115.67
A132: AQ0033TVP03P:CPRA1 | B132: 9843.33 | C132: 10622.42
A133: AQ0034MSS01P:MSSTI1 | B133: 2054.79 | C133: 2170.58
A134: AQ0034MSS01P:POA1 | B134: 9518.1 | C134: 10691.3
A135: AQ0034MSS02A:MSSTI1 | B135: 2076.64 | C135: 2201.24
A136: AQ0034MSS02P:MSSTI | B136: 2406.33 | C136: 2467.39
A137: AQ0034MSS02P:MSSTI1 | B137: 2502.86 | C137: 2602.98
A138: AQ0034MSS03P:MSSTI | B138: 3824.06 | C138: 3900.55
A139: AQ0034PAA01P:TITE1 | B139: 182.61 | C139: 193.57
A140: AQ0034TVP02A:TVTE1 | B140: 8147.7 | C140: 8572.62
A141: AQ0035CPT04P:CPR1 | B141: 76.12 | C141: 89.45
A142: AQ0035MSS03A:MSS1 | B142: 886.51 | C142: 966.3
A143: AQ0035MSS03P:MSSTI1 | B143: 913.99 | C143: 996.24
A144: AQ0035MSS04P:MSSTI | B144: 1834.37 | C144: 1906.81
A145: AQ0035MSS04P:MSSTI1 | B145: 6053.87 | C145: 6598.72
A146: AQ0035MSS05P:MSSTI1 | B146: 1771.07 | C146: 1877.33
A147: AQ0035MSS06P:MSSTI1 | B147: 1073.77 | C147: 1138.2
A148: AQ0035MSS07A:MSSTI | B148: 6263.97 | C148: 6490.75
A149: AQ0035MSS07A:MSSTI1 | B149: 1454.32 | C149: 1541.58
A150: AQ0035MSS08P:MSSTI | B150: 8820.55 | C150: 8996.96
A151: AQ0035PAA01A:PRE1 | B151: 7246.34 | C151: 8070.05
A152: AQ0035PAA01A:TITE | B152: 1678.65 | C152: 1731.01
A153: AQ0035PAA01A:TITE1 | B153: 434.07 | C153: 460.11
A154: AQ0035TVP01P:AFR1 | B154: 112573.14 | C154: 130879.4
A155: AQ0035TVP01P:CPR1 | B155: 507.18 | C155: 557.9
A156: AQ0035TVP02P:AFR1 | B156: 91511.29 | C156: 105950.06
A157: AQ0035TVP02P:CPR1 | B157: 133682.18 | C157: 146830.35
A158: AQ0035TVP02P:CPRA | B158: 49754.22 | C158: 51390.61
A159: AQ0035TVP02P:CPRA1 | B159: 64692.33 | C159: 69494.53
A160: AQ0035TVP03A:CPRA | B160: 25328.33 | C160: 26032.1
A161: AQ0035TVP03A:CPRA1 | B161: 5106.6 | C161: 5413
A162: AQ0036MSS01A:MSSTI1 | B162: 104.48 | C162: 110.75
A163: AQ0036TVP01P:CPR1 | B163: 4137.44 | C163: 4852.46
A164: AQ0036TVP02P:CPR1 | B164: 17681.06 | C164: 20433.99
A165: AQ0036TVP02P:CPRA1 | B165: 489.83 | C165: 533.64
A166: AQ0036TVP03P:CPRA | B166: 2954.5 | C166: 3049.79
A167: AQ0036TVP03P:CPRA1 | B167: 10436.45 | C167: 11185.12
A168: AQ0038ORL01P:ORL1 | B168: 115.74 | C168: 137.73
A169: AQ0039PL201P:PL21 | B169: 86.34 | C169: 98.79
A170: AQ0040PL101P:PAEL | B170: 5365.18 | C170: 5475.94
A171: AQ0040PL101P:PAEL1 | B171: 166.46 | C171: 180.68
A172: AQ0040PL101P:PL12 | B172: 548.03 | C172: 613.14
A173: AQ0043ORL01P:ORL1 | B173: 1503.43 | C173: 1708.53
A174: AQ0043ORL01P:ORLTV | B174: 842.88 | C174: 873.54
A175: AQ0043ORL01P:ORLTV1 | B175: 85.17 | C175: 91.83
A176: AQ0046PL101P:PAEL | B176: 92.35 | C176: 94.66
A177: AQ0046PL101P:PAEL1 | B177: 300.34 | C177: 319.57
A178: AQ0046PL101P:PL11 | B178: 567.69 | C178: 638.61
A179: AQ0047PL101P:PAEL | B179: 67.16 | C179: 68.98
A180: AQ0047PL101P:PAEL1 | B180: 206.52 | C180: 219.11
A181: AQ0047PL101P:PL11 | B181: 1096.68 | C181: 1246.84
A182: AQ0048PL101P:PAEL | B182: 83.96 | C182: 86.11
A183: AQ0048PL101P:PAEL1 | B183: 261.14 | C183: 278.02
A184: AQ0048PL101P:PL11 | B184: 482.23 | C184: 543.06
A185: AQ0049MSS01P:MSSTI | B185: 2138.27 | C185: 2219.03
A186: AQ0049MSS01P:MSSTI1 | B186: 5060.32 | C186: 5489.96
A187: AQ0049ORL01P:ORL1 | B187: 1025.66 | C187: 1163.49
A188: AQ0049ORL01P:ORLTV1 | B188: 135 | C188: 146.14
A189: AQ0049PAA01P:TITE1 | B189: 264 | C189: 287.76
A190: AQ0052PL201P:PL21 | B190: 271.79 | C190: 311.38
A191: AQ0053GP901P:GP91 | B191: 36.71 | C191: 43.68
A192: AQ0053GP902P:GP91 | B192: 106.3 | C192: 124.37
A193: AQ0053MG901P:MG91 | B193: 348.92 | C193: 408.24
A194: AQ0053MSS01P:DOR1 | B194: 4722.43 | C194: 5442.89
A195: AQ0053MSS02P:DOR1 | B195: 1864.45 | C195: 2162.27
A196: AQ0053MSS03A:FTN1 | B196: 594.6 | C196: 697.17
A197: AQ0053MSS04P:MSS1 | B197: 5105.22 | C197: 5690.16
A198: AQ0053MSS04P:MSSTI | B198: 846.58 | C198: 875.27
A199: AQ0053MSS04P:MSSTI1 | B199: 1665.74 | C199: 1809.93
A200: AQ0053PAA01P:PRE1 | B200: 686.48 | C200: 757.77
A201: AQ0053PAA01P:TITE1 | B201: 716.35 | C201: 780.83
A202: AQ0053TVP02P:ALR1 | B202: 16852.01 | C202: 18880.3
... 3649 more rows

Sheet Pers Svcs Recov in Fees
A1: Current Activity Code | B1: (Multiple Items)
A3: Sum of Cost in FY2020 Dollars | B3: Column Labels
A4: Row Labels | B4: FY2010 | C4: FY2011 | D4: FY2012 | E4: FY2013 | F4: FY2014 | G4: FY2015 | H4: FY2016 | I4: FY2017 | J4: FY2018 | K4: FY2019 | L4: Grand Total
A5: BURN Open Burn Application Fee | B5: 8576.24 | C5: 4742.49 | D5: 5584.9 | E5: 8409.01 | F5: 5869.15 | G5: 10400.97 | H5: 6450.46 | I5: 11442.41 | J5: 14088.68 | K5: 7647.64 | L5: 83211.95
A6: BURN Time & Materials (adjudacatory hearing) | D6: 403.1 | G6: 644.66 | L6: 1047.76
A7: Excess Emissions - EE/PD Individual Fee | B7: 5757.42 | C7: 9426.85 | D7: 9192.47 | E7: 5902.59 | F7: 6928.43 | G7: 2379.21 | H7: 3353.7 | I7: 2473.45 | J7: 2282.35 | K7: 2568.16 | L7: 50264.63
A8: Fee Appeal | B8: 48.84 | C8: 658.23 | D8: 51.51 | E8: 225.53 | I8: 181.08 | L8: 1165.19
A9: Fee Appeal permit administration fee | D9: 261.96 | E9: 151 | F9: 217.84 | G9: 253.94 | H9: 1568.56 | I9: 74.94 | J9: 243.42 | K9: 1470.04 | L9: 4241.7
A10: FOIA | B10: 6387.65 | C10: 2137.37 | D10: 169.94 | H10: 0 | I10: 0 | J10: 3629.43 | K10: 799.79 | L10: 13124.18
A11: GP3 Routine Compliance | B11: 35654.97 | C11: 27339.58 | D11: 29599.04 | E11: 27037.42 | F11: 28421.54 | G11: 18249.66 | H11: 19712.33 | I11: 11899.98 | J11: 11138.84 | K11: 7824.27 | L11: 216877.63
A12: GP3 Time & Materials | B12: 6799.05 | C12: 2528.85 | D12: 2555.46 | E12: 2570.51 | F12: 685.95 | G12: 2897.15 | H12: 1177.5 | I12: 525.88 | J12: 3725.35 | K12: 95.59 | L12: 23561.29
A13: GP4 Permit Administration (Development) | B13: 48.84 | D13: 21.77 | L13: 70.61
A14: GP4 Routine Compliance | B14: 1120.49 | C14: 1797.62 | D14: 1868.29 | E14: 484.44 | F14: 484.8 | G14: 292.08 | H14: 625.05 | L14: 6672.77
A15: GP4 Time & Materials | B15: 1393.39 | C15: 14.8 | F15: 6.86 | H15: 349.29 | L15: 1764.34
A16: GP9 Routine Compliance | B16: 64.26 | L16: 64.26
A17: GPA Permit Administration (Development) | G17: 8807.99 | H17: 1112.42 | L17: 9920.41
A18: GPA Routine Compliance | B18: 15319.6 | C18: 6616.8 | D18: 20103.47 | E18: 7753.93 | F18: 19259.49 | G18: 6641.34 | H18: 13941.61 | I18: 4341.25 | J18: 6865.69 | K18: 8283.12 | L18: 109126.3
A19: GPA Time & Materials | B19: 2136.79 | C19: 414.23 | D19: 735.99 | E19: 3019.76 | F19: 2198.16 | G19: 416.35 | H19: 456.45 | I19: 81.4 | J19: 337.2 | K19: 127.57 | L19: 9923.9
A20: INTEREST | E20: 0 | L20: 0
A21: MG1 Routine Compliance | B21: 52.81 | C21: 381.93 | D21: 556.64 | E21: 201.69 | F21: 440.22 | G21: 668.24 | H21: 1581.06 | I21: 419.76 | J21: 227.88 | K21: 526.9 | L21: 5057.13
A22: MG1 Time & Materials | B22: 4061.72 | D22: 185.87 | H22: 3059.36 | I22: 424.95 | L22: 7731.9
A23: MG2 Permit Administration (Development) | H23: 2924.72 | I23: 7150.82 | J23: 39705.14 | K23: 7927.96 | L23: 57708.64
A24: MG2 Routine Compliance | K24: 2576.94 | L24: 2576.94
A25: MG2 Time & Materials | I25: 209.38 | J25: 352.89 | K25: 5670.21 | L25: 6232.48
A26: MG3 Permit Administration (Development) | G26: 55.23 | I26: 12006.91 | L26: 12062.14
A27: MG3 Routine Compliance | B27: 25123.61 | C27: 25711.56 | D27: 33851.84 | E27: 37529.02 | F27: 60174.8 | G27: 47743.46 | H27: 42213.25 | I27: 37417.45 | J27: 34502.94 | K27: 50253.01 | L27: 394520.94
A28: MG3 Time & Materials | B28: 5794.04 | C28: 9134.35 | D28: 8513.99 | E28: 11646.47 | F28: 24388.53 | G28: 8760.89 | H28: 9136.99 | I28: 8762.98 | J28: 6974.55 | K28: 1616.35 | L28: 94729.14
A29: MG9 Permit Administration (Development) | I29: 11940.78 | L29: 11940.78
A30: MG9 Routine Compliance | B30: 7445.49 | C30: 32382.24 | D30: 31966.79 | E30: 32739.96 | F30: 29764.43 | G30: 26791.52 | H30: 50829.9 | I30: 31300.9 | J30: 40151.4 | K30: 37304.22 | L30: 320676.85
A31: MG9 Time & Materials | B31: 2166.63 | C31: 3861.62 | D31: 1920.24 | E31: 5917.04 | F31: 1712.9 | G31: 2558.67 | H31: 11788.36 | I31: 8242.65 | J31: 8718.09 | K31: 804.73 | L31: 47690.93
A32: MSS Routine Compliance | B32: 12051.3 | C32: 17197.71 | D32: 30877.63 | E32: 24338.41 | F32: 37614 | G32: 53152.31 | H32: 65027.84 | I32: 56198.02 | J32: 75814.32 | K32: 60729.54 | L32: 433001.08
A33: MSS Time & Materials | B33: 114156.13 | C33: 109349.41 | D33: 106764.42 | E33: 55720.66 | F33: 129548.04 | G33: 129468.22 | H33: 103888.96 | I33: 109055.98 | J33: 96387.43 | K33: 114254.84 | L33: 1068594.09
A34: ORL Permit Administration | B34: 17192.44 | C34: 12446.95 | D34: 43196.03 | E34: 9921.87 | F34: 6920.74 | G34: 18042.86 | H34: 24723.18 | I34: 14664.22 | J34: 9563.41 | K34: 23959.3 | L34: 180631
A35: ORL Routine Compliance | B35: 16599.19 | C35: 13923.61 | D35: 21462.43 | E35: 8694.15 | F35: 15606.51 | G35: 28999.96 | H35: 16986.15 | I35: 28435.89 | J35: 22845.64 | K35: 28086.56 | L35: 201640.09
A36: ORL Time & Materials | B36: 1825.33 | C36: 1940.01 | D36: 7595.22 | E36: 6750.99 | F36: 3420.98 | G36: 3471.16 | H36: 1090.62 | I36: 3743.14 | J36: 2827.83 | K36: 1609.45 | L36: 34274.73
A37: PAEL Application Fee | B37: 483.26 | C37: 567.26 | D37: 2841.95 | E37: 557.42 | F37: 945.65 | G37: 590.44 | H37: 1323.53 | I37: 3605.49 | J37: 3040.53 | K37: 3916.27 | L37: 17871.8
A38: PAEL Routine Compliance | B38: 9558.9 | C38: 14482.83 | D38: 30362.01 | E38: 20469.69 | F38: 14165.72 | G38: 16686.03 | H38: 18174.98 | I38: 16126.86 | J38: 11187.94 | K38: 34516.89 | L38: 185731.85
A39: PAEL Time & Materials | B39: 4471.3 | C39: 5109.72 | D39: 6938.19 | E39: 3728.76 | F39: 2801.28 | G39: 1667.77 | H39: 771.34 | I39: 1544.71 | J39: 1974.34 | K39: 1891.28 | L39: 30898.69
A40: Smoke Incursion Time & Materials | C40: 48.98 | G40: 0 | I40: 0 | K40: 0 | L40: 48.98
A41: TITE Time & Materials | B41: 10834.04 | C41: 20992.84 | D41: 31254.04 | E41: 41945.05 | F41: 32999.58 | G41: 25066.94 | H41: 69454.77 | I41: 48447.42 | J41: 54010.02 | K41: 30024.81 | L41: 365029.51
A42: TV1R Permit Administration | B42: 81954.07 | C42: 69827.19 | D42: 44953.64 | E42: 82051.45 | F42: 129545.41 | G42: 97874.96 | H42: 128614.18 | I42: 58743.8 | J42: 81116.22 | K42: 39265.48 | L42: 813946.4
A43: TV1R Routine Compliance | B43: 190758.3 | C43: 166523.04 | D43: 198915.97 | E43: 118975.79 | F43: 205936.75 | G43: 143365.21 | H43: 184425.49 | I43: 168281.01 | J43: 158652.52 | K43: 191567.4 | L43: 1727401.48
A44: TV1R Time & Materials | B44: 140284.36 | C44: 114808.67 | D44: 108577.57 | E44: 160176.86 | F44: 82634.86 | G44: 121639.39 | H44: 90111.62 | I44: 62163.14 | J44: 81689.56 | K44: 106718.87 | L44: 1068804.9
A45: TV2R Permit Administration | B45: 39349.3 | C45: 25101.69 | D45: 321.8 | E45: 4388.91 | F45: 60084.78 | G45: 31972.91 | H45: 65938.36 | I45: 19659.92 | J45: 9340.86 | K45: 37207.67 | L45: 293366.2
A46: TV2R Routine Compliance | B46: 56905.48 | C46: 38536.37 | D46: 66963.14 | E46: 52862.71 | F46: 53304.72 | G46: 81808.47 | H46: 82323.02 | I46: 82356.98 | J46: 88265.34 | K46: 93641.89 | L46: 696968.12
A47: TV2R Time & Materials | B47: 117314.77 | C47: 88052.74 | D47: 26221.7 | E47: 90352.69 | F47: 28908.58 | G47: 42895.93 | H47: 49042.22 | I47: 50478.53 | J47: 35352.38 | K47: 35045.96 | L47: 563665.5
A48: TV3R Permit Administration | B48: 19464.48 | C48: 17028.03 | D48: 30835.16 | E48: 58073.82 | F48: 16439.88 | G48: 28141.31 | H48: 7234.54 | I48: 43838.72 | J48: 50473.44 | K48: 28711.34 | L48: 300240.72
A49: TV3R Routine Compliance | B49: 39299.71 | C49: 44294.89 | D49: 24249.04 | E49: 38883.57 | F49: 25994.43 | G49: 28102.12 | H49: 19950.26 | I49: 44902.71 | J49: 39914.29 | K49: 55389.65 | L49: 360980.67
A50: TV3R Time & Materials | B50: 37225.2 | C50: 40976.12 | D50: 24892.81 | E50: 39031.15 | F50: 67659.88 | G50: 50676.42 | H50: 34413.23 | I50: 29360.97 | J50: 15857.35 | K50: 21972.81 | L50: 362065.94
A51: TV4R Permit Administration | B51: 27234.03 | C51: 11335.94 | D51: 14904.45 | E51: 31862.07 | F51: 28567.73 | G51: 16776.55 | H51: 37893.8 | I51: 16449.11 | J51: 13773.01 | K51: 32413.81 | L51: 231210.5
A52: TV4R Routine Compliance | B52: 23207.92 | C52: 38073.39 | D52: 32887.13 | E52: 44584.64 | F52: 35394.32 | G52: 54156.87 | H52: 39785.33 | I52: 53703.08 | J52: 33528.17 | K52: 50034.33 | L52: 405355.18
A53: TV4R Time & Materials | B53: 26593.01 | C53: 46275.11 | D53: 33266.02 | E53: 18192.11 | F53: 35326.93 | G53: 31545.85 | H53: 41947.5 | I53: 24546.25 | J53: 28522.15 | K53: 27781.02 | L53: 313995.95
A54: TV5R Permit Administration | B54: 22572.13 | C54: 7133.81 | D54: 12365.77 | E54: 3289.85 | F54: 9447.85 | G54: 21995.89 | H54: 19768.56 | I54: 27989 | J54: 6330.61 | K54: 28666.68 | L54: 159560.15
A55: TV5R Routine Compliance | B55: 47020.97 | C55: 48395.05 | D55: 37369.82 | E55: 42930.03 | F55: 35941.53 | G55: 43352.18 | H55: 41471.05 | I55: 33107.03 | J55: 31117.22 | K55: 32542.42 | L55: 393247.3
A56: TV5R Time & Materials | B56: 38241.27 | C56: 63200.01 | D56: 76158.19 | E56: 87220.14 | F56: 77821.36 | G56: 47934.15 | H56: 26501.93 | I56: 60882.41 | J56: 26442.19 | K56: 45476.21 | L56: 549877.86
A57: TV6R Permit Administration | B57: 19574.3 | C57: 26196.55 | D57: 22222.24 | E57: 56538.88 | F57: 65094.57 | G57: 17839.75 | H57: 46232.22 | I57: 49753.53 | J57: 6841.3 | K57: 56901.63 | L57: 367194.97
A58: TV6R Routine Compliance | B58: 50660.04 | C58: 34944.31 | D58: 62557.96 | E58: 46739.89 | F58: 47548.38 | G58: 71602.23 | H58: 67105.56 | I58: 67438.44 | J58: 76435.46 | K58: 67490.44 | L58: 592522.71
A59: TV6R Time & Materials | B59: 55393.45 | C59: 110610.24 | D59: 35290.36 | E59: 39204.99 | F59: 37710.57 | G59: 46764.92 | H59: 39128.52 | I59: 45455.53 | J59: 39937.07 | K59: 26627.44 | L59: 476123.09
A60: TV9R Permit Administration | B60: 25697.93 | C60: 15251.85 | D60: 5610.28 | E60: 8540.99 | F60: 28630.92 | G60: 13907.86 | H60: 62340.96 | I60: 40740.43 | J60: 16482.97 | K60: 17468.45 | L60: 234672.64
A61: TV9R Routine Compliance | B61: 30708.03 | C61: 29717.84 | D61: 47407.12 | E61: 58162.19 | F61: 57512.39 | G61: 55018.7 | H61: 86713.04 | I61: 63640.78 | J61: 72260.54 | K61: 74228.71 | L61: 575369.34
A62: TV9R Time & Materials | B62: 42225.95 | C62: 26284.41 | D62: 24139.42 | E62: 32293.39 | F62: 47233.68 | G62: 34399.31 | H62: 51087.25 | I62: 19513.87 | J62: 42331.52 | K62: 21541.99 | L62: 341050.79
A63: TVCPRA Routine Compliance | E63: 19.97 | F63: 277.81 | G63: 7.28 | K63: 53.22 | L63: 358.28
A64: TVCPRA Time & Materials | B64: 150504.05 | C64: 168061.61 | D64: 76330.47 | E64: 80809.99 | F64: 77618.55 | G64: 91663.77 | H64: 161784.29 | I64: 190768.43 | J64: 167318.1 | K64: 97800.11 | L64: 1262659.37
A65: TVTE Time & Materials | G65: 285.18 | H65: 3285.62 | I65: 108.76 | J65: 146.21 | K65: 486.85 | L65: 4312.62
A66: Unclear Time & Materials | B66: 4245.41 | C66: 1328.33 | D66: 1143.92 | E66: 1425.44 | F66: 2791.59 | G66: 2866.24 | H66: 1780.94 | I66: 2799.37 | J66: 1876.19 | K66: 0 | L66: 20257.43
A67: Grand Total | B67: 1601557.89 | C67: 1555165.03 | D67: 1436419.17 | E67: 1512326.89 | F67: 1682003.07 | G67: 1591300.5 | H67: 1860601.87 | I67: 1687400.5 | J67: 1574599.98 | K67: 1623519.82 | L67: 16124894.72

Sheet Non PS Recov in Fees
A1: Current Activity Code | B1: (Multiple Items)
A3: Sum of Cost in FY2020 Dollars | B3: Column Labels
A4: Row Labels | B4: FY2010 | C4: FY2011 | D4: FY2012 | E4: FY2013 | F4: FY2014 | G4: FY2015 | H4: FY2016 | I4: FY2017 | J4: FY2018 | K4: FY2019 | L4: Grand Total
A5: FOIA | B5: 1280.18 | L5: 1280.18
A6: GP3 Routine Compliance | B6: 5598.61 | C6: 4465.59 | D6: 1175.16 | E6: 55.91 | F6: 461.78 | G6: 198 | I6: 47.7 | J6: 380.45 | L6: 12383.2
A7: GPA Routine Compliance | B7: 2063.77 | D7: 1776.27 | E7: 2206.24 | F7: 2017.5 | I7: 428.78 | J7: 894.91 | L7: 9387.47
A8: GPA Time & Materials | E8: 1330.84 | L8: 1330.84
A9: MG1 Routine Compliance | I9: 2362.46 | L9: 2362.46
A10: MG3 Routine Compliance | B10: 4529.23 | C10: 10941.6 | D10: 636.83 | E10: 3881.75 | F10: 56989.1 | G10: 3082.95 | H10: 460.27 | I10: 2533.16 | J10: 896.09 | K10: 91.8 | L10: 84042.78
A11: MG3 Time & Materials | C11: 4353.64 | D11: 1827.99 | E11: 27505.75 | G11: 16.56 | H11: 907.31 | I11: 668.71 | K11: 423.5 | L11: 35703.46
A12: MG9 Routine Compliance | B12: 1522.24 | C12: 7224.27 | D12: 2423.04 | E12: 2653.21 | F12: 1281.97 | G12: 969.7 | H12: 2992.43 | I12: 3871.39 | J12: 1538.06 | K12: 44.18 | L12: 24520.49
A13: MG9 Time & Materials | E13: 297.7 | H13: 84.04 | L13: 381.74
A14: MSS Routine Compliance | B14: 11013.23 | C14: 12446.09 | F14: 18284.44 | G14: 15322.74 | H14: 33312.08 | I14: 12364.19 | J14: 2580.28 | K14: 7344.76 | L14: 112667.81
A15: MSS Time & Materials | B15: 32914.26 | C15: 15150.39 | D15: 9056.42 | E15: 34419.1 | F15: 38945.63 | G15: 10439.01 | H15: 20361.32 | I15: 457.32 | J15: 18.72 | K15: 1485.55 | L15: 163247.72
A16: ORL ORL Time & Materials | D16: 5176.46 | E16: 15696.84 | F16: 2940.94 | L16: 23814.24
A17: ORL Permit Administration | B17: 1284.39 | C17: 1316.95 | D17: 7584.02 | E17: 3228.13 | F17: 586.17 | G17: 5067.29 | H17: 7077.12 | I17: 4163.32 | J17: 2864.04 | K17: 2443.64 | L17: 35615.07
A18: ORL Routine Compliance | B18: 481.93 | D18: 1090.81 | E18: 809.98 | F18: 795.52 | H18: 240.32 | I18: 500.66 | J18: 634 | K18: 360.92 | L18: 4914.14
A19: ORL Time & Materials | D19: 4834.64 | K19: -123 | L19: 4711.64
A20: PAEL Application Fee | B20: 0 | G20: 17.13 | L20: 17.13
A21: PAEL Routine Compliance | D21: 2191.21 | L21: 2191.21
A22: PAEL Time & Materials | C22: 2361.69 | D22: 888.37 | G22: 0.1 | L22: 3250.16
A23: TITE Time & Materials | B23: 32060.58 | C23: 25655.26 | D23: 31464.62 | E23: 42365.76 | F23: 28636.84 | G23: 3364.58 | H23: 8716.77 | I23: 85.27 | J23: 7668.44 | K23: 9294.32 | L23: 189312.44
A24: TV1R Permit Administration | B24: 201666.3 | C24: 28248.8 | D24: 82957.71 | E24: 87432.59 | F24: 67432.21 | G24: 19643.6 | H24: 17196.46 | I24: 1056.69 | L24: 505634.36
A25: TV1R Routine Compliance | B25: 80650.87 | C25: 90574.47 | D25: 46406.57 | E25: 17927.15 | F25: 2386.56 | G25: 2212.09 | H25: 5833.58 | I25: 8849.53 | J25: 5293.3 | K25: 2418.15 | L25: 262552.27
A26: TV1R Time & Materials | B26: 49176.21 | C26: 20035.21 | D26: 34381.91 | E26: 24635.86 | F26: 34444.44 | G26: 12659.79 | H26: 11855.31 | I26: 5204.26 | J26: 6179.46 | K26: 6084.4 | L26: 204656.85
A27: TV2R Permit Administration | B27: 26812.18 | C27: 1420.45 | D27: 1704.45 | E27: 6528.67 | F27: 7224.86 | G27: 8589.17 | H27: 4297.74 | L27: 56577.52
A28: TV2R Routine Compliance | B28: 17308.74 | C28: 20028.06 | D28: 6763.44 | E28: 3541.46 | G28: 703.05 | H28: 546.67 | I28: 847.36 | J28: 90.48 | K28: 39.78 | L28: 49869.04
A29: TV2R Time & Materials | B29: 39568.57 | C29: 33978.7 | D29: 24411.51 | E29: 31860.17 | F29: 36639.64 | G29: 15561.62 | H29: 4418.23 | I29: 18206.05 | J29: 3031.74 | K29: 1371.26 | L29: 209047.49
A30: TV3R Permit Administration | B30: 7685.5 | C30: 12056.5 | D30: 5542.98 | E30: 17527.19 | F30: 2849.5 | G30: 658.13 | L30: 46319.8
A31: TV3R Routine Compliance | B31: 3229.67 | C31: 13940.7 | D31: 3237.09 | E31: 327.95 | G31: 1473.37 | L31: 22208.78
A32: TV3R Time & Materials | B32: 8304.3 | C32: 5028.18 | D32: 8553.98 | E32: 14759.43 | F32: 7392.83 | G32: 19774.12 | H32: 10530.64 | I32: 1586.2 | J32: 946.85 | K32: 8620.19 | L32: 85496.72
A33: TV4R Permit Administration | B33: 18741.41 | C33: 5398.76 | D33: 17029.45 | E33: 2485.7 | F33: 7937.98 | G33: 3338.42 | H33: 4980.41 | I33: 721.86 | J33: 613.27 | L33: 61247.26
A34: TV4R Routine Compliance | B34: 10356.1 | C34: 10012.94 | D34: 5481.92 | E34: 3330.88 | G34: 476.46 | I34: 1836.79 | J34: 210.22 | K34: 50.76 | L34: 31756.07
A35: TV4R Time & Materials | B35: 14644.73 | C35: 6723.77 | D35: 9033.71 | E35: 3834.8 | F35: 8342.83 | G35: 4253.41 | H35: 7212.68 | I35: 8593.55 | J35: 1997.9 | K35: 6964.6 | L35: 71601.98
A36: TV5R Permit Administration | B36: 22465.23 | C36: 3212.29 | D36: 14672.21 | E36: 244.68 | F36: 3208.29 | G36: 5330.84 | H36: 1273.15 | I36: 1419.81 | L36: 51826.5
A37: TV5R Routine Compliance | B37: 11952.59 | C37: 12611.97 | D37: 3379.34 | E37: 7823.1 | G37: 188.1 | H37: 1842.88 | I37: 2015.66 | J37: 2221.94 | K37: 48.45 | L37: 42084.03
A38: TV5R Time & Materials | B38: 14471.47 | C38: 23248.48 | D38: 13854.44 | E38: 16640.08 | F38: 22922.05 | G38: 32.67 | H38: 3766.94 | I38: 1064.77 | J38: 1317.58 | K38: 0 | L38: 97318.48
A39: TV6R Permit Administration | B39: 22606.21 | C39: 14962.91 | D39: 11405.34 | E39: 13199.46 | F39: 10280.3 | G39: 7036.44 | H39: 5520.84 | I39: 2061.82 | J39: 624 | L39: 87697.32
A40: TV6R Routine Compliance | B40: 21221.71 | C40: 28214.72 | D40: 12782.96 | E40: 2113.44 | G40: 2716.44 | H40: 240.32 | I40: 6676.7 | J40: 807.4 | K40: 993.03 | L40: 75766.72
A41: TV6R Time & Materials | B41: 9948.13 | C41: 20494.37 | D41: 899.92 | E41: 21300.07 | F41: 8205.33 | G41: 17.89 | H41: 2228.73 | I41: 5433.4 | J41: 9570.93 | K41: 5704.41 | L41: 83803.18
A42: TV9R Permit Administration | B42: 33852.21 | C42: 6119.87 | D42: 2344.98 | E42: 2441.39 | F42: 1275 | G42: 2102.35 | H42: 3632.58 | I42: 2789.31 | J42: 1582.34 | L42: 56140.03
A43: TV9R Routine Compliance | B43: 2422.35 | C43: 19555.93 | D43: 9483.46 | E43: 459.2 | G43: 625.06 | H43: 909.97 | I43: 1329.36 | J43: 761.48 | K43: 285.6 | L43: 35832.41
A44: TV9R Time & Materials | B44: 11005.92 | C44: 1770.09 | D44: 37088.99 | E44: 21392.98 | F44: 14155.74 | G44: 2217.24 | H44: 1310.54 | I44: 3365.47 | J44: 2533.38 | K44: 4009.32 | L44: 98849.67
A45: TVCPRA Time & Materials | B45: 126459.55 | C45: 57088.12 | D45: 26287.92 | E45: 13092.99 | F45: 5854.59 | G45: 15710.7 | H45: 21608.32 | I45: 12768.06 | J45: 9750.55 | K45: 1254.99 | L45: 289875.79
A46: TVTE Time & Materials | K46: 152.12 | L46: 152.12
A47: Unclear Time & Materials | B47: 1305.54 | L47: 1305.54
A48: Grand Total | B48: 848603.91 | C48: 518640.77 | D48: 447830.12 | E48: 447350.45 | F48: 391492.04 | G48: 163799.02 | H48: 183357.65 | I48: 113309.61 | J48: 65007.81 | K48: 59362.73 | L48: 3238754.11

Sheet Compare Years
A3: Sum of Sum of Cost Amount | B3: FY | N3: Sum of Cost in FY2020 Dollars | O3: FY
A4: Fee | B4: FY2010 | C4: FY2011 | D4: FY2012 | E4: FY2013 | F4: FY2014 | G4: FY2015 | H4: FY2016 | I4: FY2017 | J4: FY2018 | K4: FY2019 | L4: Grand Total | N4: Fee | O4: FY2010 | P4: FY2011 | Q4: FY2012 | R4: FY2013 | S4: FY2014 | T4: FY2015 | U4: FY2016 | V4: FY2017 | W4: FY2018 | X4: FY2019 | Y4: Grand Total
A5: TV9R Permit Administration | B5: 50042.13 | C5: 18266.42 | D5: 6978.3 | E5: 9805.69 | F5: 27187.2 | G5: 14554.73 | H5: 60526.18 | I5: 41065.78 | J5: 17370.49 | K5: 17125.93 | L5: 262922.85 | N5: GP3 Routine Compliance | O5: 41253.58 | P5: 31805.17 | Q5: 30774.2 | R5: 27093.33 | S5: 28883.32 | T5: 18447.66 | U5: 19712.33 | V5: 11947.68 | W5: 11519.29 | X5: 7824.27 | Y5: 229260.83
A6: TV9R Routine Compliance | B6: 27840.65 | C6: 42114.34 | D6: 49904.02 | E6: 52340.53 | F6: 52283.96 | G6: 50585.23 | H6: 80388.09 | I6: 61292.6 | J6: 70213.48 | K6: 73053.24 | L6: 560016.14 | N6: GP4 Routine Compliance | O6: 1120.49 | P6: 1797.62 | Q6: 1868.29 | R6: 484.44 | S6: 484.8 | T6: 292.08 | U6: 625.05 | Y6: 6672.77
A7: Grand Total | B7: 77882.78 | C7: 60380.76 | D7: 56882.32 | E7: 62146.22 | F7: 79471.16 | G7: 65139.96 | H7: 140914.27 | I7: 102358.38 | J7: 87583.97 | K7: 90179.17 | L7: 822938.99 | N7: GP9 Routine Compliance | O7: 64.26 | Y7: 64.26
N8: GPA Routine Compliance | O8: 17383.37 | P8: 6616.8 | Q8: 21879.74 | R8: 9960.17 | S8: 21276.99 | T8: 6641.34 | U8: 13941.61 | V8: 4770.03 | W8: 7760.6 | X8: 8283.12 | Y8: 118513.77
N9: MG1 Routine Compliance | O9: 52.81 | P9: 381.93 | Q9: 556.64 | R9: 201.69 | S9: 440.22 | T9: 668.24 | U9: 1581.06 | V9: 2782.22 | W9: 227.88 | X9: 526.9 | Y9: 7419.59
N10: MG2 Routine Compliance | X10: 2576.94 | Y10: 2576.94
A11: Sum of Cost in FY2020 Dollars | B11: FY | N11: MG3 Routine Compliance | O11: 29652.84 | P11: 36653.16 | Q11: 34488.67 | R11: 41410.77 | S11: 117163.9 | T11: 50826.41 | U11: 42673.52 | V11: 39950.61 | W11: 35399.03 | X11: 50344.81 | Y11: 478563.72
A12: Fee | B12: FY2010 | C12: FY2011 | D12: FY2012 | E12: FY2013 | F12: FY2014 | G12: FY2015 | H12: FY2016 | I12: FY2017 | J12: FY2018 | K12: FY2019 | L12: Grand Total | N12: MG9 Routine Compliance | O12: 8967.73 | P12: 39606.51 | Q12: 34389.83 | R12: 35393.17 | S12: 31046.4 | T12: 27761.22 | U12: 53822.33 | V12: 35172.29 | W12: 41689.46 | X12: 37348.4 | Y12: 345197.34
A13: GP3 Routine Compliance | B13: 41253.58 | C13: 31805.17 | D13: 30774.2 | E13: 27093.33 | F13: 28883.32 | G13: 18447.66 | H13: 19712.33 | I13: 11947.68 | J13: 11519.29 | K13: 7824.27 | L13: 229260.83 | N13: MSS Routine Compliance | O13: 23064.53 | P13: 29643.8 | Q13: 30877.63 | R13: 24338.41 | S13: 55898.44 | T13: 68475.05 | U13: 98339.92 | V13: 68562.21 | W13: 78394.6 | X13: 68074.3 | Y13: 545668.89
A14: GP4 Routine Compliance | B14: 1120.49 | C14: 1797.62 | D14: 1868.29 | E14: 484.44 | F14: 484.8 | G14: 292.08 | H14: 625.05 | L14: 6672.77 | N14: ORL Routine Compliance | O14: 17081.12 | P14: 13923.61 | Q14: 22553.24 | R14: 9504.13 | S14: 16402.03 | T14: 28999.96 | U14: 17226.47 | V14: 28936.55 | W14: 23479.64 | X14: 28447.48 | Y14: 206554.23
A15: GP9 Routine Compliance | B15: 64.26 | L15: 64.26 | N15: PAEL Routine Compliance | O15: 9558.9 | P15: 14482.83 | Q15: 32553.22 | R15: 20469.69 | S15: 14165.72 | T15: 16686.03 | U15: 18174.98 | V15: 16126.86 | W15: 11187.94 | X15: 34516.89 | Y15: 187923.06
A16: GPA Routine Compliance | B16: 17383.37 | C16: 6616.8 | D16: 21879.74 | E16: 9960.17 | F16: 21276.99 | G16: 6641.34 | H16: 13941.61 | I16: 4770.03 | J16: 7760.6 | K16: 8283.12 | L16: 118513.77 | N16: TV1R Routine Compliance | O16: 271409.17 | P16: 257097.51 | Q16: 245322.54 | R16: 136902.94 | S16: 208323.31 | T16: 145577.3 | U16: 190259.07 | V16: 177130.54 | W16: 163945.82 | X16: 193985.55 | Y16: 1989953.75
A17: MG1 Routine Compliance | B17: 52.81 | C17: 381.93 | D17: 556.64 | E17: 201.69 | F17: 440.22 | G17: 668.24 | H17: 1581.06 | I17: 2782.22 | J17: 227.88 | K17: 526.9 | L17: 7419.59 | N17: TV2R Routine Compliance | O17: 74214.22 | P17: 58564.43 | Q17: 73726.58 | R17: 56404.17 | S17: 53304.72 | T17: 82511.52 | U17: 82869.69 | V17: 83204.34 | W17: 88355.82 | X17: 93681.67 | Y17: 746837.16
A18: MG2 Routine Compliance | K18: 2576.94 | L18: 2576.94 | N18: TV3R Routine Compliance | O18: 42529.38 | P18: 58235.59 | Q18: 27486.13 | R18: 39211.52 | S18: 25994.43 | T18: 29575.49 | U18: 19950.26 | V18: 44902.71 | W18: 39914.29 | X18: 55389.65 | Y18: 383189.45
A19: MG3 Routine Compliance | B19: 29652.84 | C19: 36653.16 | D19: 34488.67 | E19: 41410.77 | F19: 117163.9 | G19: 50826.41 | H19: 42673.52 | I19: 39950.61 | J19: 35399.03 | K19: 50344.81 | L19: 478563.72 | N19: TV4R Routine Compliance | O19: 33564.02 | P19: 48086.33 | Q19: 38369.05 | R19: 47915.52 | S19: 35394.32 | T19: 54633.33 | U19: 39785.33 | V19: 55539.87 | W19: 33738.39 | X19: 50085.09 | Y19: 437111.25
A20: MG9 Routine Compliance | B20: 8967.73 | C20: 39606.51 | D20: 34389.83 | E20: 35393.17 | F20: 31046.4 | G20: 27761.22 | H20: 53822.33 | I20: 35172.29 | J20: 41689.46 | K20: 37348.4 | L20: 345197.34 | N20: TV5R Routine Compliance | O20: 58973.56 | P20: 61007.02 | Q20: 40749.16 | R20: 50753.13 | S20: 35941.53 | T20: 43540.28 | U20: 43313.93 | V20: 35122.69 | W20: 33339.16 | X20: 32590.87 | Y20: 435331.33
A21: MSS Routine Compliance | B21: 23064.53 | C21: 29643.8 | D21: 30877.63 | E21: 24338.41 | F21: 55898.44 | G21: 68475.05 | H21: 98339.92 | I21: 68562.21 | J21: 78394.6 | K21: 68074.3 | L21: 545668.89 | N21: TV6R Routine Compliance | O21: 71881.75 | P21: 63159.03 | Q21: 75340.92 | R21: 48853.33 | S21: 47548.38 | T21: 74318.67 | U21: 67345.88 | V21: 74115.14 | W21: 77242.86 | X21: 68483.47 | Y21: 668289.43
A22: ORL Routine Compliance | B22: 17081.12 | C22: 13923.61 | D22: 22553.24 | E22: 9504.13 | F22: 16402.03 | G22: 28999.96 | H22: 17226.47 | I22: 28936.55 | J22: 23479.64 | K22: 28447.48 | L22: 206554.23 | N22: TV9R Routine Compliance | O22: 33130.38 | P22: 49273.77 | Q22: 56890.58 | R22: 58621.39 | S22: 57512.39 | T22: 55643.76 | U22: 87623.01 | V22: 64970.14 | W22: 73022.02 | X22: 74514.31 | Y22: 611201.75
A23: PAEL Routine Compliance | B23: 9558.9 | C23: 14482.83 | D23: 32553.22 | E23: 20469.69 | F23: 14165.72 | G23: 16686.03 | H23: 18174.98 | I23: 16126.86 | J23: 11187.94 | K23: 34516.89 | L23: 187923.06 | N23: TVCPRA Routine Compliance | R23: 19.97 | S23: 277.81 | T23: 7.28 | X23: 53.22 | Y23: 358.28
A24: TV1R Routine Compliance | B24: 271409.17 | C24: 257097.51 | D24: 245322.54 | E24: 136902.94 | F24: 208323.31 | G24: 145577.3 | H24: 190259.07 | I24: 177130.54 | J24: 163945.82 | K24: 193985.55 | L24: 1989953.75
A25: TV2R Routine Compliance | B25: 74214.22 | C25: 58564.43 | D25: 73726.58 | E25: 56404.17 | F25: 53304.72 | G25: 82511.52 | H25: 82869.69 | I25: 83204.34 | J25: 88355.82 | K25: 93681.67 | L25: 746837.16
A26: TV3R Routine Compliance | B26: 42529.38 | C26: 58235.59 | D26: 27486.13 | E26: 39211.52 | F26: 25994.43 | G26: 29575.49 | H26: 19950.26 | I26: 44902.71 | J26: 39914.29 | K26: 55389.65 | L26: 383189.45
A27: TV4R Routine Compliance | B27: 33564.02 | C27: 48086.33 | D27: 38369.05 | E27: 47915.52 | F27: 35394.32 | G27: 54633.33 | H27: 39785.33 | I27: 55539.87 | J27: 33738.39 | K27: 50085.09 | L27: 437111.25
A28: TV5R Routine Compliance | B28: 58973.56 | C28: 61007.02 | D28: 40749.16 | E28: 50753.13 | F28: 35941.53 | G28: 43540.28 | H28: 43313.93 | I28: 35122.69 | J28: 33339.16 | K28: 32590.87 | L28: 435331.33
A29: TV6R Routine Compliance | B29: 71881.75 | C29: 63159.03 | D29: 75340.92 | E29: 48853.33 | F29: 47548.38 | G29: 74318.67 | H29: 67345.88 | I29: 74115.14 | J29: 77242.86 | K29: 68483.47 | L29: 668289.43
A30: TV9R Routine Compliance | B30: 33130.38 | C30: 49273.77 | D30: 56890.58 | E30: 58621.39 | F30: 57512.39 | G30: 55643.76 | H30: 87623.01 | I30: 64970.14 | J30: 73022.02 | K30: 74514.31 | L30: 611201.75
A31: TVCPRA Routine Compliance | E31: 19.97 | F31: 277.81 | G31: 7.28 | K31: 53.22 | L31: 358.28
A32: Grand Total | B32: 733902.11 | C32: 770335.11 | D32: 767826.42 | E32: 607537.77 | F32: 750058.71 | G32: 704605.62 | H32: 797244.44 | I32: 743233.88 | J32: 719216.8 | K32: 806726.94 | L32: 7400687.8

Sheet Combo File
A1: Project | B1: FY | C1: Phase Translation to today Phase | D1: Common Phase Code | E1: Current Activity Code | F1: Current Activity Code Description | G1: Facility ID | H1: Reconciled Source Category | I1: Reconciled Source Type | J1: Fee Lookup 1 | K1: Fee Lookup Title I or Title V Should Be | L1: Project Level Fee Lookup | M1: Project Level Title I or Title V Should Be | N1: Fee | O1: Fee Title I or Title V Should Be | P1: CC | Q1: Sum of Cost Amount | R1: FY2020 Factor | S1: Cost in FY2020 Dollars | T1: Expired Under Shield | U1: Lookup RSAs | V1: Source has both MSS and Title V?
A2: AMAIRTOOLSGFPR:TIMETRACK | B2: FY2017 | C2: TIMETRACK | D2: TIMETRACK | E2: 21:01 | F2: 21:01 General - Tasks for general work not specific to a permitting project | G2: #VALUE! | H2: #VALUE! | I2: #VALUE! | J2: #N/A | K2: #N/A | L2: Timetrack | M2: Timetrack | N2: Timetrack | O2: Timetrack | P2: 18323900 | Q2: 78558.02 | R2: =VLOOKUP(B2,'CPI Cumulative BLS'!A$3:B$12,2,FALSE) -> 1.06 | S2: =ROUND(Q2*R2,2) -> 83271.5 | T2: =IF(ISNA(VLOOKUP(G2,Footnotes!C$2:C$29,1,FALSE)),"","Yes") ->  | U2: =VLOOKUP(A2,'RSA Lookup'!A$1:D$17,3,FALSE) ->  | V2: No
A3: AMAIRTOOLST5:TIMETRACK | B3: FY2017 | C3: TIMETRACK | D3: TIMETRACK | E3: 21:01 | F3: 21:01 General - Tasks for general work not specific to a permitting project | G3: #VALUE! | H3: #VALUE! | I3: #VALUE! | J3: #N/A | K3: #N/A | L3: Timetrack | M3: Timetrack | N3: Timetrack | O3: Timetrack | P3: 18325900 | Q3: 76103.33 | R3: =VLOOKUP(B3,'CPI Cumulative BLS'!A$3:B$12,2,FALSE) -> 1.06 | S3: =ROUND(Q3*R3,2) -> 80669.53 | T3: =IF(ISNA(VLOOKUP(G3,Footnotes!C$2:C$29,1,FALSE)),"","Yes") ->  | U3: =VLOOKUP(A3,'RSA Lookup'!A$1:D$17,3,FALSE) ->  | V3: No
A4: AQ0002PL201P:PAEL | B4: FY2018 | C4: PAEL | D4: PAEL | E4: 23:01 | F4: 23:01 Compliance - Routine Compliance, STP, STR activities | G4: 2 | H4: Title I | I4: PAEL | J4: PAEL Routine Compliance | K4: Either | L4: #N/A | M4: #N/A | N4: PAEL Routine Compliance | O4: Either | P4: 18335555 | Q4: 64.65 | R4: =VLOOKUP(B4,'CPI Cumulative BLS'!A$3:B$12,2,FALSE) -> 1.04 | S4: 67.24 | T4: =IF(ISNA(VLOOKUP(G4,Footnotes!C$2:C$29,1,FALSE)),"","Yes") ->  | U4: =VLOOKUP(A4,'RSA Lookup'!A$1:D$17,3,FALSE) ->  | V4: No
A5: AQ0002PL201P:PAEL | B5: FY2019 | C5: PAEL | D5: PAEL | E5: 23:01 | F5: 23:01 Compliance - Routine Compliance, STP, STR activities | G5: 2 | H5: Title I | I5: PAEL | J5: PAEL Routine Compliance | K5: Either | L5: #N/A | M5: #N/A | N5: PAEL Routine Compliance | O5: Either | P5: 18335555 | Q5: 346.48 | R5: =VLOOKUP(B5,'CPI Cumulative BLS'!A$3:B$12,2,FALSE) -> 1.02 | S5: 353.41 | T5: =IF(ISNA(VLOOKUP(G5,Footnotes!C$2:C$29,1,FALSE)),"","Yes") ->  | U5: =VLOOKUP(A5,'RSA Lookup'!A$1:D$17,3,FALSE) ->  | V5: No
A6: AQ0002PL201P:PAEL1 | B6: FY2017 | C6: PAEL1 | D6: PAEL | E6: 22:03 | F6: 22:03 Permitting - ORL development 18 AAC 50.225, OBA, PAELs | G6: 2 | H6: Title I | I6: PAEL | J6: PAEL Application Fee | K6: Either | L6: #N/A | M6: #N/A | N6: PAEL Application Fee | O6: Either | P6: 18335555 | Q6: 6.66 | R6: =VLOOKUP(B6,'CPI Cumulative BLS'!A$3:B$12,2,FALSE) -> 1.06 | S6: 7.06 | T6: =IF(ISNA(VLOOKUP(G6,Footnotes!C$2:C$29,1,FALSE)),"","Yes") ->  | U6: =VLOOKUP(A6,'RSA Lookup'!A$1:D$17,3,FALSE) ->  | V6: No
A7: AQ0002PL201P:PAEL1 | B7: FY2017 | C7: PAEL1 | D7: PAEL | E7: 23:01 | F7: 23:01 Compliance - Routine Compliance, STP, STR activities | G7: 2 | H7: Title I | I7: PAEL | J7: PAEL Routine Compliance | K7: Either | L7: #N/A | M7: #N/A | N7: PAEL Routine Compliance | O7: Either | P7: 18335555 | Q7: 342.18 | R7: =VLOOKUP(B7,'CPI Cumulative BLS'!A$3:B$12,2,FALSE) -> 1.06 | S7: 362.71 | T7: =IF(ISNA(VLOOKUP(G7,Footnotes!C$2:C$29,1,FALSE)),"","Yes") ->  | U7: =VLOOKUP(A7,'RSA Lookup'!A$1:D$17,3,FALSE) ->  | V7: No
A8: AQ0002PL201P:PAEL1 | B8: FY2017 | C8: PAEL1 | D8: PAEL | E8: 23:02 | F8: 23:02 Billable Compliance - Non-routine compliance activities | G8: 2 | H8: Title I | I8: PAEL | J8: PAEL Time & Materials | K8: Either | L8: #N/A | M8: #N/A | N8: PAEL Time & Materials | O8: Either | P8: 18335555 | Q8: 60.53 | R8: =VLOOKUP(B8,'CPI Cumulative BLS'!A$3:B$12,2,FALSE) -> 1.06 | S8: 64.16 | T8: =IF(ISNA(VLOOKUP(G8,Footnotes!C$2:C$29,1,FALSE)),"","Yes") ->  | U8: =VLOOKUP(A8,'RSA Lookup'!A$1:D$17,3,FALSE) ->  | V8: No
A9: AQ0003PL203P:PAEL | B9: FY2018 | C9: PAEL | D9: PAEL | E9: 23:01 | F9: 23:01 Compliance - Routine Compliance, STP, STR activities | G9: 3 | H9: Title I | I9: PAEL | J9: PAEL Routine Compliance | K9: Either | L9: #N/A | M9: #N/A | N9: PAEL Routine Compliance | O9: Either | P9: 18335555 | Q9: 166.4 | R9: =VLOOKUP(B9,'CPI Cumulative BLS'!A$3:B$12,2,FALSE) -> 1.04 | S9: 173.06 | T9: =IF(ISNA(VLOOKUP(G9,Footnotes!C$2:C$29,1,FALSE)),"","Yes") ->  | U9: =VLOOKUP(A9,'RSA Lookup'!A$1:D$17,3,FALSE) ->  | V9: No
A10: AQ0003PL203P:PAEL | B10: FY2019 | C10: PAEL | D10: PAEL | E10: 23:01 | F10: 23:01 Compliance - Routine Compliance, STP, STR activities | G10: 3 | H10: Title I | I10: PAEL | J10: PAEL Routine Compliance | K10: Either | L10: #N/A | M10: #N/A | N10: PAEL Routine Compliance | O10: Either | P10: 18335555 | Q10: 1495.79 | R10: =VLOOKUP(B10,'CPI Cumulative BLS'!A$3:B$12,2,FALSE) -> 1.02 | S10: 1525.71 | T10: =IF(ISNA(VLOOKUP(G10,Footnotes!C$2:C$29,1,FALSE)),"","Yes") ->  | U10: =VLOOKUP(A10,'RSA Lookup'!A$1:D$17,3,FALSE) ->  | V10: No
A11: AQ0003PL203P:PAEL1 | B11: FY2017 | C11: PAEL1 | D11: PAEL | E11: 22:02 | F11: 22:02 Billable Permitting - Tasks associated with 18 AAC 50.400(h) | G11: 3 | H11: Title I | I11: PAEL | J11: PAEL Time & Materials | K11: Either | L11: #N/A | M11: #N/A | N11: PAEL Time & Materials | O11: Either | P11: 18335555 | Q11: 18.11 | R11: =VLOOKUP(B11,'CPI Cumulative BLS'!A$3:B$12,2,FALSE) -> 1.06 | S11: 19.2 | T11: =IF(ISNA(VLOOKUP(G11,Footnotes!C$2:C$29,1,FALSE)),"","Yes") ->  | U11: =VLOOKUP(A11,'RSA Lookup'!A$1:D$17,3,FALSE) ->  | V11: No
A12: AQ0003PL203P:PAEL1 | B12: FY2017 | C12: PAEL1 | D12: PAEL | E12: 23:01 | F12: 23:01 Compliance - Routine Compliance, STP, STR activities | G12: 3 | H12: Title I | I12: PAEL | J12: PAEL Routine Compliance | K12: Either | L12: #N/A | M12: #N/A | N12: PAEL Routine Compliance | O12: Either | P12: 18335555 | Q12: 65.35 | R12: =VLOOKUP(B12,'CPI Cumulative BLS'!A$3:B$12,2,FALSE) -> 1.06 | S12: 69.27 | T12: =IF(ISNA(VLOOKUP(G12,Footnotes!C$2:C$29,1,FALSE)),"","Yes") ->  | U12: =VLOOKUP(A12,'RSA Lookup'!A$1:D$17,3,FALSE) ->  | V12: No
A13: AQ0005PL201P:PAEL | B13: FY2018 | C13: PAEL | D13: PAEL | E13: 23:01 | F13: 23:01 Compliance - Routine Compliance, STP, STR activities | G13: 5 | H13: Title I | I13: PAEL | J13: PAEL Routine Compliance | K13: Either | L13: #N/A | M13: #N/A | N13: PAEL Routine Compliance | O13: Either | P13: 18335555 | Q13: 128.43 | R13: =VLOOKUP(B13,'CPI Cumulative BLS'!A$3:B$12,2,FALSE) -> 1.04 | S13: 133.57 | T13: =IF(ISNA(VLOOKUP(G13,Footnotes!C$2:C$29,1,FALSE)),"","Yes") ->  | U13: =VLOOKUP(A13,'RSA Lookup'!A$1:D$17,3,FALSE) ->  | V13: No
A14: AQ0005PL201P:PAEL | B14: FY2019 | C14: PAEL | D14: PAEL | E14: 22:02 | F14: 22:02 Billable Permitting - Tasks associated with 18 AAC 50.400(h) | G14: 5 | H14: Title I | I14: PAEL | J14: PAEL Time & Materials | K14: Either | L14: #N/A | M14: #N/A | N14: PAEL Time & Materials | O14: Either | P14: 18335555 | Q14: 58.34 | R14: =VLOOKUP(B14,'CPI Cumulative BLS'!A$3:B$12,2,FALSE) -> 1.02 | S14: 59.51 | T14: =IF(ISNA(VLOOKUP(G14,Footnotes!C$2:C$29,1,FALSE)),"","Yes") ->  | U14: =VLOOKUP(A14,'RSA Lookup'!A$1:D$17,3,FALSE) ->  | V14: No
A15: AQ0005PL201P:PAEL | B15: FY2019 | C15: PAEL | D15: PAEL | E15: 23:01 | F15: 23:01 Compliance - Routine Compliance, STP, STR activities | G15: 5 | H15: Title I | I15: PAEL | J15: PAEL Routine Compliance | K15: Either | L15: #N/A | M15: #N/A | N15: PAEL Routine Compliance | O15: Either | P15: 18335555 | Q15: 99.72 | R15: =VLOOKUP(B15,'CPI Cumulative BLS'!A$3:B$12,2,FALSE) -> 1.02 | S15: 101.71 | T15: =IF(ISNA(VLOOKUP(G15,Footnotes!C$2:C$29,1,FALSE)),"","Yes") ->  | U15: =VLOOKUP(A15,'RSA Lookup'!A$1:D$17,3,FALSE) ->  | V15: No
A16: AQ0005PL201P:PAEL1 | B16: FY2017 | C16: PAEL1 | D16: PAEL | E16: 22:02 | F16: 22:02 Billable Permitting - Tasks associated with 18 AAC 50.400(h) | G16: 5 | H16: Title I | I16: PAEL | J16: PAEL Time & Materials | K16: Either | L16: #N/A | M16: #N/A | N16: PAEL Time & Materials | O16: Either | P16: 18335555 | Q16: 42.55 | R16: =VLOOKUP(B16,'CPI Cumulative BLS'!A$3:B$12,2,FALSE) -> 1.06 | S16: 45.1 | T16: =IF(ISNA(VLOOKUP(G16,Footnotes!C$2:C$29,1,FALSE)),"","Yes") ->  | U16: =VLOOKUP(A16,'RSA Lookup'!A$1:D$17,3,FALSE) ->  | V16: No
A17: AQ0005PL201P:PAEL1 | B17: FY2017 | C17: PAEL1 | D17: PAEL | E17: 23:01 | F17: 23:01 Compliance - Routine Compliance, STP, STR activities | G17: 5 | H17: Title I | I17: PAEL | J17: PAEL Routine Compliance | K17: Either | L17: #N/A | M17: #N/A | N17: PAEL Routine Compliance | O17: Either | P17: 18335555 | Q17: 76.23 | R17: =VLOOKUP(B17,'CPI Cumulative BLS'!A$3:B$12,2,FALSE) -> 1.06 | S17: 80.8 | T17: =IF(ISNA(VLOOKUP(G17,Footnotes!C$2:C$29,1,FALSE)),"","Yes") ->  | U17: =VLOOKUP(A17,'RSA Lookup'!A$1:D$17,3,FALSE) ->  | V17: No
A18: AQ0007PL202P:PAEL | B18: FY2018 | C18: PAEL | D18: PAEL | E18: 22:02 | F18: 22:02 Billable Permitting - Tasks associated with 18 AAC 50.400(h) | G18: 7 | H18: Title I | I18: PAEL | J18: PAEL Time & Materials | K18: Either | L18: #N/A | M18: #N/A | N18: PAEL Time & Materials | O18: Either | P18: 18335555 | Q18: 23.58 | R18: =VLOOKUP(B18,'CPI Cumulative BLS'!A$3:B$12,2,FALSE) -> 1.04 | S18: 24.52 | T18: =IF(ISNA(VLOOKUP(G18,Footnotes!C$2:C$29,1,FALSE)),"","Yes") ->  | U18: =VLOOKUP(A18,'RSA Lookup'!A$1:D$17,3,FALSE) ->  | V18: No
A19: AQ0007PL202P:PAEL | B19: FY2018 | C19: PAEL | D19: PAEL | E19: 23:01 | F19: 23:01 Compliance - Routine Compliance, STP, STR activities | G19: 7 | H19: Title I | I19: PAEL | J19: PAEL Routine Compliance | K19: Either | L19: #N/A | M19: #N/A | N19: PAEL Routine Compliance | O19: Either | P19: 18335555 | Q19: 220.26 | R19: =VLOOKUP(B19,'CPI Cumulative BLS'!A$3:B$12,2,FALSE) -> 1.04 | S19: 229.07 | T19: =IF(ISNA(VLOOKUP(G19,Footnotes!C$2:C$29,1,FALSE)),"","Yes") ->  | U19: =VLOOKUP(A19,'RSA Lookup'!A$1:D$17,3,FALSE) ->  | V19: No
A20: AQ0007PL202P:PAEL | B20: FY2019 | C20: PAEL | D20: PAEL | E20: 22:02 | F20: 22:02 Billable Permitting - Tasks associated with 18 AAC 50.400(h) | G20: 7 | H20: Title I | I20: PAEL | J20: PAEL Time & Materials | K20: Either | L20: #N/A | M20: #N/A | N20: PAEL Time & Materials | O20: Either | P20: 18335555 | Q20: 35.19 | R20: =VLOOKUP(B20,'CPI Cumulative BLS'!A$3:B$12,2,FALSE) -> 1.02 | S20: 35.89 | T20: =IF(ISNA(VLOOKUP(G20,Footnotes!C$2:C$29,1,FALSE)),"","Yes") ->  | U20: =VLOOKUP(A20,'RSA Lookup'!A$1:D$17,3,FALSE) ->  | V20: No
A21: AQ0007PL202P:PAEL | B21: FY2019 | C21: PAEL | D21: PAEL | E21: 23:01 | F21: 23:01 Compliance - Routine Compliance, STP, STR activities | G21: 7 | H21: Title I | I21: PAEL | J21: PAEL Routine Compliance | K21: Either | L21: #N/A | M21: #N/A | N21: PAEL Routine Compliance | O21: Either | P21: 18335555 | Q21: 60.37 | R21: =VLOOKUP(B21,'CPI Cumulative BLS'!A$3:B$12,2,FALSE) -> 1.02 | S21: 61.58 | T21: =IF(ISNA(VLOOKUP(G21,Footnotes!C$2:C$29,1,FALSE)),"","Yes") ->  | U21: =VLOOKUP(A21,'RSA Lookup'!A$1:D$17,3,FALSE) ->  | V21: No
A22: AQ0007PL202P:PAEL | B22: FY2019 | C22: PAEL | D22: PAEL | E22: 23:02 | F22: 23:02 Billable Compliance - Non-routine compliance activities | G22: 7 | H22: Title I | I22: PAEL | J22: PAEL Time & Materials | K22: Either | L22: #N/A | M22: #N/A | N22: PAEL Time & Materials | O22: Either | P22: 18335555 | Q22: 86.03 | R22: =VLOOKUP(B22,'CPI Cumulative BLS'!A$3:B$12,2,FALSE) -> 1.02 | S22: 87.75 | T22: =IF(ISNA(VLOOKUP(G22,Footnotes!C$2:C$29,1,FALSE)),"","Yes") ->  | U22: =VLOOKUP(A22,'RSA Lookup'!A$1:D$17,3,FALSE) ->  | V22: No
A23: AQ0007PL202P:PAEL1 | B23: FY2017 | C23: PAEL1 | D23: PAEL | E23: 22:02 | F23: 22:02 Billable Permitting - Tasks associated with 18 AAC 50.400(h) | G23: 7 | H23: Title I | I23: PAEL | J23: PAEL Time & Materials | K23: Either | L23: #N/A | M23: #N/A | N23: PAEL Time & Materials | O23: Either | P23: 18335555 | Q23: 29.96 | R23: =VLOOKUP(B23,'CPI Cumulative BLS'!A$3:B$12,2,FALSE) -> 1.06 | S23: 31.76 | T23: =IF(ISNA(VLOOKUP(G23,Footnotes!C$2:C$29,1,FALSE)),"","Yes") ->  | U23: =VLOOKUP(A23,'RSA Lookup'!A$1:D$17,3,FALSE) ->  | V23: No
A24: AQ0007PL202P:PAEL1 | B24: FY2017 | C24: PAEL1 | D24: PAEL | E24: 23:01 | F24: 23:01 Compliance - Routine Compliance, STP, STR activities | G24: 7 | H24: Title I | I24: PAEL | J24: PAEL Routine Compliance | K24: Either | L24: #N/A | M24: #N/A | N24: PAEL Routine Compliance | O24: Either | P24: 18335555 | Q24: 132.7 | R24: =VLOOKUP(B24,'CPI Cumulative BLS'!A$3:B$12,2,FALSE) -> 1.06 | S24: 140.66 | T24: =IF(ISNA(VLOOKUP(G24,Footnotes!C$2:C$29,1,FALSE)),"","Yes") ->  | U24: =VLOOKUP(A24,'RSA Lookup'!A$1:D$17,3,FALSE) ->  | V24: No
A25: AQ0009MSS02P:MSSTI | B25: FY2019 | C25: MSSTV | D25: MSS | E25: 23:01 | F25: 23:01 Compliance - Routine Compliance, STP, STR activities | G25: 9 | H25: Title V | I25: TV1R | J25: #N/A | K25: #N/A | L25: TV1R Routine Compliance | M25: Title V | N25: TV1R Routine Compliance | O25: Title V | P25: 18335666 | Q25: 113.48 | R25: =VLOOKUP(B25,'CPI Cumulative BLS'!A$3:B$12,2,FALSE) -> 1.02 | S25: 115.75 | T25: =IF(ISNA(VLOOKUP(G25,Footnotes!C$2:C$29,1,FALSE)),"","Yes") ->  | U25: =VLOOKUP(A25,'RSA Lookup'!A$1:D$17,3,FALSE) ->  | V25: No
A26: AQ0009MSS05A:MSSTI | B26: FY2018 | C26: MSSTV | D26: MSS | E26: 22:02 | F26: 22:02 Billable Permitting - Tasks associated with 18 AAC 50.400(h) | G26: 9 | H26: Title V | I26: TV1R | J26: #N/A | K26: #N/A | L26: TV1R Time & Materials | M26: Title V | N26: TV1R Time & Materials | O26: Title V | P26: 18335666 | Q26: 176.87 | R26: =VLOOKUP(B26,'CPI Cumulative BLS'!A$3:B$12,2,FALSE) -> 1.04 | S26: 183.94 | T26: =IF(ISNA(VLOOKUP(G26,Footnotes!C$2:C$29,1,FALSE)),"","Yes") ->  | U26: =VLOOKUP(A26,'RSA Lookup'!A$1:D$17,3,FALSE) ->  | V26: No
A27: AQ0009MSS06P:MSSTI | B27: FY2018 | C27: MSSTV | D27: MSS | E27: 22:02 | F27: 22:02 Billable Permitting - Tasks associated with 18 AAC 50.400(h) | G27: 9 | H27: Title V | I27: TV1R | J27: #N/A | K27: #N/A | L27: TV1R Time & Materials | M27: Title V | N27: TV1R Time & Materials | O27: Title V | P27: 18335666 | Q27: 4329.34 | R27: =VLOOKUP(B27,'CPI Cumulative BLS'!A$3:B$12,2,FALSE) -> 1.04 | S27: 4502.51 | T27: =IF(ISNA(VLOOKUP(G27,Footnotes!C$2:C$29,1,FALSE)),"","Yes") ->  | U27: =VLOOKUP(A27,'RSA Lookup'!A$1:D$17,3,FALSE) ->  | V27: No
A28: AQ0009MSS06P:MSSTI | B28: FY2019 | C28: MSSTV | D28: MSS | E28: 22:02 | F28: 22:02 Billable Permitting - Tasks associated with 18 AAC 50.400(h) | G28: 9 | H28: Title V | I28: TV1R | J28: #N/A | K28: #N/A | L28: TV1R Time & Materials | M28: Title V | N28: TV1R Time & Materials | O28: Title V | P28: 18335666 | Q28: 9848.44 | R28: =VLOOKUP(B28,'CPI Cumulative BLS'!A$3:B$12,2,FALSE) -> 1.02 | S28: 10045.41 | T28: =IF(ISNA(VLOOKUP(G28,Footnotes!C$2:C$29,1,FALSE)),"","Yes") ->  | U28: =VLOOKUP(A28,'RSA Lookup'!A$1:D$17,3,FALSE) ->  | V28: No
A29: AQ0009MSS06P:MSSTI | B29: FY2019 | C29: MSSTV | D29: MSS | E29: 22:07 | F29: 22:07 Billable Technical Assistance - Data Reviews, Site Requests & QAPP | G29: 9 | H29: Title V | I29: TV1R | J29: #N/A | K29: #N/A | L29: TV1R Time & Materials | M29: Title V | N29: TV1R Time & Materials | O29: Title V | P29: 18335666 | Q29: 114.6 | R29: =VLOOKUP(B29,'CPI Cumulative BLS'!A$3:B$12,2,FALSE) -> 1.02 | S29: 116.89 | T29: =IF(ISNA(VLOOKUP(G29,Footnotes!C$2:C$29,1,FALSE)),"","Yes") ->  | U29: =VLOOKUP(A29,'RSA Lookup'!A$1:D$17,3,FALSE) ->  | V29: No
A30: AQ0009MSS07P:MSSTI | B30: FY2019 | C30: MSSTV | D30: MSS | E30: 22:02 | F30: 22:02 Billable Permitting - Tasks associated with 18 AAC 50.400(h) | G30: 9 | H30: Title V | I30: TV1R | J30: #N/A | K30: #N/A | L30: TV1R Time & Materials | M30: Title V | N30: TV1R Time & Materials | O30: Title V | P30: 18335666 | Q30: 1577.32 | R30: =VLOOKUP(B30,'CPI Cumulative BLS'!A$3:B$12,2,FALSE) -> 1.02 | S30: 1608.87 | T30: =IF(ISNA(VLOOKUP(G30,Footnotes!C$2:C$29,1,FALSE)),"","Yes") ->  | U30: =VLOOKUP(A30,'RSA Lookup'!A$1:D$17,3,FALSE) ->  | V30: No
A31: AQ0009PAA02P:TITE1 | B31: FY2017 | C31: TITE1 | D31: TITE OR TVTE | E31: 23:01 | F31: 23:01 Compliance - Routine Compliance, STP, STR activities | G31: 9 | H31: Title V | I31: TV1R | J31: #N/A | K31: #N/A | L31: TV1R Routine Compliance | M31: Title V | N31: TV1R Routine Compliance | O31: Title V | P31: 18335555 | Q31: 0 | R31: =VLOOKUP(B31,'CPI Cumulative BLS'!A$3:B$12,2,FALSE) -> 1.06 | S31: 0 | T31: =IF(ISNA(VLOOKUP(G31,Footnotes!C$2:C$29,1,FALSE)),"","Yes") ->  | U31: =VLOOKUP(A31,'RSA Lookup'!A$1:D$17,3,FALSE) ->  | V31: No
A32: AQ0009TVP03P:TV1R | B32: FY2018 | C32: TV1R | D32: TV1R | E32: 2000:03 | F32: 2000:03 TRAVEL - TRANSPORTATION (ROUTINE COMPLIANCE) | G32: 9 | H32: Title V | I32: TV1R | J32: TV1R Routine Compliance | K32: Title V | L32: #N/A | M32: #N/A | N32: TV1R Routine Compliance | O32: Title V | P32: 18335555 | Q32: 446.52 | R32: =VLOOKUP(B32,'CPI Cumulative BLS'!A$3:B$12,2,FALSE) -> 1.04 | S32: 464.38 | T32: =IF(ISNA(VLOOKUP(G32,Footnotes!C$2:C$29,1,FALSE)),"","Yes") ->  | U32: =VLOOKUP(A32,'RSA Lookup'!A$1:D$17,3,FALSE) ->  | V32: No
A33: AQ0009TVP03P:TV1R | B33: FY2018 | C33: TV1R | D33: TV1R | E33: 22:02 | F33: 22:02 Billable Permitting - Tasks associated with 18 AAC 50.400(h) | G33: 9 | H33: Title V | I33: TV1R | J33: TV1R Time & Materials | K33: Title V | L33: #N/A | M33: #N/A | N33: TV1R Time & Materials | O33: Title V | P33: 18335555 | Q33: 26.83 | R33: =VLOOKUP(B33,'CPI Cumulative BLS'!A$3:B$12,2,FALSE) -> 1.04 | S33: 27.9 | T33: =IF(ISNA(VLOOKUP(G33,Footnotes!C$2:C$29,1,FALSE)),"","Yes") ->  | U33: =VLOOKUP(A33,'RSA Lookup'!A$1:D$17,3,FALSE) ->  | V33: No
A34: AQ0009TVP03P:TV1R | B34: FY2018 | C34: TV1R | D34: TV1R | E34: 23:01 | F34: 23:01 Compliance - Routine Compliance, STP, STR activities | G34: 9 | H34: Title V | I34: TV1R | J34: TV1R Routine Compliance | K34: Title V | L34: #N/A | M34: #N/A | N34: TV1R Routine Compliance | O34: Title V | P34: 18335555 | Q34: 9083.92 | R34: =VLOOKUP(B34,'CPI Cumulative BLS'!A$3:B$12,2,FALSE) -> 1.04 | S34: 9447.28 | T34: =IF(ISNA(VLOOKUP(G34,Footnotes!C$2:C$29,1,FALSE)),"","Yes") ->  | U34: =VLOOKUP(A34,'RSA Lookup'!A$1:D$17,3,FALSE) ->  | V34: No
A35: AQ0009TVP03P:TV1R | B35: FY2018 | C35: TV1R | D35: TV1R | E35: 23:02 | F35: 23:02 Billable Compliance - Non-routine compliance activities | G35: 9 | H35: Title V | I35: TV1R | J35: TV1R Time & Materials | K35: Title V | L35: #N/A | M35: #N/A | N35: TV1R Time & Materials | O35: Title V | P35: 18335555 | Q35: 4377.9 | R35: =VLOOKUP(B35,'CPI Cumulative BLS'!A$3:B$12,2,FALSE) -> 1.04 | S35: 4553.02 | T35: =IF(ISNA(VLOOKUP(G35,Footnotes!C$2:C$29,1,FALSE)),"","Yes") ->  | U35: =VLOOKUP(A35,'RSA Lookup'!A$1:D$17,3,FALSE) ->  | V35: No
A36: AQ0009TVP03P:TV1R | B36: FY2018 | C36: TV1R | D36: TV1R | E36: 23:03 | F36: 23:03 Compliance - EE/PD Intake Only | G36: 9 | H36: Title V | I36: TV1R | J36: Excess Emissions - EE/PD Individual Fee | K36: Either | L36: #N/A | M36: #N/A | N36: Excess Emissions - EE/PD Individual Fee | O36: Either | P36: 18335555 | Q36: 32.96 | R36: =VLOOKUP(B36,'CPI Cumulative BLS'!A$3:B$12,2,FALSE) -> 1.04 | S36: 34.28 | T36: =IF(ISNA(VLOOKUP(G36,Footnotes!C$2:C$29,1,FALSE)),"","Yes") ->  | U36: =VLOOKUP(A36,'RSA Lookup'!A$1:D$17,3,FALSE) ->  | V36: No
A37: AQ0009TVP03P:TV1R | B37: FY2018 | C37: TV1R | D37: TV1R | E37: 3069:00 | F37: 3069:00 CONTRACTUAL SERVICES - STO FEES | G37: 9 | H37: Title V | I37: TV1R | J37: TV1R Routine Compliance | K37: Title V | L37: #N/A | M37: #N/A | N37: TV1R Routine Compliance | O37: Title V | P37: 18335555 | Q37: 24 | R37: =VLOOKUP(B37,'CPI Cumulative BLS'!A$3:B$12,2,FALSE) -> 1.04 | S37: 24.96 | T37: =IF(ISNA(VLOOKUP(G37,Footnotes!C$2:C$29,1,FALSE)),"","Yes") ->  | U37: =VLOOKUP(A37,'RSA Lookup'!A$1:D$17,3,FALSE) ->  | V37: No
A38: AQ0009TVP03P:TV1R | B38: FY2018 | C38: TV1R | D38: TV1R | E38: 3088:00 | F38: 3088:00 STATE OF ALASKA DEPT OF LAW | G38: 9 | H38: Title V | I38: TV1R | J38: TV1R Time & Materials | K38: Title V | L38: #N/A | M38: #N/A | N38: TV1R Time & Materials | O38: Title V | P38: 18335555 | Q38: 2187.36 | R38: =VLOOKUP(B38,'CPI Cumulative BLS'!A$3:B$12,2,FALSE) -> 1.04 | S38: 2274.85 | T38: =IF(ISNA(VLOOKUP(G38,Footnotes!C$2:C$29,1,FALSE)),"","Yes") ->  | U38: =VLOOKUP(A38,'RSA Lookup'!A$1:D$17,3,FALSE) ->  | V38: No
A39: AQ0009TVP03P:TV1R | B39: FY2019 | C39: TV1R | D39: TV1R | E39: 2000:03 | F39: 2000:03 TRAVEL - TRANSPORTATION (ROUTINE COMPLIANCE) | G39: 9 | H39: Title V | I39: TV1R | J39: TV1R Routine Compliance | K39: Title V | L39: #N/A | M39: #N/A | N39: TV1R Routine Compliance | O39: Title V | P39: 18335555 | Q39: 204.3 | R39: =VLOOKUP(B39,'CPI Cumulative BLS'!A$3:B$12,2,FALSE) -> 1.02 | S39: 208.39 | T39: =IF(ISNA(VLOOKUP(G39,Footnotes!C$2:C$29,1,FALSE)),"","Yes") ->  | U39: =VLOOKUP(A39,'RSA Lookup'!A$1:D$17,3,FALSE) ->  | V39: No
A40: AQ0009TVP03P:TV1R | B40: FY2019 | C40: TV1R | D40: TV1R | E40: 2000:05 | F40: 2000:05 TRAVEL - TRANSPORTATION (TIME & MATERIAL) | G40: 9 | H40: Title V | I40: TV1R | J40: TV1R Time & Materials | K40: Title V | L40: #N/A | M40: #N/A | N40: TV1R Time & Materials | O40: Title V | P40: 18335555 | Q40: 27 | R40: =VLOOKUP(B40,'CPI Cumulative BLS'!A$3:B$12,2,FALSE) -> 1.02 | S40: 27.54 | T40: =IF(ISNA(VLOOKUP(G40,Footnotes!C$2:C$29,1,FALSE)),"","Yes") ->  | U40: =VLOOKUP(A40,'RSA Lookup'!A$1:D$17,3,FALSE) ->  | V40: No
A41: AQ0009TVP03P:TV1R | B41: FY2019 | C41: TV1R | D41: TV1R | E41: 22:01 | F41: 22:01 Permitting - TV Renewal and/or Amendment | G41: 9 | H41: Title V | I41: TV1R | J41: TV1R Permit Administration | K41: Title V | L41: #N/A | M41: #N/A | N41: TV1R Permit Administration | O41: Title V | P41: 18335555 | Q41: 15.99 | R41: =VLOOKUP(B41,'CPI Cumulative BLS'!A$3:B$12,2,FALSE) -> 1.02 | S41: 16.31 | T41: =IF(ISNA(VLOOKUP(G41,Footnotes!C$2:C$29,1,FALSE)),"","Yes") ->  | U41: =VLOOKUP(A41,'RSA Lookup'!A$1:D$17,3,FALSE) ->  | V41: No
A42: AQ0009TVP03P:TV1R | B42: FY2019 | C42: TV1R | D42: TV1R | E42: 22:02 | F42: 22:02 Billable Permitting - Tasks associated with 18 AAC 50.400(h) | G42: 9 | H42: Title V | I42: TV1R | J42: TV1R Time & Materials | K42: Title V | L42: #N/A | M42: #N/A | N42: TV1R Time & Materials | O42: Title V | P42: 18335555 | Q42: 8 | R42: =VLOOKUP(B42,'CPI Cumulative BLS'!A$3:B$12,2,FALSE) -> 1.02 | S42: 8.16 | T42: =IF(ISNA(VLOOKUP(G42,Footnotes!C$2:C$29,1,FALSE)),"","Yes") ->  | U42: =VLOOKUP(A42,'RSA Lookup'!A$1:D$17,3,FALSE) ->  | V42: No
A43: AQ0009TVP03P:TV1R | B43: FY2019 | C43: TV1R | D43: TV1R | E43: 23:01 | F43: 23:01 Compliance - Routine Compliance, STP, STR activities | G43: 9 | H43: Title V | I43: TV1R | J43: TV1R Routine Compliance | K43: Title V | L43: #N/A | M43: #N/A | N43: TV1R Routine Compliance | O43: Title V | P43: 18335555 | Q43: 5741.09 | R43: =VLOOKUP(B43,'CPI Cumulative BLS'!A$3:B$12,2,FALSE) -> 1.02 | S43: 5855.91 | T43: =IF(ISNA(VLOOKUP(G43,Footnotes!C$2:C$29,1,FALSE)),"","Yes") ->  | U43: =VLOOKUP(A43,'RSA Lookup'!A$1:D$17,3,FALSE) ->  | V43: No
A44: AQ0009TVP03P:TV1R | B44: FY2019 | C44: TV1R | D44: TV1R | E44: 23:02 | F44: 23:02 Billable Compliance - Non-routine compliance activities | G44: 9 | H44: Title V | I44: TV1R | J44: TV1R Time & Materials | K44: Title V | L44: #N/A | M44: #N/A | N44: TV1R Time & Materials | O44: Title V | P44: 18335555 | Q44: 9449.61 | R44: =VLOOKUP(B44,'CPI Cumulative BLS'!A$3:B$12,2,FALSE) -> 1.02 | S44: 9638.6 | T44: =IF(ISNA(VLOOKUP(G44,Footnotes!C$2:C$29,1,FALSE)),"","Yes") ->  | U44: =VLOOKUP(A44,'RSA Lookup'!A$1:D$17,3,FALSE) ->  | V44: No
A45: AQ0009TVP03P:TV1R | B45: FY2019 | C45: TV1R | D45: TV1R | E45: 23:04 | F45: 23:04 Billable Compliance - Source Test Observation | G45: 9 | H45: Title V | I45: TV1R | J45: TV1R Time & Materials | K45: Title V | L45: #N/A | M45: #N/A | N45: TV1R Time & Materials | O45: Title V | P45: 18335555 | Q45: 2054.85 | R45: =VLOOKUP(B45,'CPI Cumulative BLS'!A$3:B$12,2,FALSE) -> 1.02 | S45: 2095.95 | T45: =IF(ISNA(VLOOKUP(G45,Footnotes!C$2:C$29,1,FALSE)),"","Yes") ->  | U45: =VLOOKUP(A45,'RSA Lookup'!A$1:D$17,3,FALSE) ->  | V45: No
A46: AQ0009TVP03P:TV1R | B46: FY2019 | C46: TV1R | D46: TV1R | E46: 3088:00 | F46: 3088:00 STATE OF ALASKA DEPT OF LAW | G46: 9 | H46: Title V | I46: TV1R | J46: TV1R Time & Materials | K46: Title V | L46: #N/A | M46: #N/A | N46: TV1R Time & Materials | O46: Title V | P46: 18335555 | Q46: 6488.4 | R46: =VLOOKUP(B46,'CPI Cumulative BLS'!A$3:B$12,2,FALSE) -> 1.02 | S46: 6618.17 | T46: =IF(ISNA(VLOOKUP(G46,Footnotes!C$2:C$29,1,FALSE)),"","Yes") ->  | U46: =VLOOKUP(A46,'RSA Lookup'!A$1:D$17,3,FALSE) ->  | V46: No
A47: AQ0009TVP03P:TV1R1 | B47: FY2017 | C47: TV1R1 | D47: TV1R | E47: 2000:03 | F47: 2000:03 TRAVEL - TRANSPORTATION (ROUTINE COMPLIANCE) | G47: 9 | H47: Title V | I47: TV1R | J47: TV1R Routine Compliance | K47: Title V | L47: #N/A | M47: #N/A | N47: TV1R Routine Compliance | O47: Title V | P47: 18335555 | Q47: 14.85 | R47: =VLOOKUP(B47,'CPI Cumulative BLS'!A$3:B$12,2,FALSE) -> 1.06 | S47: 15.74 | T47: =IF(ISNA(VLOOKUP(G47,Footnotes!C$2:C$29,1,FALSE)),"","Yes") ->  | U47: =VLOOKUP(A47,'RSA Lookup'!A$1:D$17,3,FALSE) ->  | V47: No
A48: AQ0009TVP03P:TV1R1 | B48: FY2017 | C48: TV1R1 | D48: TV1R | E48: 2000:04 | F48: 2000:04 TRAVEL - TRANSPORTATION (FLAT FEE PERMITTING) | G48: 9 | H48: Title V | I48: TV1R | J48: TV1R Permit Administration | K48: Title V | L48: #N/A | M48: #N/A | N48: TV1R Permit Administration | O48: Title V | P48: 18335555 | Q48: 22.5 | R48: =VLOOKUP(B48,'CPI Cumulative BLS'!A$3:B$12,2,FALSE) -> 1.06 | S48: 23.85 | T48: =IF(ISNA(VLOOKUP(G48,Footnotes!C$2:C$29,1,FALSE)),"","Yes") ->  | U48: =VLOOKUP(A48,'RSA Lookup'!A$1:D$17,3,FALSE) ->  | V48: No
A49: AQ0009TVP03P:TV1R1 | B49: FY2017 | C49: TV1R1 | D49: TV1R | E49: 23:01 | F49: 23:01 Compliance - Routine Compliance, STP, STR activities | G49: 9 | H49: Title V | I49: TV1R | J49: TV1R Routine Compliance | K49: Title V | L49: #N/A | M49: #N/A | N49: TV1R Routine Compliance | O49: Title V | P49: 18335555 | Q49: 4909.1 | R49: =VLOOKUP(B49,'CPI Cumulative BLS'!A$3:B$12,2,FALSE) -> 1.06 | S49: 5203.65 | T49: =IF(ISNA(VLOOKUP(G49,Footnotes!C$2:C$29,1,FALSE)),"","Yes") ->  | U49: =VLOOKUP(A49,'RSA Lookup'!A$1:D$17,3,FALSE) ->  | V49: No
A50: AQ0009TVP03P:TV1R1 | B50: FY2017 | C50: TV1R1 | D50: TV1R | E50: 23:02 | F50: 23:02 Billable Compliance - Non-routine compliance activities | G50: 9 | H50: Title V | I50: TV1R | J50: TV1R Time & Materials | K50: Title V | L50: #N/A | M50: #N/A | N50: TV1R Time & Materials | O50: Title V | P50: 18335555 | Q50: 957.04 | R50: =VLOOKUP(B50,'CPI Cumulative BLS'!A$3:B$12,2,FALSE) -> 1.06 | S50: 1014.46 | T50: =IF(ISNA(VLOOKUP(G50,Footnotes!C$2:C$29,1,FALSE)),"","Yes") ->  | U50: =VLOOKUP(A50,'RSA Lookup'!A$1:D$17,3,FALSE) ->  | V50: No
A51: AQ0009TVP03P:TV1R1 | B51: FY2017 | C51: TV1R1 | D51: TV1R | E51: 23:03 | F51: 23:03 Compliance - EE/PD Intake Only | G51: 9 | H51: Title V | I51: TV1R | J51: Excess Emissions - EE/PD Individual Fee | K51: Either | L51: #N/A | M51: #N/A | N51: Excess Emissions - EE/PD Individual Fee | O51: Either | P51: 18335555 | Q51: 17.06 | R51: =VLOOKUP(B51,'CPI Cumulative BLS'!A$3:B$12,2,FALSE) -> 1.06 | S51: 18.08 | T51: =IF(ISNA(VLOOKUP(G51,Footnotes!C$2:C$29,1,FALSE)),"","Yes") ->  | U51: =VLOOKUP(A51,'RSA Lookup'!A$1:D$17,3,FALSE) ->  | V51: No
A52: AQ0009TVP04A:TV1R | B52: FY2019 | C52: TV1R | D52: TV1R | E52: 22:01 | F52: 22:01 Permitting - TV Renewal and/or Amendment | G52: 9 | H52: Title V | I52: TV1R | J52: TV1R Permit Administration | K52: Title V | L52: #N/A | M52: #N/A | N52: TV1R Permit Administration | O52: Title V | P52: 18335555 | Q52: 2242.76 | R52: =VLOOKUP(B52,'CPI Cumulative BLS'!A$3:B$12,2,FALSE) -> 1.02 | S52: 2287.62 | T52: =IF(ISNA(VLOOKUP(G52,Footnotes!C$2:C$29,1,FALSE)),"","Yes") ->  | U52: =VLOOKUP(A52,'RSA Lookup'!A$1:D$17,3,FALSE) ->  | V52: No
A53: AQ0009TVP04A:TV1R | B53: FY2019 | C53: TV1R | D53: TV1R | E53: 22:02 | F53: 22:02 Billable Permitting - Tasks associated with 18 AAC 50.400(h) | G53: 9 | H53: Title V | I53: TV1R | J53: TV1R Time & Materials | K53: Title V | L53: #N/A | M53: #N/A | N53: TV1R Time & Materials | O53: Title V | P53: 18335555 | Q53: 12.93 | R53: =VLOOKUP(B53,'CPI Cumulative BLS'!A$3:B$12,2,FALSE) -> 1.02 | S53: 13.19 | T53: =IF(ISNA(VLOOKUP(G53,Footnotes!C$2:C$29,1,FALSE)),"","Yes") ->  | U53: =VLOOKUP(A53,'RSA Lookup'!A$1:D$17,3,FALSE) ->  | V53: No
A54: AQ0009TVP04A:TV1R | B54: FY2019 | C54: TV1R | D54: TV1R | E54: 23:01 | F54: 23:01 Compliance - Routine Compliance, STP, STR activities | G54: 9 | H54: Title V | I54: TV1R | J54: TV1R Routine Compliance | K54: Title V | L54: #N/A | M54: #N/A | N54: TV1R Routine Compliance | O54: Title V | P54: 18335555 | Q54: 40.24 | R54: =VLOOKUP(B54,'CPI Cumulative BLS'!A$3:B$12,2,FALSE) -> 1.02 | S54: 41.04 | T54: =IF(ISNA(VLOOKUP(G54,Footnotes!C$2:C$29,1,FALSE)),"","Yes") ->  | U54: =VLOOKUP(A54,'RSA Lookup'!A$1:D$17,3,FALSE) ->  | V54: No
A55: AQ0009TVP04A:TV1R | B55: FY2019 | C55: TV1R | D55: TV1R | E55: 23:02 | F55: 23:02 Billable Compliance - Non-routine compliance activities | G55: 9 | H55: Title V | I55: TV1R | J55: TV1R Time & Materials | K55: Title V | L55: #N/A | M55: #N/A | N55: TV1R Time & Materials | O55: Title V | P55: 18335555 | Q55: 228.02 | R55: =VLOOKUP(B55,'CPI Cumulative BLS'!A$3:B$12,2,FALSE) -> 1.02 | S55: 232.58 | T55: =IF(ISNA(VLOOKUP(G55,Footnotes!C$2:C$29,1,FALSE)),"","Yes") ->  | U55: =VLOOKUP(A55,'RSA Lookup'!A$1:D$17,3,FALSE) ->  | V55: No
A56: AQ0010PL201P:PAEL | B56: FY2018 | C56: PAEL | D56: PAEL | E56: 23:01 | F56: 23:01 Compliance - Routine Compliance, STP, STR activities | G56: 10 | H56: Title I | I56: PAEL | J56: PAEL Routine Compliance | K56: Either | L56: #N/A | M56: #N/A | N56: PAEL Routine Compliance | O56: Either | P56: 18335555 | Q56: 124.5 | R56: =VLOOKUP(B56,'CPI Cumulative BLS'!A$3:B$12,2,FALSE) -> 1.04 | S56: 129.48 | T56: =IF(ISNA(VLOOKUP(G56,Footnotes!C$2:C$29,1,FALSE)),"","Yes") ->  | U56: =VLOOKUP(A56,'RSA Lookup'!A$1:D$17,3,FALSE) ->  | V56: No
A57: AQ0010PL201P:PAEL | B57: FY2019 | C57: PAEL | D57: PAEL | E57: 23:01 | F57: 23:01 Compliance - Routine Compliance, STP, STR activities | G57: 10 | H57: Title I | I57: PAEL | J57: PAEL Routine Compliance | K57: Either | L57: #N/A | M57: #N/A | N57: PAEL Routine Compliance | O57: Either | P57: 18335555 | Q57: 608.32 | R57: =VLOOKUP(B57,'CPI Cumulative BLS'!A$3:B$12,2,FALSE) -> 1.02 | S57: 620.49 | T57: =IF(ISNA(VLOOKUP(G57,Footnotes!C$2:C$29,1,FALSE)),"","Yes") ->  | U57: =VLOOKUP(A57,'RSA Lookup'!A$1:D$17,3,FALSE) ->  | V57: No
A58: AQ0010PL201P:PAEL1 | B58: FY2017 | C58: PAEL1 | D58: PAEL | E58: 23:01 | F58: 23:01 Compliance - Routine Compliance, STP, STR activities | G58: 10 | H58: Title I | I58: PAEL | J58: PAEL Routine Compliance | K58: Either | L58: #N/A | M58: #N/A | N58: PAEL Routine Compliance | O58: Either | P58: 18335555 | Q58: 49.53 | R58: =VLOOKUP(B58,'CPI Cumulative BLS'!A$3:B$12,2,FALSE) -> 1.06 | S58: 52.5 | T58: =IF(ISNA(VLOOKUP(G58,Footnotes!C$2:C$29,1,FALSE)),"","Yes") ->  | U58: =VLOOKUP(A58,'RSA Lookup'!A$1:D$17,3,FALSE) ->  | V58: No
A59: AQ0014MSS03P:MSSTI | B59: FY2018 | C59: MSSTV | D59: MSS | E59: 22:02 | F59: 22:02 Billable Permitting - Tasks associated with 18 AAC 50.400(h) | G59: 14 | H59: Title V | I59: TV6R | J59: #N/A | K59: #N/A | L59: TV6R Time & Materials | M59: Title V | N59: TV6R Time & Materials | O59: Title V | P59: 18335666 | Q59: 317.04 | R59: =VLOOKUP(B59,'CPI Cumulative BLS'!A$3:B$12,2,FALSE) -> 1.04 | S59: 329.72 | T59: =IF(ISNA(VLOOKUP(G59,Footnotes!C$2:C$29,1,FALSE)),"","Yes") ->  | U59: =VLOOKUP(A59,'RSA Lookup'!A$1:D$17,3,FALSE) ->  | V59: No
A60: AQ0014MSS03P:MSSTI | B60: FY2019 | C60: MSSTV | D60: MSS | E60: 22:02 | F60: 22:02 Billable Permitting - Tasks associated with 18 AAC 50.400(h) | G60: 14 | H60: Title V | I60: TV6R | J60: #N/A | K60: #N/A | L60: TV6R Time & Materials | M60: Title V | N60: TV6R Time & Materials | O60: Title V | P60: 18335666 | Q60: 1407.61 | R60: =VLOOKUP(B60,'CPI Cumulative BLS'!A$3:B$12,2,FALSE) -> 1.02 | S60: 1435.76 | T60: =IF(ISNA(VLOOKUP(G60,Footnotes!C$2:C$29,1,FALSE)),"","Yes") ->  | U60: =VLOOKUP(A60,'RSA Lookup'!A$1:D$17,3,FALSE) ->  | V60: No
A61: AQ0014TVP01P:TV9R1 | B61: FY2017 | C61: TV9R1 | D61: TV9R | E61: 23:01 | F61: 23:01 Compliance - Routine Compliance, STP, STR activities | G61: 14 | H61: Title V | I61: TV6R | J61: TV9R Routine Compliance | K61: Title V | L61: TV6R Routine Compliance | M61: Title V | N61: TV6R Routine Compliance | O61: Title V | P61: 18335555 | Q61: 1891.79 | R61: =VLOOKUP(B61,'CPI Cumulative BLS'!A$3:B$12,2,FALSE) -> 1.06 | S61: 2005.3 | T61: =IF(ISNA(VLOOKUP(G61,Footnotes!C$2:C$29,1,FALSE)),"","Yes") ->  | U61: =VLOOKUP(A61,'RSA Lookup'!A$1:D$17,3,FALSE) ->  | V61: No
A62: AQ0014TVP01P:TV9R1 | B62: FY2018 | C62: TV9R | D62: TV9R | E62: 22:02 | F62: 22:02 Billable Permitting - Tasks associated with 18 AAC 50.400(h) | G62: 14 | H62: Title V | I62: TV6R | J62: TV9R Time & Materials | K62: Title V | L62: TV6R Time & Materials | M62: Title V | N62: TV6R Time & Materials | O62: Title V | P62: 18335555 | Q62: 27.57 | R62: =VLOOKUP(B62,'CPI Cumulative BLS'!A$3:B$12,2,FALSE) -> 1.04 | S62: 28.67 | T62: =IF(ISNA(VLOOKUP(G62,Footnotes!C$2:C$29,1,FALSE)),"","Yes") ->  | U62: =VLOOKUP(A62,'RSA Lookup'!A$1:D$17,3,FALSE) ->  | V62: No
A63: AQ0014TVP01P:TV9R1 | B63: FY2018 | C63: TV9R | D63: TV9R | E63: 23:01 | F63: 23:01 Compliance - Routine Compliance, STP, STR activities | G63: 14 | H63: Title V | I63: TV6R | J63: TV9R Routine Compliance | K63: Title V | L63: TV6R Routine Compliance | M63: Title V | N63: TV6R Routine Compliance | O63: Title V | P63: 18335555 | Q63: 1309.94 | R63: =VLOOKUP(B63,'CPI Cumulative BLS'!A$3:B$12,2,FALSE) -> 1.04 | S63: 1362.34 | T63: =IF(ISNA(VLOOKUP(G63,Footnotes!C$2:C$29,1,FALSE)),"","Yes") ->  | U63: =VLOOKUP(A63,'RSA Lookup'!A$1:D$17,3,FALSE) ->  | V63: No
A64: AQ0014TVP02P:TV9R | B64: FY2018 | C64: TV9R | D64: TV9R | E64: 22:01 | F64: 22:01 Permitting - TV Renewal and/or Amendment | G64: 14 | H64: Title V | I64: TV6R | J64: TV9R Permit Administration | K64: Title V | L64: TV6R Permit Administration | M64: Title V | N64: TV6R Permit Administration | O64: Title V | P64: 18335555 | Q64: 2115.61 | R64: =VLOOKUP(B64,'CPI Cumulative BLS'!A$3:B$12,2,FALSE) -> 1.04 | S64: 2200.23 | T64: =IF(ISNA(VLOOKUP(G64,Footnotes!C$2:C$29,1,FALSE)),"","Yes") ->  | U64: =VLOOKUP(A64,'RSA Lookup'!A$1:D$17,3,FALSE) ->  | V64: No
A65: AQ0014TVP02P:TV9R | B65: FY2018 | C65: TV9R | D65: TV9R | E65: 23:01 | F65: 23:01 Compliance - Routine Compliance, STP, STR activities | G65: 14 | H65: Title V | I65: TV6R | J65: TV9R Routine Compliance | K65: Title V | L65: TV6R Routine Compliance | M65: Title V | N65: TV6R Routine Compliance | O65: Title V | P65: 18335555 | Q65: 10.69 | R65: =VLOOKUP(B65,'CPI Cumulative BLS'!A$3:B$12,2,FALSE) -> 1.04 | S65: 11.12 | T65: =IF(ISNA(VLOOKUP(G65,Footnotes!C$2:C$29,1,FALSE)),"","Yes") ->  | U65: =VLOOKUP(A65,'RSA Lookup'!A$1:D$17,3,FALSE) ->  | V65: No
A66: AQ0014TVP02P:TV9R | B66: FY2019 | C66: TV9R | D66: TV9R | E66: 22:01 | F66: 22:01 Permitting - TV Renewal and/or Amendment | G66: 14 | H66: Title V | I66: TV6R | J66: TV9R Permit Administration | K66: Title V | L66: TV6R Permit Administration | M66: Title V | N66: TV6R Permit Administration | O66: Title V | P66: 18335555 | Q66: 5554.09 | R66: =VLOOKUP(B66,'CPI Cumulative BLS'!A$3:B$12,2,FALSE) -> 1.02 | S66: 5665.17 | T66: =IF(ISNA(VLOOKUP(G66,Footnotes!C$2:C$29,1,FALSE)),"","Yes") ->  | U66: =VLOOKUP(A66,'RSA Lookup'!A$1:D$17,3,FALSE) ->  | V66: No
A67: AQ0014TVP02P:TV9R | B67: FY2019 | C67: TV9R | D67: TV9R | E67: 23:01 | F67: 23:01 Compliance - Routine Compliance, STP, STR activities | G67: 14 | H67: Title V | I67: TV6R | J67: TV9R Routine Compliance | K67: Title V | L67: TV6R Routine Compliance | M67: Title V | N67: TV6R Routine Compliance | O67: Title V | P67: 18335555 | Q67: 177.78 | R67: =VLOOKUP(B67,'CPI Cumulative BLS'!A$3:B$12,2,FALSE) -> 1.02 | S67: =ROUND(Q67*R67,2) -> 181.34 | T67: =IF(ISNA(VLOOKUP(G67,Footnotes!C$2:C$29,1,FALSE)),"","Yes") ->  | U67: =VLOOKUP(A67,'RSA Lookup'!A$1:D$17,3,FALSE) ->  | V67: No
A68: AQ0015ORL02P:ORLTV | B68: FY2018 | C68: ORLTV | D68: ORL | E68: 23:01 | F68: 23:01 Compliance - Routine Compliance, STP, STR activities | G68: 15 | H68: Title I | I68: ORL | J68: #N/A | K68: #N/A | L68: ORL Routine Compliance | M68: Title I | N68: ORL Routine Compliance | O68: Title I | P68: 18335555 | Q68: 23.47 | R68: =VLOOKUP(B68,'CPI Cumulative BLS'!A$3:B$12,2,FALSE) -> 1.04 | S68: 24.41 | T68: =IF(ISNA(VLOOKUP(G68,Footnotes!C$2:C$29,1,FALSE)),"","Yes") ->  | U68: =VLOOKUP(A68,'RSA Lookup'!A$1:D$17,3,FALSE) ->  | V68: No
A69: AQ0015ORL02P:ORLTV | B69: FY2019 | C69: ORLTV | D69: ORL | E69: 23:01 | F69: 23:01 Compliance - Routine Compliance, STP, STR activities | G69: 15 | H69: Title I | I69: ORL | J69: #N/A | K69: #N/A | L69: ORL Routine Compliance | M69: Title I | N69: ORL Routine Compliance | O69: Title I | P69: 18335555 | Q69: 1120.19 | R69: =VLOOKUP(B69,'CPI Cumulative BLS'!A$3:B$12,2,FALSE) -> 1.02 | S69: 1142.59 | T69: =IF(ISNA(VLOOKUP(G69,Footnotes!C$2:C$29,1,FALSE)),"","Yes") ->  | U69: =VLOOKUP(A69,'RSA Lookup'!A$1:D$17,3,FALSE) ->  | V69: No
A70: AQ0015ORL02P:ORLTV1 | B70: FY2017 | C70: ORLTV1 | D70: ORL | E70: 23:01 | F70: 23:01 Compliance - Routine Compliance, STP, STR activities | G70: 15 | H70: Title I | I70: ORL | J70: #N/A | K70: #N/A | L70: ORL Routine Compliance | M70: Title I | N70: ORL Routine Compliance | O70: Title I | P70: 18335555 | Q70: 154.67 | R70: =VLOOKUP(B70,'CPI Cumulative BLS'!A$3:B$12,2,FALSE) -> 1.06 | S70: 163.95 | T70: =IF(ISNA(VLOOKUP(G70,Footnotes!C$2:C$29,1,FALSE)),"","Yes") ->  | U70: =VLOOKUP(A70,'RSA Lookup'!A$1:D$17,3,FALSE) ->  | V70: No
A71: AQ0018ORL05P:ORLTV | B71: FY2018 | C71: ORLTV | D71: ORL | E71: 23:01 | F71: 23:01 Compliance - Routine Compliance, STP, STR activities | G71: 18 | H71: Title I | I71: ORL | J71: #N/A | K71: #N/A | L71: ORL Routine Compliance | M71: Title I | N71: ORL Routine Compliance | O71: Title I | P71: 18335555 | Q71: 48.61 | R71: =VLOOKUP(B71,'CPI Cumulative BLS'!A$3:B$12,2,FALSE) -> 1.04 | S71: 50.55 | T71: =IF(ISNA(VLOOKUP(G71,Footnotes!C$2:C$29,1,FALSE)),"","Yes") ->  | U71: =VLOOKUP(A71,'RSA Lookup'!A$1:D$17,3,FALSE) ->  | V71: No
A72: AQ0018ORL05P:ORLTV | B72: FY2019 | C72: ORLTV | D72: ORL | E72: 23:01 | F72: 23:01 Compliance - Routine Compliance, STP, STR activities | G72: 18 | H72: Title I | I72: ORL | J72: #N/A | K72: #N/A | L72: ORL Routine Compliance | M72: Title I | N72: ORL Routine Compliance | O72: Title I | P72: 18335555 | Q72: 65.76 | R72: =VLOOKUP(B72,'CPI Cumulative BLS'!A$3:B$12,2,FALSE) -> 1.02 | S72: 67.08 | T72: =IF(ISNA(VLOOKUP(G72,Footnotes!C$2:C$29,1,FALSE)),"","Yes") ->  | U72: =VLOOKUP(A72,'RSA Lookup'!A$1:D$17,3,FALSE) ->  | V72: Yes
A73: AQ0018ORL05P:ORLTV1 | B73: FY2017 | C73: ORLTV1 | D73: ORL | E73: 23:01 | F73: 23:01 Compliance - Routine Compliance, STP, STR activities | G73: 18 | H73: Title I | I73: ORL | J73: #N/A | K73: #N/A | L73: ORL Routine Compliance | M73: Title I | N73: ORL Routine Compliance | O73: Title I | P73: 18335555 | Q73: 602.51 | R73: =VLOOKUP(B73,'CPI Cumulative BLS'!A$3:B$12,2,FALSE) -> 1.06 | S73: 638.66 | T73: =IF(ISNA(VLOOKUP(G73,Footnotes!C$2:C$29,1,FALSE)),"","Yes") ->  | U73: =VLOOKUP(A73,'RSA Lookup'!A$1:D$17,3,FALSE) ->  | V73: Yes
A74: AQ0019PL201P:PAEL | B74: FY2018 | C74: PAEL | D74: PAEL | E74: 23:01 | F74: 23:01 Compliance - Routine Compliance, STP, STR activities | G74: 19 | H74: Title I | I74: PAEL | J74: PAEL Routine Compliance | K74: Either | L74: #N/A | M74: #N/A | N74: PAEL Routine Compliance | O74: Either | P74: 18335555 | Q74: 23.58 | R74: =VLOOKUP(B74,'CPI Cumulative BLS'!A$3:B$12,2,FALSE) -> 1.04 | S74: 24.52 | T74: =IF(ISNA(VLOOKUP(G74,Footnotes!C$2:C$29,1,FALSE)),"","Yes") ->  | U74: =VLOOKUP(A74,'RSA Lookup'!A$1:D$17,3,FALSE) ->  | V74: Yes
A75: AQ0019PL201P:PAEL | B75: FY2019 | C75: PAEL | D75: PAEL | E75: 22:02 | F75: 22:02 Billable Permitting - Tasks associated with 18 AAC 50.400(h) | G75: 19 | H75: Title I | I75: PAEL | J75: PAEL Time & Materials | K75: Either | L75: #N/A | M75: #N/A | N75: PAEL Time & Materials | O75: Either | P75: 18335555 | Q75: 23.58 | R75: =VLOOKUP(B75,'CPI Cumulative BLS'!A$3:B$12,2,FALSE) -> 1.02 | S75: 24.05 | T75: =IF(ISNA(VLOOKUP(G75,Footnotes!C$2:C$29,1,FALSE)),"","Yes") ->  | U75: =VLOOKUP(A75,'RSA Lookup'!A$1:D$17,3,FALSE) ->  | V75: Yes
A76: AQ0019PL201P:PAEL | B76: FY2019 | C76: PAEL | D76: PAEL | E76: 23:01 | F76: 23:01 Compliance - Routine Compliance, STP, STR activities | G76: 19 | H76: Title I | I76: PAEL | J76: PAEL Routine Compliance | K76: Either | L76: #N/A | M76: #N/A | N76: PAEL Routine Compliance | O76: Either | P76: 18335555 | Q76: 823.9 | R76: =VLOOKUP(B76,'CPI Cumulative BLS'!A$3:B$12,2,FALSE) -> 1.02 | S76: 840.38 | T76: =IF(ISNA(VLOOKUP(G76,Footnotes!C$2:C$29,1,FALSE)),"","Yes") ->  | U76: =VLOOKUP(A76,'RSA Lookup'!A$1:D$17,3,FALSE) ->  | V76: Yes
A77: AQ0019PL201P:PAEL1 | B77: FY2017 | C77: PAEL1 | D77: PAEL | E77: 23:01 | F77: 23:01 Compliance - Routine Compliance, STP, STR activities | G77: 19 | H77: Title I | I77: PAEL | J77: PAEL Routine Compliance | K77: Either | L77: #N/A | M77: #N/A | N77: PAEL Routine Compliance | O77: Either | P77: 18335555 | Q77: 51.8 | R77: =VLOOKUP(B77,'CPI Cumulative BLS'!A$3:B$12,2,FALSE) -> 1.06 | S77: 54.91 | T77: =IF(ISNA(VLOOKUP(G77,Footnotes!C$2:C$29,1,FALSE)),"","Yes") ->  | U77: =VLOOKUP(A77,'RSA Lookup'!A$1:D$17,3,FALSE) ->  | V77: Yes
A78: AQ0021MSS02P:MSSTI | B78: FY2018 | C78: MSSTV | D78: MSS | E78: 23:01 | F78: 23:01 Compliance - Routine Compliance, STP, STR activities | G78: 21 | H78: Title V | I78: TV6R | J78: #N/A | K78: #N/A | L78: TV6R Routine Compliance | M78: Title V | N78: TV6R Routine Compliance | O78: Title V | P78: 18335666 | Q78: 56.92 | R78: =VLOOKUP(B78,'CPI Cumulative BLS'!A$3:B$12,2,FALSE) -> 1.04 | S78: 59.2 | T78: =IF(ISNA(VLOOKUP(G78,Footnotes!C$2:C$29,1,FALSE)),"","Yes") ->  | U78: =VLOOKUP(A78,'RSA Lookup'!A$1:D$17,3,FALSE) ->  | V78: Yes
A79: AQ0021PAA01P:TITE1 | B79: FY2017 | C79: TITE1 | D79: TITE OR TVTE | E79: 22:01 | F79: 22:01 Permitting - TV Renewal and/or Amendment | G79: 21 | H79: Title V | I79: TV6R | J79: #N/A | K79: #N/A | L79: TV6R Permit Administration | M79: Title V | N79: TV6R Permit Administration | O79: Title V | P79: 18335555 | Q79: 0 | R79: =VLOOKUP(B79,'CPI Cumulative BLS'!A$3:B$12,2,FALSE) -> 1.06 | S79: 0 | T79: =IF(ISNA(VLOOKUP(G79,Footnotes!C$2:C$29,1,FALSE)),"","Yes") ->  | U79: =VLOOKUP(A79,'RSA Lookup'!A$1:D$17,3,FALSE) ->  | V79: Yes
A80: AQ0021TVP03P:TV6R1 | B80: FY2017 | C80: TV6R1 | D80: TV6R | E80: 23:01 | F80: 23:01 Compliance - Routine Compliance, STP, STR activities | G80: 21 | H80: Title V | I80: TV6R | J80: TV6R Routine Compliance | K80: Title V | L80: #N/A | M80: #N/A | N80: TV6R Routine Compliance | O80: Title V | P80: 18335555 | Q80: 2049.76 | R80: =VLOOKUP(B80,'CPI Cumulative BLS'!A$3:B$12,2,FALSE) -> 1.06 | S80: 2172.75 | T80: =IF(ISNA(VLOOKUP(G80,Footnotes!C$2:C$29,1,FALSE)),"","Yes") ->  | U80: =VLOOKUP(A80,'RSA Lookup'!A$1:D$17,3,FALSE) ->  | V80: Yes
A81: AQ0021TVP04P:TV6R | B81: FY2018 | C81: TV6R | D81: TV6R | E81: 23:01 | F81: 23:01 Compliance - Routine Compliance, STP, STR activities | G81: 21 | H81: Title V | I81: TV6R | J81: TV6R Routine Compliance | K81: Title V | L81: #N/A | M81: #N/A | N81: TV6R Routine Compliance | O81: Title V | P81: 18335555 | Q81: 3329.22 | R81: =VLOOKUP(B81,'CPI Cumulative BLS'!A$3:B$12,2,FALSE) -> 1.04 | S81: 3462.39 | T81: =IF(ISNA(VLOOKUP(G81,Footnotes!C$2:C$29,1,FALSE)),"","Yes") ->  | U81: =VLOOKUP(A81,'RSA Lookup'!A$1:D$17,3,FALSE) ->  | V81: Yes
A82: AQ0021TVP04P:TV6R | B82: FY2019 | C82: TV6R | D82: TV6R | E82: 23:01 | F82: 23:01 Compliance - Routine Compliance, STP, STR activities | G82: 21 | H82: Title V | I82: TV6R | J82: TV6R Routine Compliance | K82: Title V | L82: #N/A | M82: #N/A | N82: TV6R Routine Compliance | O82: Title V | P82: 18335555 | Q82: 474.64 | R82: =VLOOKUP(B82,'CPI Cumulative BLS'!A$3:B$12,2,FALSE) -> 1.02 | S82: 484.13 | T82: =IF(ISNA(VLOOKUP(G82,Footnotes!C$2:C$29,1,FALSE)),"","Yes") ->  | U82: =VLOOKUP(A82,'RSA Lookup'!A$1:D$17,3,FALSE) ->  | V82: Yes
A83: AQ0021TVP04P:TV6R1 | B83: FY2017 | C83: TV6R1 | D83: TV6R | E83: 2000:03 | F83: 2000:03 TRAVEL - TRANSPORTATION (ROUTINE COMPLIANCE) | G83: 21 | H83: Title V | I83: TV6R | J83: TV6R Routine Compliance | K83: Title V | L83: #N/A | M83: #N/A | N83: TV6R Routine Compliance | O83: Title V | P83: 18335555 | Q83: 190.7 | R83: =VLOOKUP(B83,'CPI Cumulative BLS'!A$3:B$12,2,FALSE) -> 1.06 | S83: 202.14 | T83: =IF(ISNA(VLOOKUP(G83,Footnotes!C$2:C$29,1,FALSE)),"","Yes") ->  | U83: =VLOOKUP(A83,'RSA Lookup'!A$1:D$17,3,FALSE) ->  | V83: Yes
A84: AQ0021TVP04P:TV6R1 | B84: FY2017 | C84: TV6R1 | D84: TV6R | E84: 22:01 | F84: 22:01 Permitting - TV Renewal and/or Amendment | G84: 21 | H84: Title V | I84: TV6R | J84: TV6R Permit Administration | K84: Title V | L84: #N/A | M84: #N/A | N84: TV6R Permit Administration | O84: Title V | P84: 18335555 | Q84: 3956.45 | R84: =VLOOKUP(B84,'CPI Cumulative BLS'!A$3:B$12,2,FALSE) -> 1.06 | S84: 4193.84 | T84: =IF(ISNA(VLOOKUP(G84,Footnotes!C$2:C$29,1,FALSE)),"","Yes") ->  | U84: =VLOOKUP(A84,'RSA Lookup'!A$1:D$17,3,FALSE) ->  | V84: Yes
A85: AQ0021TVP04P:TV6R1 | B85: FY2017 | C85: TV6R1 | D85: TV6R | E85: 23:01 | F85: 23:01 Compliance - Routine Compliance, STP, STR activities | G85: 21 | H85: Title V | I85: TV6R | J85: TV6R Routine Compliance | K85: Title V | L85: #N/A | M85: #N/A | N85: TV6R Routine Compliance | O85: Title V | P85: 18335555 | Q85: 19.96 | R85: =VLOOKUP(B85,'CPI Cumulative BLS'!A$3:B$12,2,FALSE) -> 1.06 | S85: 21.16 | T85: =IF(ISNA(VLOOKUP(G85,Footnotes!C$2:C$29,1,FALSE)),"","Yes") ->  | U85: =VLOOKUP(A85,'RSA Lookup'!A$1:D$17,3,FALSE) ->  | V85: Yes
A86: AQ0021TVP04P:TV6R1 | B86: FY2017 | C86: TV6R1 | D86: TV6R | E86: 3046:02 | F86: 3046:02 AD ORDER (FLAT FEE PERMITTING) | G86: 21 | H86: Title V | I86: TV6R | J86: TV6R Permit Administration | K86: Title V | L86: #N/A | M86: #N/A | N86: TV6R Permit Administration | O86: Title V | P86: 18335555 | Q86: 204.72 | R86: =VLOOKUP(B86,'CPI Cumulative BLS'!A$3:B$12,2,FALSE) -> 1.06 | S86: 217 | T86: =IF(ISNA(VLOOKUP(G86,Footnotes!C$2:C$29,1,FALSE)),"","Yes") ->  | U86: =VLOOKUP(A86,'RSA Lookup'!A$1:D$17,3,FALSE) ->  | V86: Yes
A87: AQ0023ORL03P:ORLTV | B87: FY2018 | C87: ORLTV | D87: ORL | E87: 23:01 | F87: 23:01 Compliance - Routine Compliance, STP, STR activities | G87: 23 | H87: Title I | I87: ORL | J87: #N/A | K87: #N/A | L87: ORL Routine Compliance | M87: Title I | N87: ORL Routine Compliance | O87: Title I | P87: 18335555 | Q87: 6.99 | R87: =VLOOKUP(B87,'CPI Cumulative BLS'!A$3:B$12,2,FALSE) -> 1.04 | S87: 7.27 | T87: =IF(ISNA(VLOOKUP(G87,Footnotes!C$2:C$29,1,FALSE)),"","Yes") ->  | U87: =VLOOKUP(A87,'RSA Lookup'!A$1:D$17,3,FALSE) ->  | V87: Yes
A88: AQ0023ORL03P:ORLTV | B88: FY2019 | C88: ORLTV | D88: ORL | E88: 22:02 | F88: 22:02 Billable Permitting - Tasks associated with 18 AAC 50.400(h) | G88: 23 | H88: Title I | I88: ORL | J88: #N/A | K88: #N/A | L88: ORL Time & Materials | M88: Title I | N88: ORL Time & Materials | O88: Title I | P88: 18335555 | Q88: 8.4 | R88: =VLOOKUP(B88,'CPI Cumulative BLS'!A$3:B$12,2,FALSE) -> 1.02 | S88: 8.57 | T88: =IF(ISNA(VLOOKUP(G88,Footnotes!C$2:C$29,1,FALSE)),"","Yes") ->  | U88: =VLOOKUP(A88,'RSA Lookup'!A$1:D$17,3,FALSE) ->  | V88: Yes
A89: AQ0023ORL03P:ORLTV | B89: FY2019 | C89: ORLTV | D89: ORL | E89: 23:01 | F89: 23:01 Compliance - Routine Compliance, STP, STR activities | G89: 23 | H89: Title I | I89: ORL | J89: #N/A | K89: #N/A | L89: ORL Routine Compliance | M89: Title I | N89: ORL Routine Compliance | O89: Title I | P89: 18335555 | Q89: 114.31 | R89: =VLOOKUP(B89,'CPI Cumulative BLS'!A$3:B$12,2,FALSE) -> 1.02 | S89: 116.6 | T89: =IF(ISNA(VLOOKUP(G89,Footnotes!C$2:C$29,1,FALSE)),"","Yes") ->  | U89: =VLOOKUP(A89,'RSA Lookup'!A$1:D$17,3,FALSE) ->  | V89: Yes
A90: AQ0023ORL03P:ORLTV1 | B90: FY2017 | C90: ORLTV1 | D90: ORL | E90: 23:01 | F90: 23:01 Compliance - Routine Compliance, STP, STR activities | G90: 23 | H90: Title I | I90: ORL | J90: #N/A | K90: #N/A | L90: ORL Routine Compliance | M90: Title I | N90: ORL Routine Compliance | O90: Title I | P90: 18335555 | Q90: 385.51 | R90: =VLOOKUP(B90,'CPI Cumulative BLS'!A$3:B$12,2,FALSE) -> 1.06 | S90: 408.64 | T90: =IF(ISNA(VLOOKUP(G90,Footnotes!C$2:C$29,1,FALSE)),"","Yes") ->  | U90: =VLOOKUP(A90,'RSA Lookup'!A$1:D$17,3,FALSE) ->  | V90: Yes
A91: AQ0024ORL04P:ORLTV | B91: FY2018 | C91: ORLTV | D91: ORL | E91: 23:01 | F91: 23:01 Compliance - Routine Compliance, STP, STR activities | G91: 24 | H91: Title I | I91: ORL | J91: #N/A | K91: #N/A | L91: ORL Routine Compliance | M91: Title I | N91: ORL Routine Compliance | O91: Title I | P91: 18335555 | Q91: 48.77 | R91: =VLOOKUP(B91,'CPI Cumulative BLS'!A$3:B$12,2,FALSE) -> 1.04 | S91: 50.72 | T91: =IF(ISNA(VLOOKUP(G91,Footnotes!C$2:C$29,1,FALSE)),"","Yes") ->  | U91: =VLOOKUP(A91,'RSA Lookup'!A$1:D$17,3,FALSE) ->  | V91: Yes
A92: AQ0024ORL04P:ORLTV | B92: FY2019 | C92: ORLTV | D92: ORL | E92: 23:01 | F92: 23:01 Compliance - Routine Compliance, STP, STR activities | G92: 24 | H92: Title I | I92: ORL | J92: #N/A | K92: #N/A | L92: ORL Routine Compliance | M92: Title I | N92: ORL Routine Compliance | O92: Title I | P92: 18335555 | Q92: 67.16 | R92: =VLOOKUP(B92,'CPI Cumulative BLS'!A$3:B$12,2,FALSE) -> 1.02 | S92: 68.5 | T92: =IF(ISNA(VLOOKUP(G92,Footnotes!C$2:C$29,1,FALSE)),"","Yes") ->  | U92: =VLOOKUP(A92,'RSA Lookup'!A$1:D$17,3,FALSE) ->  | V92: Yes
A93: AQ0024ORL04P:ORLTV1 | B93: FY2017 | C93: ORLTV1 | D93: ORL | E93: 23:01 | F93: 23:01 Compliance - Routine Compliance, STP, STR activities | G93: 24 | H93: Title I | I93: ORL | J93: #N/A | K93: #N/A | L93: ORL Routine Compliance | M93: Title I | N93: ORL Routine Compliance | O93: Title I | P93: 18335555 | Q93: 390.76 | R93: =VLOOKUP(B93,'CPI Cumulative BLS'!A$3:B$12,2,FALSE) -> 1.06 | S93: 414.21 | T93: =IF(ISNA(VLOOKUP(G93,Footnotes!C$2:C$29,1,FALSE)),"","Yes") ->  | U93: =VLOOKUP(A93,'RSA Lookup'!A$1:D$17,3,FALSE) ->  | V93: Yes
A94: AQ0024ORL04P:ORLTV1 | B94: FY2017 | C94: ORLTV1 | D94: ORL | E94: 3046:02 | F94: 3046:02 AD ORDER (FLAT FEE PERMITTING) | G94: 24 | H94: Title I | I94: ORL | J94: #N/A | K94: #N/A | L94: ORL Permit Administration | M94: Title I | N94: ORL Permit Administration | O94: Title I | P94: 18335555 | Q94: 525.18 | R94: =VLOOKUP(B94,'CPI Cumulative BLS'!A$3:B$12,2,FALSE) -> 1.06 | S94: 556.69 | T94: =IF(ISNA(VLOOKUP(G94,Footnotes!C$2:C$29,1,FALSE)),"","Yes") ->  | U94: =VLOOKUP(A94,'RSA Lookup'!A$1:D$17,3,FALSE) ->  | V94: Yes
A95: AQ0026ORL01P:ORLTV | B95: FY2018 | C95: ORLTV | D95: ORL | E95: 2000:03 | F95: 2000:03 TRAVEL - TRANSPORTATION (ROUTINE COMPLIANCE) | G95: 26 | H95: Title I | I95: ORL | J95: #N/A | K95: #N/A | L95: ORL Routine Compliance | M95: Title I | N95: ORL Routine Compliance | O95: Title I | P95: 18335555 | Q95: 273.16 | R95: =VLOOKUP(B95,'CPI Cumulative BLS'!A$3:B$12,2,FALSE) -> 1.04 | S95: 284.09 | T95: =IF(ISNA(VLOOKUP(G95,Footnotes!C$2:C$29,1,FALSE)),"","Yes") ->  | U95: =VLOOKUP(A95,'RSA Lookup'!A$1:D$17,3,FALSE) ->  | V95: Yes
A96: AQ0026ORL01P:ORLTV | B96: FY2018 | C96: ORLTV | D96: ORL | E96: 23:01 | F96: 23:01 Compliance - Routine Compliance, STP, STR activities | G96: 26 | H96: Title I | I96: ORL | J96: #N/A | K96: #N/A | L96: ORL Routine Compliance | M96: Title I | N96: ORL Routine Compliance | O96: Title I | P96: 18335555 | Q96: 549.87 | R96: =VLOOKUP(B96,'CPI Cumulative BLS'!A$3:B$12,2,FALSE) -> 1.04 | S96: 571.86 | T96: =IF(ISNA(VLOOKUP(G96,Footnotes!C$2:C$29,1,FALSE)),"","Yes") ->  | U96: =VLOOKUP(A96,'RSA Lookup'!A$1:D$17,3,FALSE) ->  | V96: Yes
A97: AQ0026ORL01P:ORLTV | B97: FY2018 | C97: ORLTV | D97: ORL | E97: 3069:00 | F97: 3069:00 CONTRACTUAL SERVICES - STO FEES | G97: 26 | H97: Title I | I97: ORL | J97: #N/A | K97: #N/A | L97: ORL Routine Compliance | M97: Title I | N97: ORL Routine Compliance | O97: Title I | P97: 18335555 | Q97: 1.2 | R97: =VLOOKUP(B97,'CPI Cumulative BLS'!A$3:B$12,2,FALSE) -> 1.04 | S97: 1.25 | T97: =IF(ISNA(VLOOKUP(G97,Footnotes!C$2:C$29,1,FALSE)),"","Yes") ->  | U97: =VLOOKUP(A97,'RSA Lookup'!A$1:D$17,3,FALSE) ->  | V97: Yes
A98: AQ0026ORL01P:ORLTV | B98: FY2019 | C98: ORLTV | D98: ORL | E98: 23:01 | F98: 23:01 Compliance - Routine Compliance, STP, STR activities | G98: 26 | H98: Title I | I98: ORL | J98: #N/A | K98: #N/A | L98: ORL Routine Compliance | M98: Title I | N98: ORL Routine Compliance | O98: Title I | P98: 18335555 | Q98: 193.29 | R98: =VLOOKUP(B98,'CPI Cumulative BLS'!A$3:B$12,2,FALSE) -> 1.02 | S98: 197.16 | T98: =IF(ISNA(VLOOKUP(G98,Footnotes!C$2:C$29,1,FALSE)),"","Yes") ->  | U98: =VLOOKUP(A98,'RSA Lookup'!A$1:D$17,3,FALSE) ->  | V98: Yes
A99: AQ0026ORL01P:ORLTV1 | B99: FY2017 | C99: ORLTV1 | D99: ORL | E99: 23:01 | F99: 23:01 Compliance - Routine Compliance, STP, STR activities | G99: 26 | H99: Title I | I99: ORL | J99: #N/A | K99: #N/A | L99: ORL Routine Compliance | M99: Title I | N99: ORL Routine Compliance | O99: Title I | P99: 18335555 | Q99: 163.16 | R99: =VLOOKUP(B99,'CPI Cumulative BLS'!A$3:B$12,2,FALSE) -> 1.06 | S99: 172.95 | T99: =IF(ISNA(VLOOKUP(G99,Footnotes!C$2:C$29,1,FALSE)),"","Yes") ->  | U99: =VLOOKUP(A99,'RSA Lookup'!A$1:D$17,3,FALSE) ->  | V99: Yes
A100: AQ0027PL201P:PAEL | B100: FY2018 | C100: PAEL | D100: PAEL | E100: 22:02 | F100: 22:02 Billable Permitting - Tasks associated with 18 AAC 50.400(h) | G100: 27 | H100: Title I | I100: PAEL | J100: PAEL Time & Materials | K100: Either | L100: #N/A | M100: #N/A | N100: PAEL Time & Materials | O100: Either | P100: 18335555 | Q100: 40.58 | R100: =VLOOKUP(B100,'CPI Cumulative BLS'!A$3:B$12,2,FALSE) -> 1.04 | S100: 42.2 | T100: =IF(ISNA(VLOOKUP(G100,Footnotes!C$2:C$29,1,FALSE)),"","Yes") ->  | U100: =VLOOKUP(A100,'RSA Lookup'!A$1:D$17,3,FALSE) ->  | V100: Yes
A101: AQ0027PL201P:PAEL | B101: FY2018 | C101: PAEL | D101: PAEL | E101: 23:01 | F101: 23:01 Compliance - Routine Compliance, STP, STR activities | G101: 27 | H101: Title I | I101: PAEL | J101: PAEL Routine Compliance | K101: Either | L101: #N/A | M101: #N/A | N101: PAEL Routine Compliance | O101: Either | P101: 18335555 | Q101: 48.77 | R101: =VLOOKUP(B101,'CPI Cumulative BLS'!A$3:B$12,2,FALSE) -> 1.04 | S101: 50.72 | T101: =IF(ISNA(VLOOKUP(G101,Footnotes!C$2:C$29,1,FALSE)),"","Yes") ->  | U101: =VLOOKUP(A101,'RSA Lookup'!A$1:D$17,3,FALSE) ->  | V101: Yes
A102: AQ0027PL201P:PAEL | B102: FY2019 | C102: PAEL | D102: PAEL | E102: 22:02 | F102: 22:02 Billable Permitting - Tasks associated with 18 AAC 50.400(h) | G102: 27 | H102: Title I | I102: PAEL | J102: PAEL Time & Materials | K102: Either | L102: #N/A | M102: #N/A | N102: PAEL Time & Materials | O102: Either | P102: 18335555 | Q102: 23.58 | R102: =VLOOKUP(B102,'CPI Cumulative BLS'!A$3:B$12,2,FALSE) -> 1.02 | S102: 24.05 | T102: =IF(ISNA(VLOOKUP(G102,Footnotes!C$2:C$29,1,FALSE)),"","Yes") ->  | U102: =VLOOKUP(A102,'RSA Lookup'!A$1:D$17,3,FALSE) ->  | V102: Yes
A103: AQ0027PL201P:PAEL | B103: FY2019 | C103: PAEL | D103: PAEL | E103: 23:02 | F103: 23:02 Billable Compliance - Non-routine compliance activities | G103: 27 | H103: Title I | I103: PAEL | J103: PAEL Time & Materials | K103: Either | L103: #N/A | M103: #N/A | N103: PAEL Time & Materials | O103: Either | P103: 18335555 | Q103: 28.52 | R103: =VLOOKUP(B103,'CPI Cumulative BLS'!A$3:B$12,2,FALSE) -> 1.02 | S103: 29.09 | T103: =IF(ISNA(VLOOKUP(G103,Footnotes!C$2:C$29,1,FALSE)),"","Yes") ->  | U103: =VLOOKUP(A103,'RSA Lookup'!A$1:D$17,3,FALSE) ->  | V103: Yes
A104: AQ0027PL201P:PAEL1 | B104: FY2017 | C104: PAEL1 | D104: PAEL | E104: 22:02 | F104: 22:02 Billable Permitting - Tasks associated with 18 AAC 50.400(h) | G104: 27 | H104: Title I | I104: PAEL | J104: PAEL Time & Materials | K104: Either | L104: #N/A | M104: #N/A | N104: PAEL Time & Materials | O104: Either | P104: 18335555 | Q104: 50.34 | R104: =VLOOKUP(B104,'CPI Cumulative BLS'!A$3:B$12,2,FALSE) -> 1.06 | S104: 53.36 | T104: =IF(ISNA(VLOOKUP(G104,Footnotes!C$2:C$29,1,FALSE)),"","Yes") ->  | U104: =VLOOKUP(A104,'RSA Lookup'!A$1:D$17,3,FALSE) ->  | V104: Yes
A105: AQ0027PL201P:PAEL1 | B105: FY2017 | C105: PAEL1 | D105: PAEL | E105: 23:01 | F105: 23:01 Compliance - Routine Compliance, STP, STR activities | G105: 27 | H105: Title I | I105: PAEL | J105: PAEL Routine Compliance | K105: Either | L105: #N/A | M105: #N/A | N105: PAEL Routine Compliance | O105: Either | P105: 18335555 | Q105: 287.47 | R105: =VLOOKUP(B105,'CPI Cumulative BLS'!A$3:B$12,2,FALSE) -> 1.06 | S105: 304.72 | T105: =IF(ISNA(VLOOKUP(G105,Footnotes!C$2:C$29,1,FALSE)),"","Yes") ->  | U105: =VLOOKUP(A105,'RSA Lookup'!A$1:D$17,3,FALSE) ->  | V105: Yes
A106: AQ0029PL201P:PAEL | B106: FY2018 | C106: PAEL | D106: PAEL | E106: 23:01 | F106: 23:01 Compliance - Routine Compliance, STP, STR activities | G106: 29 | H106: Title I | I106: PAEL | J106: PAEL Routine Compliance | K106: Either | L106: #N/A | M106: #N/A | N106: PAEL Routine Compliance | O106: Either | P106: 18335555 | Q106: 169.53 | R106: =VLOOKUP(B106,'CPI Cumulative BLS'!A$3:B$12,2,FALSE) -> 1.04 | S106: 176.31 | T106: =IF(ISNA(VLOOKUP(G106,Footnotes!C$2:C$29,1,FALSE)),"","Yes") ->  | U106: =VLOOKUP(A106,'RSA Lookup'!A$1:D$17,3,FALSE) ->  | V106: Yes
A107: AQ0029PL201P:PAEL | B107: FY2019 | C107: PAEL | D107: PAEL | E107: 23:01 | F107: 23:01 Compliance - Routine Compliance, STP, STR activities | G107: 29 | H107: Title I | I107: PAEL | J107: PAEL Routine Compliance | K107: Either | L107: #N/A | M107: #N/A | N107: PAEL Routine Compliance | O107: Either | P107: 18335555 | Q107: 587.18 | R107: =VLOOKUP(B107,'CPI Cumulative BLS'!A$3:B$12,2,FALSE) -> 1.02 | S107: 598.92 | T107: =IF(ISNA(VLOOKUP(G107,Footnotes!C$2:C$29,1,FALSE)),"","Yes") ->  | U107: =VLOOKUP(A107,'RSA Lookup'!A$1:D$17,3,FALSE) ->  | V107: Yes
A108: AQ0029PL201P:PAEL1 | B108: FY2017 | C108: PAEL1 | D108: PAEL | E108: 23:01 | F108: 23:01 Compliance - Routine Compliance, STP, STR activities | G108: 29 | H108: Title I | I108: PAEL | J108: PAEL Routine Compliance | K108: Either | L108: #N/A | M108: #N/A | N108: PAEL Routine Compliance | O108: Either | P108: 18335555 | Q108: 20.85 | R108: =VLOOKUP(B108,'CPI Cumulative BLS'!A$3:B$12,2,FALSE) -> 1.06 | S108: 22.1 | T108: =IF(ISNA(VLOOKUP(G108,Footnotes!C$2:C$29,1,FALSE)),"","Yes") ->  | U108: =VLOOKUP(A108,'RSA Lookup'!A$1:D$17,3,FALSE) ->  | V108: Yes
A109: AQ0033CPT01P:TITE1 | B109: FY2017 | C109: TITE1 | D109: TITE OR TVTE | E109: 23:01 | F109: 23:01 Compliance - Routine Compliance, STP, STR activities | G109: 33 | H109: Title V | I109: TVCPRA | J109: #N/A | K109: #N/A | L109: TVCPRA Time & Materials | M109: Title V | N109: TVCPRA Time & Materials | O109: Title V | P109: 18335555 | Q109: 0 | R109: =VLOOKUP(B109,'CPI Cumulative BLS'!A$3:B$12,2,FALSE) -> 1.06 | S109: 0 | T109: =IF(ISNA(VLOOKUP(G109,Footnotes!C$2:C$29,1,FALSE)),"","Yes") ->  | U109: =VLOOKUP(A109,'RSA Lookup'!A$1:D$17,3,FALSE) ->  | V109: Yes
A110: AQ0033MSS01A:MSSTI1 | B110: FY2017 | C110: MSSTI1 | D110: MSS | E110: 22:02 | F110: 22:02 Billable Permitting - Tasks associated with 18 AAC 50.400(h) | G110: 33 | H110: Title V | I110: TVCPRA | J110: #N/A | K110: #N/A | L110: TVCPRA Time & Materials | M110: Title V | N110: TVCPRA Time & Materials | O110: Title V | P110: 18335666 | Q110: 50.83 | R110: =VLOOKUP(B110,'CPI Cumulative BLS'!A$3:B$12,2,FALSE) -> 1.06 | S110: 53.88 | T110: =IF(ISNA(VLOOKUP(G110,Footnotes!C$2:C$29,1,FALSE)),"","Yes") ->  | U110: =VLOOKUP(A110,'RSA Lookup'!A$1:D$17,3,FALSE) ->  | V110: Yes
A111: AQ0033TVP02P:CPRA1 | B111: FY2017 | C111: CPRA1 | D111: CPR | E111: 22:02 | F111: 22:02 Billable Permitting - Tasks associated with 18 AAC 50.400(h) | G111: 33 | H111: Title V | I111: TVCPRA | J111: TVCPRA Time & Materials | K111: Title V | L111: #N/A | M111: #N/A | N111: TVCPRA Time & Materials | O111: Title V | P111: 18335555 | Q111: 9.05 | R111: =VLOOKUP(B111,'CPI Cumulative BLS'!A$3:B$12,2,FALSE) -> 1.06 | S111: 9.59 | T111: =IF(ISNA(VLOOKUP(G111,Footnotes!C$2:C$29,1,FALSE)),"","Yes") ->  | U111: =VLOOKUP(A111,'RSA Lookup'!A$1:D$17,3,FALSE) ->  | V111: Yes
A112: AQ0033TVP02P:CPRA1 | B112: FY2017 | C112: CPRA1 | D112: CPR | E112: 23:01 | F112: 23:01 Compliance - Routine Compliance, STP, STR activities | G112: 33 | H112: Title V | I112: TVCPRA | J112: TVCPRA Time & Materials | K112: Title V | L112: #N/A | M112: #N/A | N112: TVCPRA Time & Materials | O112: Title V | P112: 18335555 | Q112: 15.83 | R112: =VLOOKUP(B112,'CPI Cumulative BLS'!A$3:B$12,2,FALSE) -> 1.06 | S112: 16.78 | T112: =IF(ISNA(VLOOKUP(G112,Footnotes!C$2:C$29,1,FALSE)),"","Yes") ->  | U112: =VLOOKUP(A112,'RSA Lookup'!A$1:D$17,3,FALSE) ->  | V112: Yes
A113: AQ0033TVP03P:CPRA | B113: FY2018 | C113: CPRA-TVP | D113: CPR | E113: 22:02 | F113: 22:02 Billable Permitting - Tasks associated with 18 AAC 50.400(h) | G113: 33 | H113: Title V | I113: TVCPRA | J113: TVCPRA Time & Materials | K113: Title V | L113: #N/A | M113: #N/A | N113: TVCPRA Time & Materials | O113: Title V | P113: 18335555 | Q113: 31.98 | R113: =VLOOKUP(B113,'CPI Cumulative BLS'!A$3:B$12,2,FALSE) -> 1.04 | S113: 33.26 | T113: =IF(ISNA(VLOOKUP(G113,Footnotes!C$2:C$29,1,FALSE)),"","Yes") ->  | U113: =VLOOKUP(A113,'RSA Lookup'!A$1:D$17,3,FALSE) ->  | V113: Yes
A114: AQ0033TVP03P:CPRA | B114: FY2018 | C114: CPRA-TVP | D114: CPR | E114: 22:06 | F114: 22:06 Billable Permitting - Significant modification to a Title V Permit | G114: 33 | H114: Title V | I114: TVCPRA | J114: TVCPRA Time & Materials | K114: Title V | L114: #N/A | M114: #N/A | N114: TVCPRA Time & Materials | O114: Title V | P114: 18335555 | Q114: 2891.2 | R114: =VLOOKUP(B114,'CPI Cumulative BLS'!A$3:B$12,2,FALSE) -> 1.04 | S114: 3006.85 | T114: =IF(ISNA(VLOOKUP(G114,Footnotes!C$2:C$29,1,FALSE)),"","Yes") ->  | U114: =VLOOKUP(A114,'RSA Lookup'!A$1:D$17,3,FALSE) ->  | V114: Yes
A115: AQ0033TVP03P:CPRA | B115: FY2018 | C115: CPRA-TVP | D115: CPR | E115: 23:01 | F115: 23:01 Compliance - Routine Compliance, STP, STR activities | G115: 33 | H115: Title V | I115: TVCPRA | J115: TVCPRA Time & Materials | K115: Title V | L115: #N/A | M115: #N/A | N115: TVCPRA Time & Materials | O115: Title V | P115: 18335555 | Q115: 609.93 | R115: =VLOOKUP(B115,'CPI Cumulative BLS'!A$3:B$12,2,FALSE) -> 1.04 | S115: 634.33 | T115: =IF(ISNA(VLOOKUP(G115,Footnotes!C$2:C$29,1,FALSE)),"","Yes") ->  | U115: =VLOOKUP(A115,'RSA Lookup'!A$1:D$17,3,FALSE) ->  | V115: Yes
A116: AQ0033TVP03P:CPRA | B116: FY2018 | C116: CPRA-TVP | D116: CPR | E116: 23:02 | F116: 23:02 Billable Compliance - Non-routine compliance activities | G116: 33 | H116: Title V | I116: TVCPRA | J116: TVCPRA Time & Materials | K116: Title V | L116: #N/A | M116: #N/A | N116: TVCPRA Time & Materials | O116: Title V | P116: 18335555 | Q116: 55.85 | R116: =VLOOKUP(B116,'CPI Cumulative BLS'!A$3:B$12,2,FALSE) -> 1.04 | S116: 58.08 | T116: =IF(ISNA(VLOOKUP(G116,Footnotes!C$2:C$29,1,FALSE)),"","Yes") ->  | U116: =VLOOKUP(A116,'RSA Lookup'!A$1:D$17,3,FALSE) ->  | V116: Yes
A117: AQ0033TVP03P:CPRA | B117: FY2018 | C117: CPRA-TVP | D117: CPR | E117: 23:03 | F117: 23:03 Compliance - EE/PD Intake Only | G117: 33 | H117: Title V | I117: TVCPRA | J117: Excess Emissions - EE/PD Individual Fee | K117: Either | L117: #N/A | M117: #N/A | N117: Excess Emissions - EE/PD Individual Fee | O117: Either | P117: 18335555 | Q117: 24.22 | R117: =VLOOKUP(B117,'CPI Cumulative BLS'!A$3:B$12,2,FALSE) -> 1.04 | S117: 25.19 | T117: =IF(ISNA(VLOOKUP(G117,Footnotes!C$2:C$29,1,FALSE)),"","Yes") ->  | U117: =VLOOKUP(A117,'RSA Lookup'!A$1:D$17,3,FALSE) ->  | V117: Yes
A118: AQ0033TVP03P:CPRA | B118: FY2019 | C118: CPRA-TVP | D118: CPR | E118: 22:06 | F118: 22:06 Billable Permitting - Significant modification to a Title V Permit | G118: 33 | H118: Title V | I118: TVCPRA | J118: TVCPRA Time & Materials | K118: Title V | L118: #N/A | M118: #N/A | N118: TVCPRA Time & Materials | O118: Title V | P118: 18335555 | Q118: 544.36 | R118: =VLOOKUP(B118,'CPI Cumulative BLS'!A$3:B$12,2,FALSE) -> 1.02 | S118: 555.25 | T118: =IF(ISNA(VLOOKUP(G118,Footnotes!C$2:C$29,1,FALSE)),"","Yes") ->  | U118: =VLOOKUP(A118,'RSA Lookup'!A$1:D$17,3,FALSE) ->  | V118: Yes
A119: AQ0033TVP03P:CPRA | B119: FY2019 | C119: CPRA-TVP | D119: CPR | E119: 23:01 | F119: 23:01 Compliance - Routine Compliance, STP, STR activities | G119: 33 | H119: Title V | I119: TVCPRA | J119: TVCPRA Time & Materials | K119: Title V | L119: #N/A | M119: #N/A | N119: TVCPRA Time & Materials | O119: Title V | P119: 18335555 | Q119: 3655.8 | R119: =VLOOKUP(B119,'CPI Cumulative BLS'!A$3:B$12,2,FALSE) -> 1.02 | S119: 3728.92 | T119: =IF(ISNA(VLOOKUP(G119,Footnotes!C$2:C$29,1,FALSE)),"","Yes") ->  | U119: =VLOOKUP(A119,'RSA Lookup'!A$1:D$17,3,FALSE) ->  | V119: Yes
A120: AQ0033TVP03P:CPRA | B120: FY2019 | C120: CPRA-TVP | D120: CPR | E120: 23:02 | F120: 23:02 Billable Compliance - Non-routine compliance activities | G120: 33 | H120: Title V | I120: TVCPRA | J120: TVCPRA Time & Materials | K120: Title V | L120: #N/A | M120: #N/A | N120: TVCPRA Time & Materials | O120: Title V | P120: 18335555 | Q120: 55.86 | R120: =VLOOKUP(B120,'CPI Cumulative BLS'!A$3:B$12,2,FALSE) -> 1.02 | S120: 56.98 | T120: =IF(ISNA(VLOOKUP(G120,Footnotes!C$2:C$29,1,FALSE)),"","Yes") ->  | U120: =VLOOKUP(A120,'RSA Lookup'!A$1:D$17,3,FALSE) ->  | V120: Yes
A121: AQ0033TVP03P:CPRA | B121: FY2019 | C121: CPRA-TVP | D121: CPR | E121: 23:03 | F121: 23:03 Compliance - EE/PD Intake Only | G121: 33 | H121: Title V | I121: TVCPRA | J121: Excess Emissions - EE/PD Individual Fee | K121: Either | L121: #N/A | M121: #N/A | N121: Excess Emissions - EE/PD Individual Fee | O121: Either | P121: 18335555 | Q121: 16.48 | R121: =VLOOKUP(B121,'CPI Cumulative BLS'!A$3:B$12,2,FALSE) -> 1.02 | S121: 16.81 | T121: =IF(ISNA(VLOOKUP(G121,Footnotes!C$2:C$29,1,FALSE)),"","Yes") ->  | U121: =VLOOKUP(A121,'RSA Lookup'!A$1:D$17,3,FALSE) ->  | V121: Yes
A122: AQ0033TVP03P:CPRA1 | B122: FY2017 | C122: CPRA1 | D122: CPR | E122: 2000:05 | F122: 2000:05 TRAVEL - TRANSPORTATION (TIME & MATERIAL) | G122: 33 | H122: Title V | I122: TVCPRA | J122: TVCPRA Time & Materials | K122: Title V | L122: #N/A | M122: #N/A | N122: TVCPRA Time & Materials | O122: Title V | P122: 18335555 | Q122: 79.5 | R122: =VLOOKUP(B122,'CPI Cumulative BLS'!A$3:B$12,2,FALSE) -> 1.06 | S122: 84.27 | T122: =IF(ISNA(VLOOKUP(G122,Footnotes!C$2:C$29,1,FALSE)),"","Yes") ->  | U122: =VLOOKUP(A122,'RSA Lookup'!A$1:D$17,3,FALSE) ->  | V122: Yes
A123: AQ0033TVP03P:CPRA1 | B123: FY2017 | C123: CPRA1 | D123: CPR | E123: 22:01 | F123: 22:01 Permitting - TV Renewal and/or Amendment | G123: 33 | H123: Title V | I123: TVCPRA | J123: TVCPRA Time & Materials | K123: Title V | L123: #N/A | M123: #N/A | N123: TVCPRA Time & Materials | O123: Title V | P123: 18335555 | Q123: 15.04 | R123: =VLOOKUP(B123,'CPI Cumulative BLS'!A$3:B$12,2,FALSE) -> 1.06 | S123: 15.94 | T123: =IF(ISNA(VLOOKUP(G123,Footnotes!C$2:C$29,1,FALSE)),"","Yes") ->  | U123: =VLOOKUP(A123,'RSA Lookup'!A$1:D$17,3,FALSE) ->  | V123: Yes
A124: AQ0033TVP03P:CPRA1 | B124: FY2017 | C124: CPRA1 | D124: CPR | E124: 22:02 | F124: 22:02 Billable Permitting - Tasks associated with 18 AAC 50.400(h) | G124: 33 | H124: Title V | I124: TVCPRA | J124: TVCPRA Time & Materials | K124: Title V | L124: #N/A | M124: #N/A | N124: TVCPRA Time & Materials | O124: Title V | P124: 18335555 | Q124: 7.22 | R124: =VLOOKUP(B124,'CPI Cumulative BLS'!A$3:B$12,2,FALSE) -> 1.06 | S124: 7.65 | T124: =IF(ISNA(VLOOKUP(G124,Footnotes!C$2:C$29,1,FALSE)),"","Yes") ->  | U124: =VLOOKUP(A124,'RSA Lookup'!A$1:D$17,3,FALSE) ->  | V124: No
A125: AQ0033TVP03P:CPRA1 | B125: FY2017 | C125: CPRA1 | D125: CPR | E125: 22:05 | F125: 22:05 Billable Permitting - Minor modification to a Title V Permit | G125: 33 | H125: Title V | I125: TVCPRA | J125: TVCPRA Time & Materials | K125: Title V | L125: #N/A | M125: #N/A | N125: TVCPRA Time & Materials | O125: Title V | P125: 18335555 | Q125: 348.73 | R125: =VLOOKUP(B125,'CPI Cumulative BLS'!A$3:B$12,2,FALSE) -> 1.06 | S125: 369.65 | T125: =IF(ISNA(VLOOKUP(G125,Footnotes!C$2:C$29,1,FALSE)),"","Yes") ->  | U125: =VLOOKUP(A125,'RSA Lookup'!A$1:D$17,3,FALSE) ->  | V125: No
A126: AQ0033TVP03P:CPRA1 | B126: FY2017 | C126: CPRA1 | D126: CPR | E126: 22:06 | F126: 22:06 Billable Permitting - Significant modification to a Title V Permit | G126: 33 | H126: Title V | I126: TVCPRA | J126: TVCPRA Time & Materials | K126: Title V | L126: #N/A | M126: #N/A | N126: TVCPRA Time & Materials | O126: Title V | P126: 18335555 | Q126: 129.28 | R126: =VLOOKUP(B126,'CPI Cumulative BLS'!A$3:B$12,2,FALSE) -> 1.06 | S126: 137.04 | T126: =IF(ISNA(VLOOKUP(G126,Footnotes!C$2:C$29,1,FALSE)),"","Yes") ->  | U126: =VLOOKUP(A126,'RSA Lookup'!A$1:D$17,3,FALSE) ->  | V126: No
A127: AQ0033TVP03P:CPRA1 | B127: FY2017 | C127: CPRA1 | D127: CPR | E127: 23:01 | F127: 23:01 Compliance - Routine Compliance, STP, STR activities | G127: 33 | H127: Title V | I127: TVCPRA | J127: TVCPRA Time & Materials | K127: Title V | L127: #N/A | M127: #N/A | N127: TVCPRA Time & Materials | O127: Title V | P127: 18335555 | Q127: 2980.65 | R127: =VLOOKUP(B127,'CPI Cumulative BLS'!A$3:B$12,2,FALSE) -> 1.06 | S127: 3159.49 | T127: =IF(ISNA(VLOOKUP(G127,Footnotes!C$2:C$29,1,FALSE)),"","Yes") ->  | U127: =VLOOKUP(A127,'RSA Lookup'!A$1:D$17,3,FALSE) ->  | V127: No
A128: AQ0034MSS01P:MSSTI1 | B128: FY2017 | C128: MSSTI1 | D128: MSS | E128: 22:02 | F128: 22:02 Billable Permitting - Tasks associated with 18 AAC 50.400(h) | G128: 34 | H128: Title I | I128: MSS | J128: #N/A | K128: #N/A | L128: MSS Time & Materials | M128: Title I | N128: MSS Time & Materials | O128: Title I | P128: 18335666 | Q128: 23.58 | R128: =VLOOKUP(B128,'CPI Cumulative BLS'!A$3:B$12,2,FALSE) -> 1.06 | S128: 24.99 | T128: =IF(ISNA(VLOOKUP(G128,Footnotes!C$2:C$29,1,FALSE)),"","Yes") ->  | U128: =VLOOKUP(A128,'RSA Lookup'!A$1:D$17,3,FALSE) ->  | V128: No
A129: AQ0034MSS01P:MSSTI1 | B129: FY2017 | C129: MSSTI1 | D129: MSS | E129: 23:01 | F129: 23:01 Compliance - Routine Compliance, STP, STR activities | G129: 34 | H129: Title I | I129: MSS | J129: #N/A | K129: #N/A | L129: MSS Routine Compliance | M129: Title I | N129: MSS Routine Compliance | O129: Title I | P129: 18335666 | Q129: 842.2 | R129: =VLOOKUP(B129,'CPI Cumulative BLS'!A$3:B$12,2,FALSE) -> 1.06 | S129: 892.73 | T129: =IF(ISNA(VLOOKUP(G129,Footnotes!C$2:C$29,1,FALSE)),"","Yes") ->  | U129: =VLOOKUP(A129,'RSA Lookup'!A$1:D$17,3,FALSE) ->  | V129: No
A130: AQ0034MSS01P:MSSTI1 | B130: FY2018 | C130: MSSTI | D130: MSS | E130: 23:01 | F130: 23:01 Compliance - Routine Compliance, STP, STR activities | G130: 34 | H130: Title I | I130: MSS | J130: #N/A | K130: #N/A | L130: MSS Routine Compliance | M130: Title I | N130: MSS Routine Compliance | O130: Title I | P130: 18335666 | Q130: 863.27 | R130: =VLOOKUP(B130,'CPI Cumulative BLS'!A$3:B$12,2,FALSE) -> 1.04 | S130: 897.8 | T130: =IF(ISNA(VLOOKUP(G130,Footnotes!C$2:C$29,1,FALSE)),"","Yes") ->  | U130: =VLOOKUP(A130,'RSA Lookup'!A$1:D$17,3,FALSE) ->  | V130: No
A131: AQ0034MSS02A:MSSTI1 | B131: FY2017 | C131: MSSTI1 | D131: MSS | E131: 22:02 | F131: 22:02 Billable Permitting - Tasks associated with 18 AAC 50.400(h) | G131: 34 | H131: Title I | I131: MSS | J131: #N/A | K131: #N/A | L131: MSS Time & Materials | M131: Title I | N131: MSS Time & Materials | O131: Title I | P131: 18335666 | Q131: 2076.64 | R131: =VLOOKUP(B131,'CPI Cumulative BLS'!A$3:B$12,2,FALSE) -> 1.06 | S131: =ROUND(Q131*R131,2) -> 2201.24 | T131: =IF(ISNA(VLOOKUP(G131,Footnotes!C$2:C$29,1,FALSE)),"","Yes") ->  | U131: =VLOOKUP(A131,'RSA Lookup'!A$1:D$17,3,FALSE) ->  | V131: No
A132: AQ0034MSS02P:MSSTI | B132: FY2018 | C132: MSSTI | D132: MSS | E132: 22:02 | F132: 22:02 Billable Permitting - Tasks associated with 18 AAC 50.400(h) | G132: 34 | H132: Title I | I132: MSS | J132: #N/A | K132: #N/A | L132: MSS Time & Materials | M132: Title I | N132: MSS Time & Materials | O132: Title I | P132: 18335666 | Q132: 278 | R132: =VLOOKUP(B132,'CPI Cumulative BLS'!A$3:B$12,2,FALSE) -> 1.04 | S132: 289.12 | T132: =IF(ISNA(VLOOKUP(G132,Footnotes!C$2:C$29,1,FALSE)),"","Yes") ->  | U132: =VLOOKUP(A132,'RSA Lookup'!A$1:D$17,3,FALSE) ->  | V132: Yes
A133: AQ0034MSS02P:MSSTI | B133: FY2018 | C133: MSSTI | D133: MSS | E133: 23:01 | F133: 23:01 Compliance - Routine Compliance, STP, STR activities | G133: 34 | H133: Title I | I133: MSS | J133: #N/A | K133: #N/A | L133: MSS Routine Compliance | M133: Title I | N133: MSS Routine Compliance | O133: Title I | P133: 18335666 | Q133: 336.86 | R133: =VLOOKUP(B133,'CPI Cumulative BLS'!A$3:B$12,2,FALSE) -> 1.04 | S133: 350.33 | T133: =IF(ISNA(VLOOKUP(G133,Footnotes!C$2:C$29,1,FALSE)),"","Yes") ->  | U133: =VLOOKUP(A133,'RSA Lookup'!A$1:D$17,3,FALSE) ->  | V133: Yes
A134: AQ0034MSS02P:MSSTI | B134: FY2018 | C134: MSSTI | D134: MSS | E134: 23:02 | F134: 23:02 Billable Compliance - Non-routine compliance activities | G134: 34 | H134: Title I | I134: MSS | J134: #N/A | K134: #N/A | L134: MSS Time & Materials | M134: Title I | N134: MSS Time & Materials | O134: Title I | P134: 18335666 | Q134: 32.07 | R134: =VLOOKUP(B134,'CPI Cumulative BLS'!A$3:B$12,2,FALSE) -> 1.04 | S134: 33.35 | T134: =IF(ISNA(VLOOKUP(G134,Footnotes!C$2:C$29,1,FALSE)),"","Yes") ->  | U134: =VLOOKUP(A134,'RSA Lookup'!A$1:D$17,3,FALSE) ->  | V134: Yes
A135: AQ0034MSS02P:MSSTI | B135: FY2019 | C135: MSSTI | D135: MSS | E135: 23:01 | F135: 23:01 Compliance - Routine Compliance, STP, STR activities | G135: 34 | H135: Title I | I135: MSS | J135: #N/A | K135: #N/A | L135: MSS Routine Compliance | M135: Title I | N135: MSS Routine Compliance | O135: Title I | P135: 18335666 | Q135: 1742.61 | R135: =VLOOKUP(B135,'CPI Cumulative BLS'!A$3:B$12,2,FALSE) -> 1.02 | S135: 1777.46 | T135: =IF(ISNA(VLOOKUP(G135,Footnotes!C$2:C$29,1,FALSE)),"","Yes") ->  | U135: =VLOOKUP(A135,'RSA Lookup'!A$1:D$17,3,FALSE) ->  | V135: Yes
A136: AQ0034MSS02P:MSSTI | B136: FY2019 | C136: MSSTI | D136: MSS | E136: 23:02 | F136: 23:02 Billable Compliance - Non-routine compliance activities | G136: 34 | H136: Title I | I136: MSS | J136: #N/A | K136: #N/A | L136: MSS Time & Materials | M136: Title I | N136: MSS Time & Materials | O136: Title I | P136: 18335666 | Q136: 16.79 | R136: =VLOOKUP(B136,'CPI Cumulative BLS'!A$3:B$12,2,FALSE) -> 1.02 | S136: 17.13 | T136: =IF(ISNA(VLOOKUP(G136,Footnotes!C$2:C$29,1,FALSE)),"","Yes") ->  | U136: =VLOOKUP(A136,'RSA Lookup'!A$1:D$17,3,FALSE) ->  | V136: Yes
A137: AQ0034MSS02P:MSSTI1 | B137: FY2018 | C137: MSSTI | D137: MSS | E137: 22:02 | F137: 22:02 Billable Permitting - Tasks associated with 18 AAC 50.400(h) | G137: 34 | H137: Title I | I137: MSS | J137: #N/A | K137: #N/A | L137: MSS Time & Materials | M137: Title I | N137: MSS Time & Materials | O137: Title I | P137: 18335666 | Q137: 2393.72 | R137: =VLOOKUP(B137,'CPI Cumulative BLS'!A$3:B$12,2,FALSE) -> 1.04 | S137: 2489.47 | T137: =IF(ISNA(VLOOKUP(G137,Footnotes!C$2:C$29,1,FALSE)),"","Yes") ->  | U137: =VLOOKUP(A137,'RSA Lookup'!A$1:D$17,3,FALSE) ->  | V137: Yes
A138: AQ0034MSS02P:MSSTI1 | B138: FY2018 | C138: MSSTI | D138: MSS | E138: 23:01 | F138: 23:01 Compliance - Routine Compliance, STP, STR activities | G138: 34 | H138: Title I | I138: MSS | J138: #N/A | K138: #N/A | L138: MSS Routine Compliance | M138: Title I | N138: MSS Routine Compliance | O138: Title I | P138: 18335666 | Q138: 109.14 | R138: =VLOOKUP(B138,'CPI Cumulative BLS'!A$3:B$12,2,FALSE) -> 1.04 | S138: 113.51 | T138: =IF(ISNA(VLOOKUP(G138,Footnotes!C$2:C$29,1,FALSE)),"","Yes") ->  | U138: =VLOOKUP(A138,'RSA Lookup'!A$1:D$17,3,FALSE) ->  | V138: Yes
A139: AQ0034MSS03P:MSSTI | B139: FY2019 | C139: MSSTI | D139: MSS | E139: 22:02 | F139: 22:02 Billable Permitting - Tasks associated with 18 AAC 50.400(h) | G139: 34 | H139: Title I | I139: MSS | J139: #N/A | K139: #N/A | L139: MSS Time & Materials | M139: Title I | N139: MSS Time & Materials | O139: Title I | P139: 18335666 | Q139: 3733.28 | R139: =VLOOKUP(B139,'CPI Cumulative BLS'!A$3:B$12,2,FALSE) -> 1.02 | S139: 3807.95 | T139: =IF(ISNA(VLOOKUP(G139,Footnotes!C$2:C$29,1,FALSE)),"","Yes") ->  | U139: =VLOOKUP(A139,'RSA Lookup'!A$1:D$17,3,FALSE) ->  | V139: Yes
A140: AQ0034MSS03P:MSSTI | B140: FY2019 | C140: MSSTI | D140: MSS | E140: 23:01 | F140: 23:01 Compliance - Routine Compliance, STP, STR activities | G140: 34 | H140: Title I | I140: MSS | J140: #N/A | K140: #N/A | L140: MSS Routine Compliance | M140: Title I | N140: MSS Routine Compliance | O140: Title I | P140: 18335666 | Q140: 90.78 | R140: =VLOOKUP(B140,'CPI Cumulative BLS'!A$3:B$12,2,FALSE) -> 1.02 | S140: 92.6 | T140: =IF(ISNA(VLOOKUP(G140,Footnotes!C$2:C$29,1,FALSE)),"","Yes") ->  | U140: =VLOOKUP(A140,'RSA Lookup'!A$1:D$17,3,FALSE) ->  | V140: Yes
A141: AQ0034PAA01P:TITE1 | B141: FY2017 | C141: TITE1 | D141: TITE OR TVTE | E141: 22:04 | F141: 22:04 Billable Permitting - Pre-application assistance | G141: 34 | H141: Title I | I141: MSS | J141: #N/A | K141: #N/A | L141: TITE Time & Materials | M141: Title I | N141: TITE Time & Materials | O141: Title I | P141: 18335666 | Q141: 182.61 | R141: =VLOOKUP(B141,'CPI Cumulative BLS'!A$3:B$12,2,FALSE) -> 1.06 | S141: 193.57 | T141: =IF(ISNA(VLOOKUP(G141,Footnotes!C$2:C$29,1,FALSE)),"","Yes") ->  | U141: =VLOOKUP(A141,'RSA Lookup'!A$1:D$17,3,FALSE) ->  | V141: Yes
A142: AQ0034TVP02A:TVTE1 | B142: FY2017 | C142: TVTE1 | D142: TITE OR TVTE | E142: 22:02 | F142: 22:02 Billable Permitting - Tasks associated with 18 AAC 50.400(h) | G142: 34 | H142: Title I | I142: MSS | J142: #N/A | K142: #N/A | L142: TITE Time & Materials | M142: Title I | N142: TITE Time & Materials | O142: Title I | P142: 18335555 | Q142: 4950.84 | R142: =VLOOKUP(B142,'CPI Cumulative BLS'!A$3:B$12,2,FALSE) -> 1.06 | S142: 5247.89 | T142: =IF(ISNA(VLOOKUP(G142,Footnotes!C$2:C$29,1,FALSE)),"","Yes") ->  | U142: =VLOOKUP(A142,'RSA Lookup'!A$1:D$17,3,FALSE) ->  | V142: Yes
A143: AQ0034TVP02A:TVTE1 | B143: FY2017 | C143: TVTE1 | D143: TITE OR TVTE | E143: 23:01 | F143: 23:01 Compliance - Routine Compliance, STP, STR activities | G143: 34 | H143: Title I | I143: MSS | J143: #N/A | K143: #N/A | L143: TITE Time & Materials | M143: Title I | N143: TITE Time & Materials | O143: Title I | P143: 18335666 | Q143: 0 | R143: =VLOOKUP(B143,'CPI Cumulative BLS'!A$3:B$12,2,FALSE) -> 1.06 | S143: 0 | T143: =IF(ISNA(VLOOKUP(G143,Footnotes!C$2:C$29,1,FALSE)),"","Yes") ->  | U143: =VLOOKUP(A143,'RSA Lookup'!A$1:D$17,3,FALSE) ->  | V143: Yes
A144: AQ0034TVP02A:TVTE1 | B144: FY2018 | C144: TVTE | D144: TITE OR TVTE | E144: 22:02 | F144: 22:02 Billable Permitting - Tasks associated with 18 AAC 50.400(h) | G144: 34 | H144: Title I | I144: MSS | J144: #N/A | K144: #N/A | L144: TITE Time & Materials | M144: Title I | N144: TITE Time & Materials | O144: Title I | P144: 18335555 | Q144: 3196.86 | R144: =VLOOKUP(B144,'CPI Cumulative BLS'!A$3:B$12,2,FALSE) -> 1.04 | S144: 3324.73 | T144: =IF(ISNA(VLOOKUP(G144,Footnotes!C$2:C$29,1,FALSE)),"","Yes") ->  | U144: =VLOOKUP(A144,'RSA Lookup'!A$1:D$17,3,FALSE) ->  | V144: Yes
A145: AQ0035MSS04P:MSSTI | B145: FY2018 | C145: MSSTV | D145: MSS | E145: 23:01 | F145: 23:01 Compliance - Routine Compliance, STP, STR activities | G145: 35 | H145: Title V | I145: TVCPRA | J145: #N/A | K145: #N/A | L145: TVCPRA Time & Materials | M145: Title V | N145: TVCPRA Time & Materials | O145: Title V | P145: 18335666 | Q145: 1768.42 | R145: =VLOOKUP(B145,'CPI Cumulative BLS'!A$3:B$12,2,FALSE) -> 1.04 | S145: 1839.16 | T145: =IF(ISNA(VLOOKUP(G145,Footnotes!C$2:C$29,1,FALSE)),"","Yes") ->  | U145: =VLOOKUP(A145,'RSA Lookup'!A$1:D$17,3,FALSE) ->  | V145: Yes
A146: AQ0035MSS04P:MSSTI | B146: FY2018 | C146: MSSTV | D146: MSS | E146: 23:02 | F146: 23:02 Billable Compliance - Non-routine compliance activities | G146: 35 | H146: Title V | I146: TVCPRA | J146: #N/A | K146: #N/A | L146: TVCPRA Time & Materials | M146: Title V | N146: TVCPRA Time & Materials | O146: Title V | P146: 18335666 | Q146: 19.02 | R146: =VLOOKUP(B146,'CPI Cumulative BLS'!A$3:B$12,2,FALSE) -> 1.04 | S146: 19.78 | T146: =IF(ISNA(VLOOKUP(G146,Footnotes!C$2:C$29,1,FALSE)),"","Yes") ->  | U146: =VLOOKUP(A146,'RSA Lookup'!A$1:D$17,3,FALSE) ->  | V146: Yes
A147: AQ0035MSS04P:MSSTI | B147: FY2019 | C147: MSSTV | D147: MSS | E147: 23:01 | F147: 23:01 Compliance - Routine Compliance, STP, STR activities | G147: 35 | H147: Title V | I147: TVCPRA | J147: #N/A | K147: #N/A | L147: TVCPRA Time & Materials | M147: Title V | N147: TVCPRA Time & Materials | O147: Title V | P147: 18335666 | Q147: 46.93 | R147: =VLOOKUP(B147,'CPI Cumulative BLS'!A$3:B$12,2,FALSE) -> 1.02 | S147: 47.87 | T147: =IF(ISNA(VLOOKUP(G147,Footnotes!C$2:C$29,1,FALSE)),"","Yes") ->  | U147: =VLOOKUP(A147,'RSA Lookup'!A$1:D$17,3,FALSE) ->  | V147: Yes
A148: AQ0035MSS05P:MSSTI1 | B148: FY2017 | C148: MSSTI1 | D148: MSS | E148: 22:02 | F148: 22:02 Billable Permitting - Tasks associated with 18 AAC 50.400(h) | G148: 35 | H148: Title V | I148: TVCPRA | J148: #N/A | K148: #N/A | L148: TVCPRA Time & Materials | M148: Title V | N148: TVCPRA Time & Materials | O148: Title V | P148: 18335666 | Q148: 1747.73 | R148: =VLOOKUP(B148,'CPI Cumulative BLS'!A$3:B$12,2,FALSE) -> 1.06 | S148: 1852.59 | T148: =IF(ISNA(VLOOKUP(G148,Footnotes!C$2:C$29,1,FALSE)),"","Yes") ->  | U148: =VLOOKUP(A148,'RSA Lookup'!A$1:D$17,3,FALSE) ->  | V148: Yes
A149: AQ0035MSS05P:MSSTI1 | B149: FY2017 | C149: MSSTI1 | D149: MSS | E149: 23:01 | F149: 23:01 Compliance - Routine Compliance, STP, STR activities | G149: 35 | H149: Title V | I149: TVCPRA | J149: #N/A | K149: #N/A | L149: TVCPRA Time & Materials | M149: Title V | N149: TVCPRA Time & Materials | O149: Title V | P149: 18335666 | Q149: 23.34 | R149: =VLOOKUP(B149,'CPI Cumulative BLS'!A$3:B$12,2,FALSE) -> 1.06 | S149: 24.74 | T149: =IF(ISNA(VLOOKUP(G149,Footnotes!C$2:C$29,1,FALSE)),"","Yes") ->  | U149: =VLOOKUP(A149,'RSA Lookup'!A$1:D$17,3,FALSE) ->  | V149: Yes
A150: AQ0035MSS06P:MSSTI1 | B150: FY2017 | C150: MSSTI1 | D150: MSS | E150: 22:02 | F150: 22:02 Billable Permitting - Tasks associated with 18 AAC 50.400(h) | G150: 35 | H150: Title V | I150: TVCPRA | J150: #N/A | K150: #N/A | L150: TVCPRA Time & Materials | M150: Title V | N150: TVCPRA Time & Materials | O150: Title V | P150: 18335666 | Q150: 1073.77 | R150: =VLOOKUP(B150,'CPI Cumulative BLS'!A$3:B$12,2,FALSE) -> 1.06 | S150: 1138.2 | T150: =IF(ISNA(VLOOKUP(G150,Footnotes!C$2:C$29,1,FALSE)),"","Yes") ->  | U150: =VLOOKUP(A150,'RSA Lookup'!A$1:D$17,3,FALSE) ->  | V150: Yes
A151: AQ0035MSS07A:MSSTI | B151: FY2018 | C151: MSSTV | D151: MSS | E151: 22:02 | F151: 22:02 Billable Permitting - Tasks associated with 18 AAC 50.400(h) | G151: 35 | H151: Title V | I151: TVCPRA | J151: #N/A | K151: #N/A | L151: TVCPRA Time & Materials | M151: Title V | N151: TVCPRA Time & Materials | O151: Title V | P151: 18335666 | Q151: 5009.15 | R151: =VLOOKUP(B151,'CPI Cumulative BLS'!A$3:B$12,2,FALSE) -> 1.04 | S151: 5209.52 | T151: =IF(ISNA(VLOOKUP(G151,Footnotes!C$2:C$29,1,FALSE)),"","Yes") ->  | U151: =VLOOKUP(A151,'RSA Lookup'!A$1:D$17,3,FALSE) ->  | V151: Yes
A152: AQ0035MSS07A:MSSTI | B152: FY2018 | C152: MSSTV | D152: MSS | E152: 22:07 | F152: 22:07 Billable Technical Assistance - Data Reviews, Site Requests & QAPP | G152: 35 | H152: Title V | I152: TVCPRA | J152: #N/A | K152: #N/A | L152: TVCPRA Time & Materials | M152: Title V | N152: TVCPRA Time & Materials | O152: Title V | P152: 18335666 | Q152: 65.81 | R152: =VLOOKUP(B152,'CPI Cumulative BLS'!A$3:B$12,2,FALSE) -> 1.04 | S152: 68.44 | T152: =IF(ISNA(VLOOKUP(G152,Footnotes!C$2:C$29,1,FALSE)),"","Yes") ->  | U152: =VLOOKUP(A152,'RSA Lookup'!A$1:D$17,3,FALSE) ->  | V152: Yes
A153: AQ0035MSS07A:MSSTI | B153: FY2019 | C153: MSSTV | D153: MSS | E153: 22:02 | F153: 22:02 Billable Permitting - Tasks associated with 18 AAC 50.400(h) | G153: 35 | H153: Title V | I153: TVCPRA | J153: #N/A | K153: #N/A | L153: TVCPRA Time & Materials | M153: Title V | N153: TVCPRA Time & Materials | O153: Title V | P153: 18335666 | Q153: 1189.01 | R153: =VLOOKUP(B153,'CPI Cumulative BLS'!A$3:B$12,2,FALSE) -> 1.02 | S153: 1212.79 | T153: =IF(ISNA(VLOOKUP(G153,Footnotes!C$2:C$29,1,FALSE)),"","Yes") ->  | U153: =VLOOKUP(A153,'RSA Lookup'!A$1:D$17,3,FALSE) ->  | V153: Yes
A154: AQ0035MSS07A:MSSTI1 | B154: FY2017 | C154: MSSTI1 | D154: MSS | E154: 22:02 | F154: 22:02 Billable Permitting - Tasks associated with 18 AAC 50.400(h) | G154: 35 | H154: Title V | I154: TVCPRA | J154: #N/A | K154: #N/A | L154: TVCPRA Time & Materials | M154: Title V | N154: TVCPRA Time & Materials | O154: Title V | P154: 18335666 | Q154: 1454.32 | R154: =VLOOKUP(B154,'CPI Cumulative BLS'!A$3:B$12,2,FALSE) -> 1.06 | S154: 1541.58 | T154: =IF(ISNA(VLOOKUP(G154,Footnotes!C$2:C$29,1,FALSE)),"","Yes") ->  | U154: =VLOOKUP(A154,'RSA Lookup'!A$1:D$17,3,FALSE) ->  | V154: Yes
A155: AQ0035MSS08P:MSSTI | B155: FY2019 | C155: MSSTV | D155: MSS | E155: 22:02 | F155: 22:02 Billable Permitting - Tasks associated with 18 AAC 50.400(h) | G155: 35 | H155: Title V | I155: TVCPRA | J155: #N/A | K155: #N/A | L155: TVCPRA Time & Materials | M155: Title V | N155: TVCPRA Time & Materials | O155: Title V | P155: 18335666 | Q155: 8775.16 | R155: =VLOOKUP(B155,'CPI Cumulative BLS'!A$3:B$12,2,FALSE) -> 1.02 | S155: 8950.66 | T155: =IF(ISNA(VLOOKUP(G155,Footnotes!C$2:C$29,1,FALSE)),"","Yes") ->  | U155: =VLOOKUP(A155,'RSA Lookup'!A$1:D$17,3,FALSE) ->  | V155: Yes
A156: AQ0035MSS08P:MSSTI | B156: FY2019 | C156: MSSTV | D156: MSS | E156: 23:01 | F156: 23:01 Compliance - Routine Compliance, STP, STR activities | G156: 35 | H156: Title V | I156: TVCPRA | J156: #N/A | K156: #N/A | L156: TVCPRA Time & Materials | M156: Title V | N156: TVCPRA Time & Materials | O156: Title V | P156: 18335666 | Q156: 45.39 | R156: =VLOOKUP(B156,'CPI Cumulative BLS'!A$3:B$12,2,FALSE) -> 1.02 | S156: 46.3 | T156: =IF(ISNA(VLOOKUP(G156,Footnotes!C$2:C$29,1,FALSE)),"","Yes") ->  | U156: =VLOOKUP(A156,'RSA Lookup'!A$1:D$17,3,FALSE) ->  | V156: Yes
A157: AQ0035PAA01A:TITE | B157: FY2018 | C157: TITE | D157: TITE OR TVTE | E157: 22:04 | F157: 22:04 Billable Permitting - Pre-application assistance | G157: 35 | H157: Title V | I157: TVCPRA | J157: #N/A | K157: #N/A | L157: TVCPRA Time & Materials | M157: Title V | N157: TVCPRA Time & Materials | O157: Title V | P157: 18335666 | Q157: 939.22 | R157: =VLOOKUP(B157,'CPI Cumulative BLS'!A$3:B$12,2,FALSE) -> 1.04 | S157: 976.79 | T157: =IF(ISNA(VLOOKUP(G157,Footnotes!C$2:C$29,1,FALSE)),"","Yes") ->  | U157: =VLOOKUP(A157,'RSA Lookup'!A$1:D$17,3,FALSE) ->  | V157: Yes
A158: AQ0035PAA01A:TITE | B158: FY2019 | C158: TITE | D158: TITE OR TVTE | E158: 22:04 | F158: 22:04 Billable Permitting - Pre-application assistance | G158: 35 | H158: Title V | I158: TVCPRA | J158: #N/A | K158: #N/A | L158: TVCPRA Time & Materials | M158: Title V | N158: TVCPRA Time & Materials | O158: Title V | P158: 18335666 | Q158: 739.43 | R158: =VLOOKUP(B158,'CPI Cumulative BLS'!A$3:B$12,2,FALSE) -> 1.02 | S158: 754.22 | T158: =IF(ISNA(VLOOKUP(G158,Footnotes!C$2:C$29,1,FALSE)),"","Yes") ->  | U158: =VLOOKUP(A158,'RSA Lookup'!A$1:D$17,3,FALSE) ->  | V158: Yes
A159: AQ0035PAA01A:TITE1 | B159: FY2017 | C159: TITE1 | D159: TITE OR TVTE | E159: 22:04 | F159: 22:04 Billable Permitting - Pre-application assistance | G159: 35 | H159: Title V | I159: TVCPRA | J159: #N/A | K159: #N/A | L159: TVCPRA Time & Materials | M159: Title V | N159: TVCPRA Time & Materials | O159: Title V | P159: 18335666 | Q159: 434.07 | R159: =VLOOKUP(B159,'CPI Cumulative BLS'!A$3:B$12,2,FALSE) -> 1.06 | S159: 460.11 | T159: =IF(ISNA(VLOOKUP(G159,Footnotes!C$2:C$29,1,FALSE)),"","Yes") ->  | U159: =VLOOKUP(A159,'RSA Lookup'!A$1:D$17,3,FALSE) ->  | V159: Yes
A160: AQ0035TVP02P:CPRA | B160: FY2018 | C160: CPRA-TVP | D160: CPR | E160: 2000:05 | F160: 2000:05 TRAVEL - TRANSPORTATION (TIME & MATERIAL) | G160: 35 | H160: Title V | I160: TVCPRA | J160: TVCPRA Time & Materials | K160: Title V | L160: #N/A | M160: #N/A | N160: TVCPRA Time & Materials | O160: Title V | P160: 18335555 | Q160: 878.9 | R160: =VLOOKUP(B160,'CPI Cumulative BLS'!A$3:B$12,2,FALSE) -> 1.04 | S160: 914.06 | T160: =IF(ISNA(VLOOKUP(G160,Footnotes!C$2:C$29,1,FALSE)),"","Yes") ->  | U160: =VLOOKUP(A160,'RSA Lookup'!A$1:D$17,3,FALSE) ->  | V160: No
A161: AQ0035TVP02P:CPRA | B161: FY2018 | C161: CPRA-TVP | D161: CPR | E161: 22:02 | F161: 22:02 Billable Permitting - Tasks associated with 18 AAC 50.400(h) | G161: 35 | H161: Title V | I161: TVCPRA | J161: TVCPRA Time & Materials | K161: Title V | L161: #N/A | M161: #N/A | N161: TVCPRA Time & Materials | O161: Title V | P161: 18335555 | Q161: 124.22 | R161: =VLOOKUP(B161,'CPI Cumulative BLS'!A$3:B$12,2,FALSE) -> 1.04 | S161: 129.19 | T161: =IF(ISNA(VLOOKUP(G161,Footnotes!C$2:C$29,1,FALSE)),"","Yes") ->  | U161: =VLOOKUP(A161,'RSA Lookup'!A$1:D$17,3,FALSE) ->  | V161: No
A162: AQ0035TVP02P:CPRA | B162: FY2018 | C162: CPRA-TVP | D162: CPR | E162: 22:06 | F162: 22:06 Billable Permitting - Significant modification to a Title V Permit | G162: 35 | H162: Title V | I162: TVCPRA | J162: TVCPRA Time & Materials | K162: Title V | L162: #N/A | M162: #N/A | N162: TVCPRA Time & Materials | O162: Title V | P162: 18335555 | Q162: 682.86 | R162: =VLOOKUP(B162,'CPI Cumulative BLS'!A$3:B$12,2,FALSE) -> 1.04 | S162: 710.17 | T162: =IF(ISNA(VLOOKUP(G162,Footnotes!C$2:C$29,1,FALSE)),"","Yes") ->  | U162: =VLOOKUP(A162,'RSA Lookup'!A$1:D$17,3,FALSE) ->  | V162: No
A163: AQ0035TVP02P:CPRA | B163: FY2018 | C163: CPRA-TVP | D163: CPR | E163: 23:01 | F163: 23:01 Compliance - Routine Compliance, STP, STR activities | G163: 35 | H163: Title V | I163: TVCPRA | J163: TVCPRA Time & Materials | K163: Title V | L163: #N/A | M163: #N/A | N163: TVCPRA Time & Materials | O163: Title V | P163: 18335555 | Q163: 26110.51 | R163: =VLOOKUP(B163,'CPI Cumulative BLS'!A$3:B$12,2,FALSE) -> 1.04 | S163: 27154.93 | T163: =IF(ISNA(VLOOKUP(G163,Footnotes!C$2:C$29,1,FALSE)),"","Yes") ->  | U163: =VLOOKUP(A163,'RSA Lookup'!A$1:D$17,3,FALSE) ->  | V163: No
A164: AQ0035TVP02P:CPRA | B164: FY2018 | C164: CPRA-TVP | D164: CPR | E164: 23:02 | F164: 23:02 Billable Compliance - Non-routine compliance activities | G164: 35 | H164: Title V | I164: TVCPRA | J164: TVCPRA Time & Materials | K164: Title V | L164: #N/A | M164: #N/A | N164: TVCPRA Time & Materials | O164: Title V | P164: 18335555 | Q164: 2247.71 | R164: =VLOOKUP(B164,'CPI Cumulative BLS'!A$3:B$12,2,FALSE) -> 1.04 | S164: 2337.62 | T164: =IF(ISNA(VLOOKUP(G164,Footnotes!C$2:C$29,1,FALSE)),"","Yes") ->  | U164: =VLOOKUP(A164,'RSA Lookup'!A$1:D$17,3,FALSE) ->  | V164: No
A165: AQ0035TVP02P:CPRA | B165: FY2018 | C165: CPRA-TVP | D165: CPR | E165: 23:03 | F165: 23:03 Compliance - EE/PD Intake Only | G165: 35 | H165: Title V | I165: TVCPRA | J165: Excess Emissions - EE/PD Individual Fee | K165: Either | L165: #N/A | M165: #N/A | N165: Excess Emissions - EE/PD Individual Fee | O165: Either | P165: 18335555 | Q165: 301.38 | R165: =VLOOKUP(B165,'CPI Cumulative BLS'!A$3:B$12,2,FALSE) -> 1.04 | S165: 313.44 | T165: =IF(ISNA(VLOOKUP(G165,Footnotes!C$2:C$29,1,FALSE)),"","Yes") ->  | U165: =VLOOKUP(A165,'RSA Lookup'!A$1:D$17,3,FALSE) ->  | V165: No
A166: AQ0035TVP02P:CPRA | B166: FY2018 | C166: CPRA-TVP | D166: CPR | E166: 23:04 | F166: 23:04 Billable Compliance - Source Test Observation | G166: 35 | H166: Title V | I166: TVCPRA | J166: TVCPRA Time & Materials | K166: Title V | L166: #N/A | M166: #N/A | N166: TVCPRA Time & Materials | O166: Title V | P166: 18335555 | Q166: 474.73 | R166: =VLOOKUP(B166,'CPI Cumulative BLS'!A$3:B$12,2,FALSE) -> 1.04 | S166: 493.72 | T166: =IF(ISNA(VLOOKUP(G166,Footnotes!C$2:C$29,1,FALSE)),"","Yes") ->  | U166: =VLOOKUP(A166,'RSA Lookup'!A$1:D$17,3,FALSE) ->  | V166: No
A167: AQ0035TVP02P:CPRA | B167: FY2018 | C167: CPRA-TVP | D167: CPR | E167: 3088:00 | F167: 3088:00 STATE OF ALASKA DEPT OF LAW | G167: 35 | H167: Title V | I167: TVCPRA | J167: TVCPRA Time & Materials | K167: Title V | L167: #N/A | M167: #N/A | N167: TVCPRA Time & Materials | O167: Title V | P167: 18335555 | Q167: 1243.94 | R167: =VLOOKUP(B167,'CPI Cumulative BLS'!A$3:B$12,2,FALSE) -> 1.04 | S167: 1293.7 | T167: =IF(ISNA(VLOOKUP(G167,Footnotes!C$2:C$29,1,FALSE)),"","Yes") ->  | U167: =VLOOKUP(A167,'RSA Lookup'!A$1:D$17,3,FALSE) ->  | V167: No
A168: AQ0035TVP02P:CPRA | B168: FY2019 | C168: CPRA-TVP | D168: CPR | E168: 2000:03 | F168: 2000:03 TRAVEL - TRANSPORTATION (ROUTINE COMPLIANCE) | G168: 35 | H168: Title V | I168: TVCPRA | J168: TVCPRA Time & Materials | K168: Title V | L168: #N/A | M168: #N/A | N168: TVCPRA Time & Materials | O168: Title V | P168: 18335555 | Q168: 184 | R168: =VLOOKUP(B168,'CPI Cumulative BLS'!A$3:B$12,2,FALSE) -> 1.02 | S168: 187.68 | T168: =IF(ISNA(VLOOKUP(G168,Footnotes!C$2:C$29,1,FALSE)),"","Yes") ->  | U168: =VLOOKUP(A168,'RSA Lookup'!A$1:D$17,3,FALSE) ->  | V168: No
A169: AQ0035TVP02P:CPRA | B169: FY2019 | C169: CPRA-TVP | D169: CPR | E169: 2000:05 | F169: 2000:05 TRAVEL - TRANSPORTATION (TIME & MATERIAL) | G169: 35 | H169: Title V | I169: TVCPRA | J169: TVCPRA Time & Materials | K169: Title V | L169: #N/A | M169: #N/A | N169: TVCPRA Time & Materials | O169: Title V | P169: 18335555 | Q169: 482.97 | R169: =VLOOKUP(B169,'CPI Cumulative BLS'!A$3:B$12,2,FALSE) -> 1.02 | S169: 492.63 | T169: =IF(ISNA(VLOOKUP(G169,Footnotes!C$2:C$29,1,FALSE)),"","Yes") ->  | U169: =VLOOKUP(A169,'RSA Lookup'!A$1:D$17,3,FALSE) ->  | V169: No
A170: AQ0035TVP02P:CPRA | B170: FY2019 | C170: CPRA-TVP | D170: CPR | E170: 23:01 | F170: 23:01 Compliance - Routine Compliance, STP, STR activities | G170: 35 | H170: Title V | I170: TVCPRA | J170: TVCPRA Time & Materials | K170: Title V | L170: #N/A | M170: #N/A | N170: TVCPRA Time & Materials | O170: Title V | P170: 18335555 | Q170: 13927.77 | R170: =VLOOKUP(B170,'CPI Cumulative BLS'!A$3:B$12,2,FALSE) -> 1.02 | S170: 14206.33 | T170: =IF(ISNA(VLOOKUP(G170,Footnotes!C$2:C$29,1,FALSE)),"","Yes") ->  | U170: =VLOOKUP(A170,'RSA Lookup'!A$1:D$17,3,FALSE) ->  | V170: No
A171: AQ0035TVP02P:CPRA | B171: FY2019 | C171: CPRA-TVP | D171: CPR | E171: 23:02 | F171: 23:02 Billable Compliance - Non-routine compliance activities | G171: 35 | H171: Title V | I171: TVCPRA | J171: TVCPRA Time & Materials | K171: Title V | L171: #N/A | M171: #N/A | N171: TVCPRA Time & Materials | O171: Title V | P171: 18335555 | Q171: 658.38 | R171: =VLOOKUP(B171,'CPI Cumulative BLS'!A$3:B$12,2,FALSE) -> 1.02 | S171: 671.55 | T171: =IF(ISNA(VLOOKUP(G171,Footnotes!C$2:C$29,1,FALSE)),"","Yes") ->  | U171: =VLOOKUP(A171,'RSA Lookup'!A$1:D$17,3,FALSE) ->  | V171: No
A172: AQ0035TVP02P:CPRA | B172: FY2019 | C172: CPRA-TVP | D172: CPR | E172: 23:03 | F172: 23:03 Compliance - EE/PD Intake Only | G172: 35 | H172: Title V | I172: TVCPRA | J172: Excess Emissions - EE/PD Individual Fee | K172: Either | L172: #N/A | M172: #N/A | N172: Excess Emissions - EE/PD Individual Fee | O172: Either | P172: 18335555 | Q172: 115.48 | R172: =VLOOKUP(B172,'CPI Cumulative BLS'!A$3:B$12,2,FALSE) -> 1.02 | S172: 117.79 | T172: =IF(ISNA(VLOOKUP(G172,Footnotes!C$2:C$29,1,FALSE)),"","Yes") ->  | U172: =VLOOKUP(A172,'RSA Lookup'!A$1:D$17,3,FALSE) ->  | V172: No
A173: AQ0035TVP02P:CPRA | B173: FY2019 | C173: CPRA-TVP | D173: CPR | E173: 23:04 | F173: 23:04 Billable Compliance - Source Test Observation | G173: 35 | H173: Title V | I173: TVCPRA | J173: TVCPRA Time & Materials | K173: Title V | L173: #N/A | M173: #N/A | N173: TVCPRA Time & Materials | O173: Title V | P173: 18335555 | Q173: 1757.96 | R173: =VLOOKUP(B173,'CPI Cumulative BLS'!A$3:B$12,2,FALSE) -> 1.02 | S173: 1793.12 | T173: =IF(ISNA(VLOOKUP(G173,Footnotes!C$2:C$29,1,FALSE)),"","Yes") ->  | U173: =VLOOKUP(A173,'RSA Lookup'!A$1:D$17,3,FALSE) ->  | V173: No
A174: AQ0035TVP02P:CPRA | B174: FY2019 | C174: CPRA-TVP | D174: CPR | E174: 3088:00 | F174: 3088:00 STATE OF ALASKA DEPT OF LAW | G174: 35 | H174: Title V | I174: TVCPRA | J174: TVCPRA Time & Materials | K174: Title V | L174: #N/A | M174: #N/A | N174: TVCPRA Time & Materials | O174: Title V | P174: 18335555 | Q174: 563.41 | R174: =VLOOKUP(B174,'CPI Cumulative BLS'!A$3:B$12,2,FALSE) -> 1.02 | S174: 574.68 | T174: =IF(ISNA(VLOOKUP(G174,Footnotes!C$2:C$29,1,FALSE)),"","Yes") ->  | U174: =VLOOKUP(A174,'RSA Lookup'!A$1:D$17,3,FALSE) ->  | V174: No
A175: AQ0035TVP02P:CPRA1 | B175: FY2017 | C175: CPRA1 | D175: CPR | E175: 2000:03 | F175: 2000:03 TRAVEL - TRANSPORTATION (ROUTINE COMPLIANCE) | G175: 35 | H175: Title V | I175: TVCPRA | J175: TVCPRA Time & Materials | K175: Title V | L175: #N/A | M175: #N/A | N175: TVCPRA Time & Materials | O175: Title V | P175: 18335555 | Q175: 394 | R175: =VLOOKUP(B175,'CPI Cumulative BLS'!A$3:B$12,2,FALSE) -> 1.06 | S175: 417.64 | T175: =IF(ISNA(VLOOKUP(G175,Footnotes!C$2:C$29,1,FALSE)),"","Yes") ->  | U175: =VLOOKUP(A175,'RSA Lookup'!A$1:D$17,3,FALSE) ->  | V175: No
A176: AQ0035TVP02P:CPRA1 | B176: FY2017 | C176: CPRA1 | D176: CPR | E176: 2000:05 | F176: 2000:05 TRAVEL - TRANSPORTATION (TIME & MATERIAL) | G176: 35 | H176: Title V | I176: TVCPRA | J176: TVCPRA Time & Materials | K176: Title V | L176: #N/A | M176: #N/A | N176: TVCPRA Time & Materials | O176: Title V | P176: 18335555 | Q176: 712 | R176: =VLOOKUP(B176,'CPI Cumulative BLS'!A$3:B$12,2,FALSE) -> 1.06 | S176: 754.72 | T176: =IF(ISNA(VLOOKUP(G176,Footnotes!C$2:C$29,1,FALSE)),"","Yes") ->  | U176: =VLOOKUP(A176,'RSA Lookup'!A$1:D$17,3,FALSE) ->  | V176: No
A177: AQ0035TVP02P:CPRA1 | B177: FY2017 | C177: CPRA1 | D177: CPR | E177: 22:02 | F177: 22:02 Billable Permitting - Tasks associated with 18 AAC 50.400(h) | G177: 35 | H177: Title V | I177: TVCPRA | J177: TVCPRA Time & Materials | K177: Title V | L177: #N/A | M177: #N/A | N177: TVCPRA Time & Materials | O177: Title V | P177: 18335555 | Q177: 791.24 | R177: =VLOOKUP(B177,'CPI Cumulative BLS'!A$3:B$12,2,FALSE) -> 1.06 | S177: 838.71 | T177: =IF(ISNA(VLOOKUP(G177,Footnotes!C$2:C$29,1,FALSE)),"","Yes") ->  | U177: =VLOOKUP(A177,'RSA Lookup'!A$1:D$17,3,FALSE) ->  | V177: No
A178: AQ0035TVP02P:CPRA1 | B178: FY2017 | C178: CPRA1 | D178: CPR | E178: 22:06 | F178: 22:06 Billable Permitting - Significant modification to a Title V Permit | G178: 35 | H178: Title V | I178: TVCPRA | J178: TVCPRA Time & Materials | K178: Title V | L178: #N/A | M178: #N/A | N178: TVCPRA Time & Materials | O178: Title V | P178: 18335555 | Q178: 4588.12 | R178: =VLOOKUP(B178,'CPI Cumulative BLS'!A$3:B$12,2,FALSE) -> 1.06 | S178: 4863.41 | T178: =IF(ISNA(VLOOKUP(G178,Footnotes!C$2:C$29,1,FALSE)),"","Yes") ->  | U178: =VLOOKUP(A178,'RSA Lookup'!A$1:D$17,3,FALSE) ->  | V178: No
A179: AQ0035TVP02P:CPRA1 | B179: FY2017 | C179: CPRA1 | D179: CPR | E179: 23:01 | F179: 23:01 Compliance - Routine Compliance, STP, STR activities | G179: 35 | H179: Title V | I179: TVCPRA | J179: TVCPRA Time & Materials | K179: Title V | L179: #N/A | M179: #N/A | N179: TVCPRA Time & Materials | O179: Title V | P179: 18335555 | Q179: 16385.03 | R179: =VLOOKUP(B179,'CPI Cumulative BLS'!A$3:B$12,2,FALSE) -> 1.06 | S179: 17368.13 | T179: =IF(ISNA(VLOOKUP(G179,Footnotes!C$2:C$29,1,FALSE)),"","Yes") ->  | U179: =VLOOKUP(A179,'RSA Lookup'!A$1:D$17,3,FALSE) ->  | V179: No
A180: AQ0035TVP02P:CPRA1 | B180: FY2017 | C180: CPRA1 | D180: CPR | E180: 23:02 | F180: 23:02 Billable Compliance - Non-routine compliance activities | G180: 35 | H180: Title V | I180: TVCPRA | J180: TVCPRA Time & Materials | K180: Title V | L180: #N/A | M180: #N/A | N180: TVCPRA Time & Materials | O180: Title V | P180: 18335555 | Q180: 4868.46 | R180: =VLOOKUP(B180,'CPI Cumulative BLS'!A$3:B$12,2,FALSE) -> 1.06 | S180: 5160.57 | T180: =IF(ISNA(VLOOKUP(G180,Footnotes!C$2:C$29,1,FALSE)),"","Yes") ->  | U180: =VLOOKUP(A180,'RSA Lookup'!A$1:D$17,3,FALSE) ->  | V180: No
A181: AQ0035TVP02P:CPRA1 | B181: FY2017 | C181: CPRA1 | D181: CPR | E181: 23:03 | F181: 23:03 Compliance - EE/PD Intake Only | G181: 35 | H181: Title V | I181: TVCPRA | J181: Excess Emissions - EE/PD Individual Fee | K181: Either | L181: #N/A | M181: #N/A | N181: Excess Emissions - EE/PD Individual Fee | O181: Either | P181: 18335555 | Q181: 230.52 | R181: =VLOOKUP(B181,'CPI Cumulative BLS'!A$3:B$12,2,FALSE) -> 1.06 | S181: 244.35 | T181: =IF(ISNA(VLOOKUP(G181,Footnotes!C$2:C$29,1,FALSE)),"","Yes") ->  | U181: =VLOOKUP(A181,'RSA Lookup'!A$1:D$17,3,FALSE) ->  | V181: No
A182: AQ0035TVP02P:CPRA1 | B182: FY2017 | C182: CPRA1 | D182: CPR | E182: 23:04 | F182: 23:04 Billable Compliance - Source Test Observation | G182: 35 | H182: Title V | I182: TVCPRA | J182: TVCPRA Time & Materials | K182: Title V | L182: #N/A | M182: #N/A | N182: TVCPRA Time & Materials | O182: Title V | P182: 18335555 | Q182: 1341.26 | R182: =VLOOKUP(B182,'CPI Cumulative BLS'!A$3:B$12,2,FALSE) -> 1.06 | S182: 1421.74 | T182: =IF(ISNA(VLOOKUP(G182,Footnotes!C$2:C$29,1,FALSE)),"","Yes") ->  | U182: =VLOOKUP(A182,'RSA Lookup'!A$1:D$17,3,FALSE) ->  | V182: No
A183: AQ0035TVP02P:CPRA1 | B183: FY2017 | C183: CPRA1 | D183: CPR | E183: 3046:03 | F183: 3046:03 AD ORDER (TIME & MATERIAL) | G183: 35 | H183: Title V | I183: TVCPRA | J183: TVCPRA Time & Materials | K183: Title V | L183: #N/A | M183: #N/A | N183: TVCPRA Time & Materials | O183: Title V | P183: 18335555 | Q183: 1623.42 | R183: =VLOOKUP(B183,'CPI Cumulative BLS'!A$3:B$12,2,FALSE) -> 1.06 | S183: 1720.83 | T183: =IF(ISNA(VLOOKUP(G183,Footnotes!C$2:C$29,1,FALSE)),"","Yes") ->  | U183: =VLOOKUP(A183,'RSA Lookup'!A$1:D$17,3,FALSE) ->  | V183: No
A184: AQ0035TVP02P:CPRA1 | B184: FY2017 | C184: CPRA1 | D184: CPR | E184: 3088:00 | F184: 3088:00 STATE OF ALASKA DEPT OF LAW | G184: 35 | H184: Title V | I184: TVCPRA | J184: TVCPRA Time & Materials | K184: Title V | L184: #N/A | M184: #N/A | N184: TVCPRA Time & Materials | O184: Title V | P184: 18335555 | Q184: 3069.68 | R184: =VLOOKUP(B184,'CPI Cumulative BLS'!A$3:B$12,2,FALSE) -> 1.06 | S184: 3253.86 | T184: =IF(ISNA(VLOOKUP(G184,Footnotes!C$2:C$29,1,FALSE)),"","Yes") ->  | U184: =VLOOKUP(A184,'RSA Lookup'!A$1:D$17,3,FALSE) ->  | V184: No
A185: AQ0035TVP03A:CPRA | B185: FY2018 | C185: CPRA-TVP | D185: CPR | E185: 22:01 | F185: 22:01 Permitting - TV Renewal and/or Amendment | G185: 35 | H185: Title V | I185: TVCPRA | J185: TVCPRA Time & Materials | K185: Title V | L185: #N/A | M185: #N/A | N185: TVCPRA Time & Materials | O185: Title V | P185: 18335555 | Q185: 8816.4 | R185: =VLOOKUP(B185,'CPI Cumulative BLS'!A$3:B$12,2,FALSE) -> 1.04 | S185: 9169.06 | T185: =IF(ISNA(VLOOKUP(G185,Footnotes!C$2:C$29,1,FALSE)),"","Yes") ->  | U185: =VLOOKUP(A185,'RSA Lookup'!A$1:D$17,3,FALSE) ->  | V185: No
A186: AQ0035TVP03A:CPRA | B186: FY2018 | C186: CPRA-TVP | D186: CPR | E186: 23:01 | F186: 23:01 Compliance - Routine Compliance, STP, STR activities | G186: 35 | H186: Title V | I186: TVCPRA | J186: TVCPRA Time & Materials | K186: Title V | L186: #N/A | M186: #N/A | N186: TVCPRA Time & Materials | O186: Title V | P186: 18335555 | Q186: 192.17 | R186: =VLOOKUP(B186,'CPI Cumulative BLS'!A$3:B$12,2,FALSE) -> 1.04 | S186: 199.86 | T186: =IF(ISNA(VLOOKUP(G186,Footnotes!C$2:C$29,1,FALSE)),"","Yes") ->  | U186: =VLOOKUP(A186,'RSA Lookup'!A$1:D$17,3,FALSE) ->  | V186: No
A187: AQ0035TVP03A:CPRA | B187: FY2018 | C187: CPRA-TVP | D187: CPR | E187: 23:02 | F187: 23:02 Billable Compliance - Non-routine compliance activities | G187: 35 | H187: Title V | I187: TVCPRA | J187: TVCPRA Time & Materials | K187: Title V | L187: #N/A | M187: #N/A | N187: TVCPRA Time & Materials | O187: Title V | P187: 18335555 | Q187: 85.11 | R187: =VLOOKUP(B187,'CPI Cumulative BLS'!A$3:B$12,2,FALSE) -> 1.04 | S187: 88.51 | T187: =IF(ISNA(VLOOKUP(G187,Footnotes!C$2:C$29,1,FALSE)),"","Yes") ->  | U187: =VLOOKUP(A187,'RSA Lookup'!A$1:D$17,3,FALSE) ->  | V187: No
A188: AQ0035TVP03A:CPRA | B188: FY2018 | C188: CPRA-TVP | D188: CPR | E188: 23:04 | F188: 23:04 Billable Compliance - Source Test Observation | G188: 35 | H188: Title V | I188: TVCPRA | J188: TVCPRA Time & Materials | K188: Title V | L188: #N/A | M188: #N/A | N188: TVCPRA Time & Materials | O188: Title V | P188: 18335555 | Q188: 766 | R188: =VLOOKUP(B188,'CPI Cumulative BLS'!A$3:B$12,2,FALSE) -> 1.04 | S188: 796.64 | T188: =IF(ISNA(VLOOKUP(G188,Footnotes!C$2:C$29,1,FALSE)),"","Yes") ->  | U188: =VLOOKUP(A188,'RSA Lookup'!A$1:D$17,3,FALSE) ->  | V188: No
A189: AQ0035TVP03A:CPRA | B189: FY2019 | C189: CPRA-TVP | D189: CPR | E189: 22:01 | F189: 22:01 Permitting - TV Renewal and/or Amendment | G189: 35 | H189: Title V | I189: TVCPRA | J189: TVCPRA Time & Materials | K189: Title V | L189: #N/A | M189: #N/A | N189: TVCPRA Time & Materials | O189: Title V | P189: 18335555 | Q189: 14038.84 | R189: =VLOOKUP(B189,'CPI Cumulative BLS'!A$3:B$12,2,FALSE) -> 1.02 | S189: 14319.62 | T189: =IF(ISNA(VLOOKUP(G189,Footnotes!C$2:C$29,1,FALSE)),"","Yes") ->  | U189: =VLOOKUP(A189,'RSA Lookup'!A$1:D$17,3,FALSE) ->  | V189: No
A190: AQ0035TVP03A:CPRA | B190: FY2019 | C190: CPRA-TVP | D190: CPR | E190: 23:01 | F190: 23:01 Compliance - Routine Compliance, STP, STR activities | G190: 35 | H190: Title V | I190: TVCPRA | J190: TVCPRA Time & Materials | K190: Title V | L190: #N/A | M190: #N/A | N190: TVCPRA Time & Materials | O190: Title V | P190: 18335555 | Q190: 1384.42 | R190: =VLOOKUP(B190,'CPI Cumulative BLS'!A$3:B$12,2,FALSE) -> 1.02 | S190: 1412.11 | T190: =IF(ISNA(VLOOKUP(G190,Footnotes!C$2:C$29,1,FALSE)),"","Yes") ->  | U190: =VLOOKUP(A190,'RSA Lookup'!A$1:D$17,3,FALSE) ->  | V190: No
A191: AQ0035TVP03A:CPRA | B191: FY2019 | C191: CPRA-TVP | D191: CPR | E191: 23:02 | F191: 23:02 Billable Compliance - Non-routine compliance activities | G191: 35 | H191: Title V | I191: TVCPRA | J191: TVCPRA Time & Materials | K191: Title V | L191: #N/A | M191: #N/A | N191: TVCPRA Time & Materials | O191: Title V | P191: 18335555 | Q191: 45.39 | R191: =VLOOKUP(B191,'CPI Cumulative BLS'!A$3:B$12,2,FALSE) -> 1.02 | S191: 46.3 | T191: =IF(ISNA(VLOOKUP(G191,Footnotes!C$2:C$29,1,FALSE)),"","Yes") ->  | U191: =VLOOKUP(A191,'RSA Lookup'!A$1:D$17,3,FALSE) ->  | V191: No
A192: AQ0035TVP03A:CPRA1 | B192: FY2017 | C192: CPRA1 | D192: CPR | E192: 22:01 | F192: 22:01 Permitting - TV Renewal and/or Amendment | G192: 35 | H192: Title V | I192: TVCPRA | J192: TVCPRA Time & Materials | K192: Title V | L192: #N/A | M192: #N/A | N192: TVCPRA Time & Materials | O192: Title V | P192: 18335555 | Q192: 4896.97 | R192: =VLOOKUP(B192,'CPI Cumulative BLS'!A$3:B$12,2,FALSE) -> 1.06 | S192: 5190.79 | T192: =IF(ISNA(VLOOKUP(G192,Footnotes!C$2:C$29,1,FALSE)),"","Yes") ->  | U192: =VLOOKUP(A192,'RSA Lookup'!A$1:D$17,3,FALSE) ->  | V192: No
A193: AQ0035TVP03A:CPRA1 | B193: FY2017 | C193: CPRA1 | D193: CPR | E193: 23:01 | F193: 23:01 Compliance - Routine Compliance, STP, STR activities | G193: 35 | H193: Title V | I193: TVCPRA | J193: TVCPRA Time & Materials | K193: Title V | L193: #N/A | M193: #N/A | N193: TVCPRA Time & Materials | O193: Title V | P193: 18335555 | Q193: 201.1 | R193: =VLOOKUP(B193,'CPI Cumulative BLS'!A$3:B$12,2,FALSE) -> 1.06 | S193: 213.17 | T193: =IF(ISNA(VLOOKUP(G193,Footnotes!C$2:C$29,1,FALSE)),"","Yes") ->  | U193: =VLOOKUP(A193,'RSA Lookup'!A$1:D$17,3,FALSE) ->  | V193: No
A194: AQ0035TVP03A:CPRA1 | B194: FY2017 | C194: CPRA1 | D194: CPR | E194: 23:03 | F194: 23:03 Compliance - EE/PD Intake Only | G194: 35 | H194: Title V | I194: TVCPRA | J194: Excess Emissions - EE/PD Individual Fee | K194: Either | L194: #N/A | M194: #N/A | N194: Excess Emissions - EE/PD Individual Fee | O194: Either | P194: 18335555 | Q194: 8.53 | R194: =VLOOKUP(B194,'CPI Cumulative BLS'!A$3:B$12,2,FALSE) -> 1.06 | S194: 9.04 | T194: =IF(ISNA(VLOOKUP(G194,Footnotes!C$2:C$29,1,FALSE)),"","Yes") ->  | U194: =VLOOKUP(A194,'RSA Lookup'!A$1:D$17,3,FALSE) ->  | V194: Yes
A195: AQ0036MSS01A:MSSTI1 | B195: FY2017 | C195: MSSTI1 | D195: MSS | E195: 22:02 | F195: 22:02 Billable Permitting - Tasks associated with 18 AAC 50.400(h) | G195: 36 | H195: Title V | I195: TVCPRA | J195: #N/A | K195: #N/A | L195: TVCPRA Time & Materials | M195: Title V | N195: TVCPRA Time & Materials | O195: Title V | P195: 18335666 | Q195: 104.48 | R195: =VLOOKUP(B195,'CPI Cumulative BLS'!A$3:B$12,2,FALSE) -> 1.06 | S195: =ROUND(Q195*R195,2) -> 110.75 | T195: =IF(ISNA(VLOOKUP(G195,Footnotes!C$2:C$29,1,FALSE)),"","Yes") ->  | U195: =VLOOKUP(A195,'RSA Lookup'!A$1:D$17,3,FALSE) ->  | V195: Yes
A196: AQ0036TVP02P:CPRA1 | B196: FY2017 | C196: CPRA1 | D196: CPR | E196: 23:01 | F196: 23:01 Compliance - Routine Compliance, STP, STR activities | G196: 36 | H196: Title V | I196: TVCPRA | J196: TVCPRA Time & Materials | K196: Title V | L196: #N/A | M196: #N/A | N196: TVCPRA Time & Materials | O196: Title V | P196: 18335555 | Q196: 9.05 | R196: =VLOOKUP(B196,'CPI Cumulative BLS'!A$3:B$12,2,FALSE) -> 1.06 | S196: 9.59 | T196: =IF(ISNA(VLOOKUP(G196,Footnotes!C$2:C$29,1,FALSE)),"","Yes") ->  | U196: =VLOOKUP(A196,'RSA Lookup'!A$1:D$17,3,FALSE) ->  | V196: Yes
A197: AQ0036TVP03P:CPRA | B197: FY2018 | C197: CPRA-TVP | D197: CPR | E197: 22:06 | F197: 22:06 Billable Permitting - Significant modification to a Title V Permit | G197: 36 | H197: Title V | I197: TVCPRA | J197: TVCPRA Time & Materials | K197: Title V | L197: #N/A | M197: #N/A | N197: TVCPRA Time & Materials | O197: Title V | P197: 18335555 | Q197: 1264.9 | R197: =VLOOKUP(B197,'CPI Cumulative BLS'!A$3:B$12,2,FALSE) -> 1.04 | S197: 1315.5 | T197: =IF(ISNA(VLOOKUP(G197,Footnotes!C$2:C$29,1,FALSE)),"","Yes") ->  | U197: =VLOOKUP(A197,'RSA Lookup'!A$1:D$17,3,FALSE) ->  | V197: Yes
A198: AQ0036TVP03P:CPRA | B198: FY2018 | C198: CPRA-TVP | D198: CPR | E198: 23:01 | F198: 23:01 Compliance - Routine Compliance, STP, STR activities | G198: 36 | H198: Title V | I198: TVCPRA | J198: TVCPRA Time & Materials | K198: Title V | L198: #N/A | M198: #N/A | N198: TVCPRA Time & Materials | O198: Title V | P198: 18335555 | Q198: 536.49 | R198: =VLOOKUP(B198,'CPI Cumulative BLS'!A$3:B$12,2,FALSE) -> 1.04 | S198: 557.95 | T198: =IF(ISNA(VLOOKUP(G198,Footnotes!C$2:C$29,1,FALSE)),"","Yes") ->  | U198: =VLOOKUP(A198,'RSA Lookup'!A$1:D$17,3,FALSE) ->  | V198: Yes
A199: AQ0036TVP03P:CPRA | B199: FY2018 | C199: CPRA-TVP | D199: CPR | E199: 23:03 | F199: 23:03 Compliance - EE/PD Intake Only | G199: 36 | H199: Title V | I199: TVCPRA | J199: Excess Emissions - EE/PD Individual Fee | K199: Either | L199: #N/A | M199: #N/A | N199: Excess Emissions - EE/PD Individual Fee | O199: Either | P199: 18335555 | Q199: 8.24 | R199: =VLOOKUP(B199,'CPI Cumulative BLS'!A$3:B$12,2,FALSE) -> 1.04 | S199: 8.57 | T199: =IF(ISNA(VLOOKUP(G199,Footnotes!C$2:C$29,1,FALSE)),"","Yes") ->  | U199: =VLOOKUP(A199,'RSA Lookup'!A$1:D$17,3,FALSE) ->  | V199: Yes
A200: AQ0036TVP03P:CPRA | B200: FY2019 | C200: CPRA-TVP | D200: CPR | E200: 22:06 | F200: 22:06 Billable Permitting - Significant modification to a Title V Permit | G200: 36 | H200: Title V | I200: TVCPRA | J200: TVCPRA Time & Materials | K200: Title V | L200: #N/A | M200: #N/A | N200: TVCPRA Time & Materials | O200: Title V | P200: 18335555 | Q200: 487.06 | R200: =VLOOKUP(B200,'CPI Cumulative BLS'!A$3:B$12,2,FALSE) -> 1.02 | S200: 496.8 | T200: =IF(ISNA(VLOOKUP(G200,Footnotes!C$2:C$29,1,FALSE)),"","Yes") ->  | U200: =VLOOKUP(A200,'RSA Lookup'!A$1:D$17,3,FALSE) ->  | V200: Yes
... 4300 more rows

Sheet RSA Lookup
A1: AQAGDC:AQRSA | B1: AQ Alaska Gasline Development Corporation RSA | C1: Title V | D1: TV1R
A2: AQAGRIUMRSA:AQRSA | B2: AQ Agrium RSA | C2: Title V | D2: TVCPRA
A3: AQAKLNGDATAREVIEWRSA:AQRSA | B3: AQ AK LNG Data Review RSA | C3: Title V | D3: TV1R
A4: AQAKLNGPROJECT:AQRSA | B4: AQ Alaska LNG Project | C4: Title V | D4: TV1R
A5: AQARMSTRONGNANUSHUKRSA:AQRSA | B5: AQ ARMSTRONG NANUSHUK RSA | C5: Title I | D5: MSS
A6: AQBLUECRESTCOSMORSA:AQRSA | B6: AQ BlueCrest Cosmopolitan RSA | C6: Title I | D6: MSS
A7: AQCAELUSNUNARSA:AQRSA | B7: AQ Caelus Nuna RSA | C7: Title I | D7: MSS
A8: AQCAELUSOOOGURUKRSA:AQRSA | B8: AQ Caelus Oooguruk RSA | C8: Title V | D8: TV5R
A9: AQDONLINCREEKRSA:AQRSA | B9: AQ Donlin Creek RSA | C9: Title V | D9: TVCPRA
A10: AQFBXNSLNGPROJRSA:AQRSA | B10: AQ FBX NS LNG PROJ RSA | C10: Title V | D10: TV1R
A11: AQGILFTKNOXRSA:AQRSA | B11: AQ GIL Ft Knox RSA | C11: Title V | D11: TV9R
A12: AQHILCORPLIBERTYNIKAICHUQRSA:AQRSA | B12: AQ Hilcorp Liberty Nikaichuq RSA | C12: Title V | D12: TV1R
A13: AQINTERIORENERGYPROJECTRSA:AQRSA | B13: AQ Interior Energy Project RSA | C13: Title I | D13: TI Initial Permit - Unknown
A14: AQNORDAQENERGYRSA:AQRSA | B14: AQ Nordaq Energy Project RSA | C14: Title I | D14: TI Initial Permit - Unknown
A15: AQNORDAQTULIMANIQRSA:AQRSA | B15: AQ Nordaq Tulimaniq Project RSA | C15: Title I | D15: TI Initial Permit - Unknown
A16: AQPTTHOMSONCENTRALRSA:AQRSA | B16: AQ Pt Thomson Central Pad RSA | C16: Title V | D16: TV5R
A17: AQPTTHOMSONWESTRSA:AQRSA | B17: AQ Pt Thomson West Pad RSA | C17: Title V | D17: TV5R

Sheet Footnotes
A1: Permit ID | B1: Permit Type | C1: Facility ID | D1: Facility Owner | E1: Facility Name | F1: Permit Status | G1: Phase Code | H1: Renewal Expense ID | I1: Renewal Fee | J1: Compliance Expense ID | K1: Compliance Fee | L1: work stopped date | M1: Status Description | N1: Note: Facility ID only shown for Footnote Permits
A2: AQ0059TVP02P | B2: TVP | D2: Hilcorp Alaska, LLC | E2: Swanson River Field | F2: Expired (Under Shield) | G2: TV1R1 | H2: AQ:TV1R | I2: 4261 | J2: AQ:RC1R | K2: 4436 | M2: EPA review ends 7/3/2020; Renewal permit expected 4th quarter 2020.
A3: AQ0067TVP02P | B3: TVP | D3: Hilcorp Alaska, LLC | E3: Monopod Platform | F3: Expired (Under Shield) | G3: TV1R1 | H3: AQ:TV1R | I3: 4261 | J3: AQ:RC1R | K3: 4436 | M3: TVP03 active as of 07/23/2019
A4: AQ0069TVP02P | B4: TVP | D4: Hilcorp Alaska, LLC | E4: Grayling Platform | F4: Expired (Under Shield) | G4: TV1R1 | H4: AQ:TV1R | I4: 4261 | J4: AQ:RC1R | K4: 4436 | M4: TVP03 active as of 02/22/2019
A5: AQ0091TVP02P | B5: TVP | D5: Hilcorp Alaska, LLC | E5: Tyonek Platform | F5: Expired (Under Shield) | G5: TV1R2 | H5: AQ:TV1R | I5: 4261 | J5: AQ:RC1R | K5: 4436 | M5: Preparing renewal permit, no status update
A6: AQ0166TVP01P | B6: TVP | C6: 166 | D6: BP Exploration (Alaska) Inc. | E6: Central Compressor Plant (CCP) | F6: Expired (Under Shield) | G6: TV1R1 | H6: AQ:TV1R | I6: 4261 | J6: AQ:RC1R | K6: 4436 | M6: Final decision for TVP02 was issued on 3/31/2009 | N6: Per memo, these are also footnote permits
C7: 167 | N7: Per memo, these are also footnote permits
A8: AQ0170TVP02P | B8: TVP | C8: 170 | D8: BP Exploration (Alaska) Inc. | E8: Seawater Injection Plant East (SIPE) | F8: Expired (Under Shield) | G8: TV1R1 | H8: AQ:TV1R | I8: 4261 | J8: AQ:RC1R | K8: 4436 | M8: Footnote Permit: Public notice draft is ready for review as of 10/23/2015
A9: AQ0171TVP01P | B9: TVP | C9: 171 | D9: ConocoPhillips Alaska, Inc. | E9: CPF 3, Kuparuk Central Production Facility #3 | F9: Expired (Under Shield) | G9: TV1R1 | H9: AQ:TV1R | I9: 4261 | J9: AQ:RC1R | K9: 4436 | M9: Footnote Permit; Application received 7/3/2007
A10: AQ0172TVP02P | B10: TVP | C10: 172 | D10: ConocoPhillips Alaska, Inc. | E10: Kuparuk Seawater Treatment Plant (STP) | F10: Expired (Under Shield) | G10: TV1R1 | H10: AQ:TV1R | I10: 4261 | J10: AQ:RC1R | K10: 4436 | M10: Footnote Permit; No further work expected as of 12/12/2016
A11: AQ0175GP302P | B11: GP3 | D11: Granite Construction Company | E11: CPP Stan Steel Hot Asphalt Plant | F11: Expired (Under Shield) | G11: GP3TV1 | J11: AQ:RCGP3 | K11: 2091
A12: AQ0182TVP01P | B12: TVP | C12: 182 | D12: BP Exploration (Alaska) Inc. | E12: Gathering Center #1 (GC 1) | F12: Expired (Under Shield) | G12: TV1R1 | H12: AQ:TV1R | I12: 4261 | J12: AQ:RC1R | K12: 4436 | M12: Footnote Permit; Application received 4/19/2012
A13: AQ0183TVP01P | B13: TVP | C13: 183 | D13: BP Exploration (Alaska) Inc. | E13: Gathering Center #2 (GC 2) | F13: Expired (Under Shield) | G13: TV1R1 | H13: AQ:TV1R | I13: 4261 | J13: AQ:RC1R | K13: 4436 | M13: Footnote Permit; Application received 4/19/2012
A14: AQ0184TVP01P | B14: TVP | C14: 184 | D14: BP Exploration (Alaska) Inc. | E14: Gathering Center #3 (GC 3) | F14: Expired (Under Shield) | G14: TV1R1 | H14: AQ:TV1R | I14: 4261 | J14: AQ:RC1R | K14: 4436 | M14: Footnote Permit; Application received 3/3/2014
A15: AQ0192GP302P | B15: GP3 | D15: Granite Construction Company | E15: Pioneer Batch Asphalt Plant | F15: Expired (Under Shield) | G15: GP3TV1 | J15: AQ:RCGP3 | K15: 2091
A16: AQ0231TVP03P | B16: TVP | D16: Trident Seafoods | E16: Akutan Seafood Processing Facility | F16: Expired (Under Shield) | G16: TV6R1 | H16: AQ:TV6R | I16: 2067 | J16: AQ:RC6R | K16: 2989 | L16: unknown; permit shows as active: Final permit issued 12/27/2017
A17: AQ0265TVP02P | B17: TVP | D17: BP Exploration (Alaska) Inc. | E17: Crude Oil Topping Unit (COTU) | F17: Expired (Under Shield) | G17: TV9R1 | H17: AQ:TV9R | I17: 844 | J17: AQ:RC9R | K17: 3159 | L17: unknown; permit shows as active: Final permit issued 1/4/2019
A18: AQ0267TVP01P | B18: TVP | C18: 267 | D18: ConocoPhillips Alaska, Inc. | E18: CPF 1, Kuparuk Central Production Facility #1 | F18: Expired (Under Shield) | G18: TV1R1 | H18: AQ:TV1R | I18: 4261 | J18: AQ:RC1R | K18: 4436 | M18: Footnote Permit; Submitted EPA objection-counter proposal 7/3/2014
A19: AQ0268TVP01P | B19: TVP | C19: 268 | D19: BP Exploration (Alaska) Inc. | E19: Flow Station #2 (FS 2) | F19: Expired (Under Shield) | G19: TV1R1 | H19: AQ:TV1R | I19: 4261 | J19: AQ:RC1R | K19: 4436 | M19: Footnote Permit; Withdrawn from EPA review on 4/16/2014
A20: AQ0269TVP01P | B20: TVP | C20: 269 | D20: BP Exploration (Alaska) Inc. | E20: Flow Station #3 (FS 3) | F20: Expired (Under Shield) | G20: TV1R1 | H20: AQ:TV1R | I20: 4261 | J20: AQ:RC1R | K20: 4436 | M20: Footnote Permit; Withdrawn from EPA review on 4/16/2014
A21: AQ0270TVP01P | B21: TVP | C21: 270 | D21: BP Exploration (Alaska) Inc. | E21: Central Gas Facility (CGF) | F21: Expired (Under Shield) | G21: TV1R1 | H21: AQ:TV1R | I21: 4261 | J21: AQ:RC1R | K21: 4436 | M21: Footnote Permit; Application received 3/6/2008
A22: AQ0272TVP02P | B22: TVP | C22: 272 | D22: BP Exploration (Alaska) Inc. | E22: Lisburne Production Center (LPC) | F22: Expired (Under Shield) | G22: TV1R1 | H22: AQ:TV1R | I22: 4261 | J22: AQ:RC1R | K22: 4436 | M22: Footnote Permit; Draft permit sent to supervisor for review on 2/15/2017
A23: AQ0273TVP01P | B23: TVP | C23: 273 | D23: ConocoPhillips Alaska, Inc. | E23: CPF 2, Kuparuk Central Production Facility #2 | F23: Expired (Under Shield) | G23: TV1R1 | H23: AQ:TV1R | I23: 4261 | J23: AQ:RC1R | K23: 4436 | M23: Footnote Permit; Application received 6/25/2007
A24: AQ0274TVP02P | B24: TVP | D24: BP Exploration (Alaska) Inc. | E24: Prudhoe Bay Operations Center / Main Construction Camp (PBOC/MCC) | F24: Expired (Under Shield) | G24: TV5R1 | H24: AQ:TV5R | I24: 1303 | J24: AQ:RC5R | K24: 3341 | L24: Permit placed on hold several times in 2013. Rev 1 to TVP01 Final issued 5/16/16. TVP03 TV application received 6/26/2015; Sent for supervisor review 6/21/2018. will check with Patrick Dunn tomorrow.
A25: AQ0316TVP02P | B25: TVP | D25: University of Alaska | E25: Fairbanks Campus Power Plant | F25: Expired (Under Shield) | G25: TV3R1 | H25: AQ:TV3R | I25: 6871 | J25: AQ:RC3R | K25: 6767 | L25: Application expired on 12/3/2012; Renewal application for TVP03 received on 6/27/2012. Will follow up with permit writer tomorrow.
A26: AQ0358GP302P | B26: GP3 | D26: Colaska Inc, dba Secon | E26: Stansteel TM-50 Asphalt Plant | F26: Expired (Under Shield) | G26: GP3TV1 | J26: AQ:RCGP3 | K26: 2091 | L26: Permit expired on 3/11/2014; Renewal application for GP303 received on 2/6/2014. Will follow up with permit writer tomorrow.
A27: AQ0455TVP01P | B27: TVP | D27: BP Exploration (Alaska) Inc. | E27: Transportable Drilling Rigs (Drill Rigs) | F27: Expired (Under Shield) | G27: TV1R1 | H27: AQ:TV1R | I27: 4261 | J27: AQ:RC1R | K27: 4436 | M27: Now an MG2 permit as of 1/1/2019: AQ1022MG201
A28: AQ0909TVP01P | B28: TVP | D28: ConocoPhillips Alaska, Inc. | E28: Kuparuk River Unit Transportable Drilling Rigs | F28: Expired (Under Shield) | G28: TV1R1 | H28: AQ:TV1R | I28: 4261 | J28: AQ:RC1R | K28: 4436 | M28: Now an MG2 permit as of 9/28/2018: AQ1019MG201
A29: AQ1353GP301P | B29: GP3 | D29: Colaska Inc, dba QAP | E29: HP#9 CMI 500 | F29: Expired (Under Shield) | G29: GP3TV1 | J29: AQ:RCGP3 | K29: 2091

Sheet CPI Cumulative BLS
A1: Value in FY2020 of each dollar spent in each prior fiscal year during the fee study period
A2: Fiscal Year | B2: Value in FY2020 Dollars
A3: FY2010 | B3: 1.19
A4: FY2011 | B4: 1.17
A5: FY2012 | B5: 1.14
A6: FY2013 | B6: 1.12
A7: FY2014 | B7: 1.1
A8: FY2015 | B8: 1.1
A9: FY2016 | B9: 1.09
A10: FY2017 | B10: 1.06
A11: FY2018 | B11: 1.04
A12: FY2019 | B12: 1.02
